{"text_format":"3","workbook":"xlsx","n_sheets":4,"sheets":["About the Tool","Numeric Data Template","Qualitative Data Template","Simple Generic Template"],"not_rendered":{"charts":4,"defined_names":6},"read":"whole","date_system":"1900"}

{"sheet":"About the Tool","index":0,"n_rows":18,"n_cols":12,"rows_kept":18,"merged":[[0,0,0,10],[1,0,1,10],[2,0,2,10],[12,0,13,2],[12,3,13,10],[14,0,16,2],[14,3,16,10],[17,0,17,2],[17,3,17,10],[19,0,20,10]]}
["About This Resource",{"$nulls":10},"V2.1"]
["This resource is a generic data collation tool which can be used to collate pre & post data. "]
["To track more than 1 data point please use the multiple data points generic data template."]
["Please note that the NEMLDC has a number of other more specific data templates, including for:"]
[null,"The Dynamic Decoding Measures (DDM), Narrative Language Measures (NLM), MOTIF assessments, DIBELs subtests"]
[null,"Sound/letter data sheets",{"$nulls":3},"PA screen data sheets"]
[null,"Semantics assessment data sheet",{"$nulls":3},"Social skills assessment data sheet"]
[null,"Narrative rating data sheets"]
[]
["For a copy of an of the above data sheets, or for assistance collating data, please contact the NEMLDC Outreach Service."]
[]
["This workbook contains 3 generic data collation sheets for different purposes:"]
["Numeric Data Template:",null,null,"Use for any assessment which yields numbers as a result (e.g. % correct, BrightPath levels etc.). This template provides summary statistics and graphs."]
[]
["Qualitative Data Template:",null,null,"Useful for collating qualitative data (e.g. grades or levels like A, B, C;  ratings statements like 'developing', 'weak' etc.). To use this template, enter the level names into the red boxes before then selecting the relevant levels for each student.\nThis template provides summary statistics and graphs."]
[]
[]
["Simple Generic Data Template:",null,null,"Use if either of the above template do not meet your needs."]

{"sheet":"Numeric Data Template","index":1,"n_rows":258,"n_cols":22,"rows_kept":258,"merged":[[0,0,0,5],[1,0,1,5],[1,7,2,17],[2,0,2,5],[3,2,3,3],[3,4,4,4],[3,5,4,5],[3,7,3,9],[3,11,3,17],[4,2,4,3],[4,11,7,17],[6,0,6,5]]}
["Data Collation Sheet: Numeric Data Template"]
["This spreadsheet can be used for any assessment which yields numbers as a result (e.g. % correct, BrightPath levels etc.)",{"$nulls":6},"3. DATA SUMMARY"]
["1. INFORMATION"]
[null,"Assessment:",null,null,"Assessment times:",null,null,"Average",{"$nulls":3},"Comments"]
[null,"Other information:",{"$nulls":5},{"$f":"D8","v":"Time 1 Data"},{"$f":"E8","v":"Time 2 Data"},{"$f":"NumericData[[#Headers],[Difference]]","v":"Difference"}]
[{"$nulls":7},{"$f":"IFERROR(AVERAGE($D$9:$D$258),\"\")","v":""},{"$f":"IFERROR(AVERAGE($E$9:$E$258),\"\")","v":""},{"$f":"IFERROR(AVERAGE($F$9:$F$258),\"\")","v":""}]
["2. DATA"]
["#","Student","Other information (e.g. class)","Time 1 Data","Time 2 Data","Difference",{"$nulls":15},"Is cell blank?"]
[1,{"$nulls":4},{"$f":"IF(COUNTA(NumericData[[#This Row],[Time 1 Data]:[Time 2 Data]])<1.01,\"\",(NumericData[[#This Row],[Time 2 Data]]-NumericData[[#This Row],[Time 1 Data]]))","v":""},{"$nulls":15},{"$f":"IF(NumericData[[#This Row],[Difference]]=\"\",\"Y\",\"N\")","v":"Y"}]
[2,{"$nulls":4},{"$f":"IF(COUNTA(NumericData[[#This Row],[Time 1 Data]:[Time 2 Data]])<1.01,\"\",(NumericData[[#This Row],[Time 2 Data]]-NumericData[[#This Row],[Time 1 Data]]))","v":""},{"$nulls":15},{"$f":"IF(NumericData[[#This Row],[Difference]]=\"\",\"Y\",\"N\")","v":"Y"}]
[3,{"$nulls":4},{"$f":"IF(COUNTA(NumericData[[#This Row],[Time 1 Data]:[Time 2 Data]])<1.01,\"\",(NumericData[[#This Row],[Time 2 Data]]-NumericData[[#This Row],[Time 1 Data]]))","v":""},{"$nulls":15},{"$f":"IF(NumericData[[#This Row],[Difference]]=\"\",\"Y\",\"N\")","v":"Y"}]
[4,{"$nulls":4},{"$f":"IF(COUNTA(NumericData[[#This Row],[Time 1 Data]:[Time 2 Data]])<1.01,\"\",(NumericData[[#This Row],[Time 2 Data]]-NumericData[[#This Row],[Time 1 Data]]))","v":""},{"$nulls":15},{"$f":"IF(NumericData[[#This Row],[Difference]]=\"\",\"Y\",\"N\")","v":"Y"}]
[5,{"$nulls":4},{"$f":"IF(COUNTA(NumericData[[#This Row],[Time 1 Data]:[Time 2 Data]])<1.01,\"\",(NumericData[[#This Row],[Time 2 Data]]-NumericData[[#This Row],[Time 1 Data]]))","v":""},{"$nulls":15},{"$f":"IF(NumericData[[#This Row],[Difference]]=\"\",\"Y\",\"N\")","v":"Y"}]
[6,{"$nulls":4},{"$f":"IF(COUNTA(NumericData[[#This Row],[Time 1 Data]:[Time 2 Data]])<1.01,\"\",(NumericData[[#This Row],[Time 2 Data]]-NumericData[[#This Row],[Time 1 Data]]))","v":""},{"$nulls":15},{"$f":"IF(NumericData[[#This Row],[Difference]]=\"\",\"Y\",\"N\")","v":"Y"}]
[7,{"$nulls":4},{"$f":"IF(COUNTA(NumericData[[#This Row],[Time 1 Data]:[Time 2 Data]])<1.01,\"\",(NumericData[[#This Row],[Time 2 Data]]-NumericData[[#This Row],[Time 1 Data]]))","v":""},{"$nulls":15},{"$f":"IF(NumericData[[#This Row],[Difference]]=\"\",\"Y\",\"N\")","v":"Y"}]
[8,{"$nulls":4},{"$f":"IF(COUNTA(NumericData[[#This Row],[Time 1 Data]:[Time 2 Data]])<1.01,\"\",(NumericData[[#This Row],[Time 2 Data]]-NumericData[[#This Row],[Time 1 Data]]))","v":""},{"$nulls":15},{"$f":"IF(NumericData[[#This Row],[Difference]]=\"\",\"Y\",\"N\")","v":"Y"}]
[9,{"$nulls":4},{"$f":"IF(COUNTA(NumericData[[#This Row],[Time 1 Data]:[Time 2 Data]])<1.01,\"\",(NumericData[[#This Row],[Time 2 Data]]-NumericData[[#This Row],[Time 1 Data]]))","v":""},{"$nulls":15},{"$f":"IF(NumericData[[#This Row],[Difference]]=\"\",\"Y\",\"N\")","v":"Y"}]
[10,{"$nulls":4},{"$f":"IF(COUNTA(NumericData[[#This Row],[Time 1 Data]:[Time 2 Data]])<1.01,\"\",(NumericData[[#This Row],[Time 2 Data]]-NumericData[[#This Row],[Time 1 Data]]))","v":""},{"$nulls":15},{"$f":"IF(NumericData[[#This Row],[Difference]]=\"\",\"Y\",\"N\")","v":"Y"}]
[11,{"$nulls":4},{"$f":"IF(COUNTA(NumericData[[#This Row],[Time 1 Data]:[Time 2 Data]])<1.01,\"\",(NumericData[[#This Row],[Time 2 Data]]-NumericData[[#This Row],[Time 1 Data]]))","v":""},{"$nulls":15},{"$f":"IF(NumericData[[#This Row],[Difference]]=\"\",\"Y\",\"N\")","v":"Y"}]
[12,{"$nulls":4},{"$f":"IF(COUNTA(NumericData[[#This Row],[Time 1 Data]:[Time 2 Data]])<1.01,\"\",(NumericData[[#This Row],[Time 2 Data]]-NumericData[[#This Row],[Time 1 Data]]))","v":""},{"$nulls":15},{"$f":"IF(NumericData[[#This Row],[Difference]]=\"\",\"Y\",\"N\")","v":"Y"}]
[13,{"$nulls":4},{"$f":"IF(COUNTA(NumericData[[#This Row],[Time 1 Data]:[Time 2 Data]])<1.01,\"\",(NumericData[[#This Row],[Time 2 Data]]-NumericData[[#This Row],[Time 1 Data]]))","v":""},{"$nulls":15},{"$f":"IF(NumericData[[#This Row],[Difference]]=\"\",\"Y\",\"N\")","v":"Y"}]
[14,{"$nulls":4},{"$f":"IF(COUNTA(NumericData[[#This Row],[Time 1 Data]:[Time 2 Data]])<1.01,\"\",(NumericData[[#This Row],[Time 2 Data]]-NumericData[[#This Row],[Time 1 Data]]))","v":""},{"$nulls":15},{"$f":"IF(NumericData[[#This Row],[Difference]]=\"\",\"Y\",\"N\")","v":"Y"}]
[15,{"$nulls":4},{"$f":"IF(COUNTA(NumericData[[#This Row],[Time 1 Data]:[Time 2 Data]])<1.01,\"\",(NumericData[[#This Row],[Time 2 Data]]-NumericData[[#This Row],[Time 1 Data]]))","v":""},{"$nulls":15},{"$f":"IF(NumericData[[#This Row],[Difference]]=\"\",\"Y\",\"N\")","v":"Y"}]
[16,{"$nulls":4},{"$f":"IF(COUNTA(NumericData[[#This Row],[Time 1 Data]:[Time 2 Data]])<1.01,\"\",(NumericData[[#This Row],[Time 2 Data]]-NumericData[[#This Row],[Time 1 Data]]))","v":""},{"$nulls":15},{"$f":"IF(NumericData[[#This Row],[Difference]]=\"\",\"Y\",\"N\")","v":"Y"}]
[17,{"$nulls":4},{"$f":"IF(COUNTA(NumericData[[#This Row],[Time 1 Data]:[Time 2 Data]])<1.01,\"\",(NumericData[[#This Row],[Time 2 Data]]-NumericData[[#This Row],[Time 1 Data]]))","v":""},{"$nulls":15},{"$f":"IF(NumericData[[#This Row],[Difference]]=\"\",\"Y\",\"N\")","v":"Y"}]
[18,{"$nulls":4},{"$f":"IF(COUNTA(NumericData[[#This Row],[Time 1 Data]:[Time 2 Data]])<1.01,\"\",(NumericData[[#This Row],[Time 2 Data]]-NumericData[[#This Row],[Time 1 Data]]))","v":""},{"$nulls":15},{"$f":"IF(NumericData[[#This Row],[Difference]]=\"\",\"Y\",\"N\")","v":"Y"}]
[19,{"$nulls":4},{"$f":"IF(COUNTA(NumericData[[#This Row],[Time 1 Data]:[Time 2 Data]])<1.01,\"\",(NumericData[[#This Row],[Time 2 Data]]-NumericData[[#This Row],[Time 1 Data]]))","v":""},{"$nulls":15},{"$f":"IF(NumericData[[#This Row],[Difference]]=\"\",\"Y\",\"N\")","v":"Y"}]
[20,{"$nulls":4},{"$f":"IF(COUNTA(NumericData[[#This Row],[Time 1 Data]:[Time 2 Data]])<1.01,\"\",(NumericData[[#This Row],[Time 2 Data]]-NumericData[[#This Row],[Time 1 Data]]))","v":""},{"$nulls":15},{"$f":"IF(NumericData[[#This Row],[Difference]]=\"\",\"Y\",\"N\")","v":"Y"}]
[21,{"$nulls":4},{"$f":"IF(COUNTA(NumericData[[#This Row],[Time 1 Data]:[Time 2 Data]])<1.01,\"\",(NumericData[[#This Row],[Time 2 Data]]-NumericData[[#This Row],[Time 1 Data]]))","v":""},{"$nulls":15},{"$f":"IF(NumericData[[#This Row],[Difference]]=\"\",\"Y\",\"N\")","v":"Y"}]
[22,{"$nulls":4},{"$f":"IF(COUNTA(NumericData[[#This Row],[Time 1 Data]:[Time 2 Data]])<1.01,\"\",(NumericData[[#This Row],[Time 2 Data]]-NumericData[[#This Row],[Time 1 Data]]))","v":""},{"$nulls":15},{"$f":"IF(NumericData[[#This Row],[Difference]]=\"\",\"Y\",\"N\")","v":"Y"}]
[23,{"$nulls":4},{"$f":"IF(COUNTA(NumericData[[#This Row],[Time 1 Data]:[Time 2 Data]])<1.01,\"\",(NumericData[[#This Row],[Time 2 Data]]-NumericData[[#This Row],[Time 1 Data]]))","v":""},{"$nulls":15},{"$f":"IF(NumericData[[#This Row],[Difference]]=\"\",\"Y\",\"N\")","v":"Y"}]
[24,{"$nulls":4},{"$f":"IF(COUNTA(NumericData[[#This Row],[Time 1 Data]:[Time 2 Data]])<1.01,\"\",(NumericData[[#This Row],[Time 2 Data]]-NumericData[[#This Row],[Time 1 Data]]))","v":""},{"$nulls":15},{"$f":"IF(NumericData[[#This Row],[Difference]]=\"\",\"Y\",\"N\")","v":"Y"}]
[25,{"$nulls":4},{"$f":"IF(COUNTA(NumericData[[#This Row],[Time 1 Data]:[Time 2 Data]])<1.01,\"\",(NumericData[[#This Row],[Time 2 Data]]-NumericData[[#This Row],[Time 1 Data]]))","v":""},{"$nulls":15},{"$f":"IF(NumericData[[#This Row],[Difference]]=\"\",\"Y\",\"N\")","v":"Y"}]
[26,{"$nulls":4},{"$f":"IF(COUNTA(NumericData[[#This Row],[Time 1 Data]:[Time 2 Data]])<1.01,\"\",(NumericData[[#This Row],[Time 2 Data]]-NumericData[[#This Row],[Time 1 Data]]))","v":""},{"$nulls":15},{"$f":"IF(NumericData[[#This Row],[Difference]]=\"\",\"Y\",\"N\")","v":"Y"}]
[27,{"$nulls":4},{"$f":"IF(COUNTA(NumericData[[#This Row],[Time 1 Data]:[Time 2 Data]])<1.01,\"\",(NumericData[[#This Row],[Time 2 Data]]-NumericData[[#This Row],[Time 1 Data]]))","v":""},{"$nulls":15},{"$f":"IF(NumericData[[#This Row],[Difference]]=\"\",\"Y\",\"N\")","v":"Y"}]
[28,{"$nulls":4},{"$f":"IF(COUNTA(NumericData[[#This Row],[Time 1 Data]:[Time 2 Data]])<1.01,\"\",(NumericData[[#This Row],[Time 2 Data]]-NumericData[[#This Row],[Time 1 Data]]))","v":""},{"$nulls":15},{"$f":"IF(NumericData[[#This Row],[Difference]]=\"\",\"Y\",\"N\")","v":"Y"}]
[29,{"$nulls":4},{"$f":"IF(COUNTA(NumericData[[#This Row],[Time 1 Data]:[Time 2 Data]])<1.01,\"\",(NumericData[[#This Row],[Time 2 Data]]-NumericData[[#This Row],[Time 1 Data]]))","v":""},{"$nulls":15},{"$f":"IF(NumericData[[#This Row],[Difference]]=\"\",\"Y\",\"N\")","v":"Y"}]
[30,{"$nulls":4},{"$f":"IF(COUNTA(NumericData[[#This Row],[Time 1 Data]:[Time 2 Data]])<1.01,\"\",(NumericData[[#This Row],[Time 2 Data]]-NumericData[[#This Row],[Time 1 Data]]))","v":""},{"$nulls":15},{"$f":"IF(NumericData[[#This Row],[Difference]]=\"\",\"Y\",\"N\")","v":"Y"}]
[31,{"$nulls":4},{"$f":"IF(COUNTA(NumericData[[#This Row],[Time 1 Data]:[Time 2 Data]])<1.01,\"\",(NumericData[[#This Row],[Time 2 Data]]-NumericData[[#This Row],[Time 1 Data]]))","v":""},{"$nulls":15},{"$f":"IF(NumericData[[#This Row],[Difference]]=\"\",\"Y\",\"N\")","v":"Y"}]
[32,{"$nulls":4},{"$f":"IF(COUNTA(NumericData[[#This Row],[Time 1 Data]:[Time 2 Data]])<1.01,\"\",(NumericData[[#This Row],[Time 2 Data]]-NumericData[[#This Row],[Time 1 Data]]))","v":""},{"$nulls":15},{"$f":"IF(NumericData[[#This Row],[Difference]]=\"\",\"Y\",\"N\")","v":"Y"}]
[33,{"$nulls":4},{"$f":"IF(COUNTA(NumericData[[#This Row],[Time 1 Data]:[Time 2 Data]])<1.01,\"\",(NumericData[[#This Row],[Time 2 Data]]-NumericData[[#This Row],[Time 1 Data]]))","v":""},{"$nulls":15},{"$f":"IF(NumericData[[#This Row],[Difference]]=\"\",\"Y\",\"N\")","v":"Y"}]
[34,{"$nulls":4},{"$f":"IF(COUNTA(NumericData[[#This Row],[Time 1 Data]:[Time 2 Data]])<1.01,\"\",(NumericData[[#This Row],[Time 2 Data]]-NumericData[[#This Row],[Time 1 Data]]))","v":""},{"$nulls":15},{"$f":"IF(NumericData[[#This Row],[Difference]]=\"\",\"Y\",\"N\")","v":"Y"}]
[35,{"$nulls":4},{"$f":"IF(COUNTA(NumericData[[#This Row],[Time 1 Data]:[Time 2 Data]])<1.01,\"\",(NumericData[[#This Row],[Time 2 Data]]-NumericData[[#This Row],[Time 1 Data]]))","v":""},{"$nulls":15},{"$f":"IF(NumericData[[#This Row],[Difference]]=\"\",\"Y\",\"N\")","v":"Y"}]
[36,{"$nulls":4},{"$f":"IF(COUNTA(NumericData[[#This Row],[Time 1 Data]:[Time 2 Data]])<1.01,\"\",(NumericData[[#This Row],[Time 2 Data]]-NumericData[[#This Row],[Time 1 Data]]))","v":""},{"$nulls":15},{"$f":"IF(NumericData[[#This Row],[Difference]]=\"\",\"Y\",\"N\")","v":"Y"}]
[37,{"$nulls":4},{"$f":"IF(COUNTA(NumericData[[#This Row],[Time 1 Data]:[Time 2 Data]])<1.01,\"\",(NumericData[[#This Row],[Time 2 Data]]-NumericData[[#This Row],[Time 1 Data]]))","v":""},{"$nulls":15},{"$f":"IF(NumericData[[#This Row],[Difference]]=\"\",\"Y\",\"N\")","v":"Y"}]
[38,{"$nulls":4},{"$f":"IF(COUNTA(NumericData[[#This Row],[Time 1 Data]:[Time 2 Data]])<1.01,\"\",(NumericData[[#This Row],[Time 2 Data]]-NumericData[[#This Row],[Time 1 Data]]))","v":""},{"$nulls":15},{"$f":"IF(NumericData[[#This Row],[Difference]]=\"\",\"Y\",\"N\")","v":"Y"}]
[39,{"$nulls":4},{"$f":"IF(COUNTA(NumericData[[#This Row],[Time 1 Data]:[Time 2 Data]])<1.01,\"\",(NumericData[[#This Row],[Time 2 Data]]-NumericData[[#This Row],[Time 1 Data]]))","v":""},{"$nulls":15},{"$f":"IF(NumericData[[#This Row],[Difference]]=\"\",\"Y\",\"N\")","v":"Y"}]
[40,{"$nulls":4},{"$f":"IF(COUNTA(NumericData[[#This Row],[Time 1 Data]:[Time 2 Data]])<1.01,\"\",(NumericData[[#This Row],[Time 2 Data]]-NumericData[[#This Row],[Time 1 Data]]))","v":""},{"$nulls":15},{"$f":"IF(NumericData[[#This Row],[Difference]]=\"\",\"Y\",\"N\")","v":"Y"}]
[41,{"$nulls":4},{"$f":"IF(COUNTA(NumericData[[#This Row],[Time 1 Data]:[Time 2 Data]])<1.01,\"\",(NumericData[[#This Row],[Time 2 Data]]-NumericData[[#This Row],[Time 1 Data]]))","v":""},{"$nulls":15},{"$f":"IF(NumericData[[#This Row],[Difference]]=\"\",\"Y\",\"N\")","v":"Y"}]
[42,{"$nulls":4},{"$f":"IF(COUNTA(NumericData[[#This Row],[Time 1 Data]:[Time 2 Data]])<1.01,\"\",(NumericData[[#This Row],[Time 2 Data]]-NumericData[[#This Row],[Time 1 Data]]))","v":""},{"$nulls":15},{"$f":"IF(NumericData[[#This Row],[Difference]]=\"\",\"Y\",\"N\")","v":"Y"}]
[43,{"$nulls":4},{"$f":"IF(COUNTA(NumericData[[#This Row],[Time 1 Data]:[Time 2 Data]])<1.01,\"\",(NumericData[[#This Row],[Time 2 Data]]-NumericData[[#This Row],[Time 1 Data]]))","v":""},{"$nulls":15},{"$f":"IF(NumericData[[#This Row],[Difference]]=\"\",\"Y\",\"N\")","v":"Y"}]
[44,{"$nulls":4},{"$f":"IF(COUNTA(NumericData[[#This Row],[Time 1 Data]:[Time 2 Data]])<1.01,\"\",(NumericData[[#This Row],[Time 2 Data]]-NumericData[[#This Row],[Time 1 Data]]))","v":""},{"$nulls":15},{"$f":"IF(NumericData[[#This Row],[Difference]]=\"\",\"Y\",\"N\")","v":"Y"}]
[45,{"$nulls":4},{"$f":"IF(COUNTA(NumericData[[#This Row],[Time 1 Data]:[Time 2 Data]])<1.01,\"\",(NumericData[[#This Row],[Time 2 Data]]-NumericData[[#This Row],[Time 1 Data]]))","v":""},{"$nulls":15},{"$f":"IF(NumericData[[#This Row],[Difference]]=\"\",\"Y\",\"N\")","v":"Y"}]
[46,{"$nulls":4},{"$f":"IF(COUNTA(NumericData[[#This Row],[Time 1 Data]:[Time 2 Data]])<1.01,\"\",(NumericData[[#This Row],[Time 2 Data]]-NumericData[[#This Row],[Time 1 Data]]))","v":""},{"$nulls":15},{"$f":"IF(NumericData[[#This Row],[Difference]]=\"\",\"Y\",\"N\")","v":"Y"}]
[47,{"$nulls":4},{"$f":"IF(COUNTA(NumericData[[#This Row],[Time 1 Data]:[Time 2 Data]])<1.01,\"\",(NumericData[[#This Row],[Time 2 Data]]-NumericData[[#This Row],[Time 1 Data]]))","v":""},{"$nulls":15},{"$f":"IF(NumericData[[#This Row],[Difference]]=\"\",\"Y\",\"N\")","v":"Y"}]
[48,{"$nulls":4},{"$f":"IF(COUNTA(NumericData[[#This Row],[Time 1 Data]:[Time 2 Data]])<1.01,\"\",(NumericData[[#This Row],[Time 2 Data]]-NumericData[[#This Row],[Time 1 Data]]))","v":""},{"$nulls":15},{"$f":"IF(NumericData[[#This Row],[Difference]]=\"\",\"Y\",\"N\")","v":"Y"}]
[49,{"$nulls":4},{"$f":"IF(COUNTA(NumericData[[#This Row],[Time 1 Data]:[Time 2 Data]])<1.01,\"\",(NumericData[[#This Row],[Time 2 Data]]-NumericData[[#This Row],[Time 1 Data]]))","v":""},{"$nulls":15},{"$f":"IF(NumericData[[#This Row],[Difference]]=\"\",\"Y\",\"N\")","v":"Y"}]
[50,{"$nulls":4},{"$f":"IF(COUNTA(NumericData[[#This Row],[Time 1 Data]:[Time 2 Data]])<1.01,\"\",(NumericData[[#This Row],[Time 2 Data]]-NumericData[[#This Row],[Time 1 Data]]))","v":""},{"$nulls":15},{"$f":"IF(NumericData[[#This Row],[Difference]]=\"\",\"Y\",\"N\")","v":"Y"}]
[51,{"$nulls":4},{"$f":"IF(COUNTA(NumericData[[#This Row],[Time 1 Data]:[Time 2 Data]])<1.01,\"\",(NumericData[[#This Row],[Time 2 Data]]-NumericData[[#This Row],[Time 1 Data]]))","v":""},{"$nulls":15},{"$f":"IF(NumericData[[#This Row],[Difference]]=\"\",\"Y\",\"N\")","v":"Y"}]
[52,{"$nulls":4},{"$f":"IF(COUNTA(NumericData[[#This Row],[Time 1 Data]:[Time 2 Data]])<1.01,\"\",(NumericData[[#This Row],[Time 2 Data]]-NumericData[[#This Row],[Time 1 Data]]))","v":""},{"$nulls":15},{"$f":"IF(NumericData[[#This Row],[Difference]]=\"\",\"Y\",\"N\")","v":"Y"}]
[53,{"$nulls":4},{"$f":"IF(COUNTA(NumericData[[#This Row],[Time 1 Data]:[Time 2 Data]])<1.01,\"\",(NumericData[[#This Row],[Time 2 Data]]-NumericData[[#This Row],[Time 1 Data]]))","v":""},{"$nulls":15},{"$f":"IF(NumericData[[#This Row],[Difference]]=\"\",\"Y\",\"N\")","v":"Y"}]
[54,{"$nulls":4},{"$f":"IF(COUNTA(NumericData[[#This Row],[Time 1 Data]:[Time 2 Data]])<1.01,\"\",(NumericData[[#This Row],[Time 2 Data]]-NumericData[[#This Row],[Time 1 Data]]))","v":""},{"$nulls":15},{"$f":"IF(NumericData[[#This Row],[Difference]]=\"\",\"Y\",\"N\")","v":"Y"}]
[55,{"$nulls":4},{"$f":"IF(COUNTA(NumericData[[#This Row],[Time 1 Data]:[Time 2 Data]])<1.01,\"\",(NumericData[[#This Row],[Time 2 Data]]-NumericData[[#This Row],[Time 1 Data]]))","v":""},{"$nulls":15},{"$f":"IF(NumericData[[#This Row],[Difference]]=\"\",\"Y\",\"N\")","v":"Y"}]
[56,{"$nulls":4},{"$f":"IF(COUNTA(NumericData[[#This Row],[Time 1 Data]:[Time 2 Data]])<1.01,\"\",(NumericData[[#This Row],[Time 2 Data]]-NumericData[[#This Row],[Time 1 Data]]))","v":""},{"$nulls":15},{"$f":"IF(NumericData[[#This Row],[Difference]]=\"\",\"Y\",\"N\")","v":"Y"}]
[57,{"$nulls":4},{"$f":"IF(COUNTA(NumericData[[#This Row],[Time 1 Data]:[Time 2 Data]])<1.01,\"\",(NumericData[[#This Row],[Time 2 Data]]-NumericData[[#This Row],[Time 1 Data]]))","v":""},{"$nulls":15},{"$f":"IF(NumericData[[#This Row],[Difference]]=\"\",\"Y\",\"N\")","v":"Y"}]
[58,{"$nulls":4},{"$f":"IF(COUNTA(NumericData[[#This Row],[Time 1 Data]:[Time 2 Data]])<1.01,\"\",(NumericData[[#This Row],[Time 2 Data]]-NumericData[[#This Row],[Time 1 Data]]))","v":""},{"$nulls":15},{"$f":"IF(NumericData[[#This Row],[Difference]]=\"\",\"Y\",\"N\")","v":"Y"}]
[59,{"$nulls":4},{"$f":"IF(COUNTA(NumericData[[#This Row],[Time 1 Data]:[Time 2 Data]])<1.01,\"\",(NumericData[[#This Row],[Time 2 Data]]-NumericData[[#This Row],[Time 1 Data]]))","v":""},{"$nulls":15},{"$f":"IF(NumericData[[#This Row],[Difference]]=\"\",\"Y\",\"N\")","v":"Y"}]
[60,{"$nulls":4},{"$f":"IF(COUNTA(NumericData[[#This Row],[Time 1 Data]:[Time 2 Data]])<1.01,\"\",(NumericData[[#This Row],[Time 2 Data]]-NumericData[[#This Row],[Time 1 Data]]))","v":""},{"$nulls":15},{"$f":"IF(NumericData[[#This Row],[Difference]]=\"\",\"Y\",\"N\")","v":"Y"}]
[61,{"$nulls":4},{"$f":"IF(COUNTA(NumericData[[#This Row],[Time 1 Data]:[Time 2 Data]])<1.01,\"\",(NumericData[[#This Row],[Time 2 Data]]-NumericData[[#This Row],[Time 1 Data]]))","v":""},{"$nulls":15},{"$f":"IF(NumericData[[#This Row],[Difference]]=\"\",\"Y\",\"N\")","v":"Y"}]
[62,{"$nulls":4},{"$f":"IF(COUNTA(NumericData[[#This Row],[Time 1 Data]:[Time 2 Data]])<1.01,\"\",(NumericData[[#This Row],[Time 2 Data]]-NumericData[[#This Row],[Time 1 Data]]))","v":""},{"$nulls":15},{"$f":"IF(NumericData[[#This Row],[Difference]]=\"\",\"Y\",\"N\")","v":"Y"}]
[63,{"$nulls":4},{"$f":"IF(COUNTA(NumericData[[#This Row],[Time 1 Data]:[Time 2 Data]])<1.01,\"\",(NumericData[[#This Row],[Time 2 Data]]-NumericData[[#This Row],[Time 1 Data]]))","v":""},{"$nulls":15},{"$f":"IF(NumericData[[#This Row],[Difference]]=\"\",\"Y\",\"N\")","v":"Y"}]
[64,{"$nulls":4},{"$f":"IF(COUNTA(NumericData[[#This Row],[Time 1 Data]:[Time 2 Data]])<1.01,\"\",(NumericData[[#This Row],[Time 2 Data]]-NumericData[[#This Row],[Time 1 Data]]))","v":""},{"$nulls":15},{"$f":"IF(NumericData[[#This Row],[Difference]]=\"\",\"Y\",\"N\")","v":"Y"}]
[65,{"$nulls":4},{"$f":"IF(COUNTA(NumericData[[#This Row],[Time 1 Data]:[Time 2 Data]])<1.01,\"\",(NumericData[[#This Row],[Time 2 Data]]-NumericData[[#This Row],[Time 1 Data]]))","v":""},{"$nulls":15},{"$f":"IF(NumericData[[#This Row],[Difference]]=\"\",\"Y\",\"N\")","v":"Y"}]
[66,{"$nulls":4},{"$f":"IF(COUNTA(NumericData[[#This Row],[Time 1 Data]:[Time 2 Data]])<1.01,\"\",(NumericData[[#This Row],[Time 2 Data]]-NumericData[[#This Row],[Time 1 Data]]))","v":""},{"$nulls":15},{"$f":"IF(NumericData[[#This Row],[Difference]]=\"\",\"Y\",\"N\")","v":"Y"}]
[67,{"$nulls":4},{"$f":"IF(COUNTA(NumericData[[#This Row],[Time 1 Data]:[Time 2 Data]])<1.01,\"\",(NumericData[[#This Row],[Time 2 Data]]-NumericData[[#This Row],[Time 1 Data]]))","v":""},{"$nulls":15},{"$f":"IF(NumericData[[#This Row],[Difference]]=\"\",\"Y\",\"N\")","v":"Y"}]
[68,{"$nulls":4},{"$f":"IF(COUNTA(NumericData[[#This Row],[Time 1 Data]:[Time 2 Data]])<1.01,\"\",(NumericData[[#This Row],[Time 2 Data]]-NumericData[[#This Row],[Time 1 Data]]))","v":""},{"$nulls":15},{"$f":"IF(NumericData[[#This Row],[Difference]]=\"\",\"Y\",\"N\")","v":"Y"}]
[69,{"$nulls":4},{"$f":"IF(COUNTA(NumericData[[#This Row],[Time 1 Data]:[Time 2 Data]])<1.01,\"\",(NumericData[[#This Row],[Time 2 Data]]-NumericData[[#This Row],[Time 1 Data]]))","v":""},{"$nulls":15},{"$f":"IF(NumericData[[#This Row],[Difference]]=\"\",\"Y\",\"N\")","v":"Y"}]
[70,{"$nulls":4},{"$f":"IF(COUNTA(NumericData[[#This Row],[Time 1 Data]:[Time 2 Data]])<1.01,\"\",(NumericData[[#This Row],[Time 2 Data]]-NumericData[[#This Row],[Time 1 Data]]))","v":""},{"$nulls":15},{"$f":"IF(NumericData[[#This Row],[Difference]]=\"\",\"Y\",\"N\")","v":"Y"}]
[71,{"$nulls":4},{"$f":"IF(COUNTA(NumericData[[#This Row],[Time 1 Data]:[Time 2 Data]])<1.01,\"\",(NumericData[[#This Row],[Time 2 Data]]-NumericData[[#This Row],[Time 1 Data]]))","v":""},{"$nulls":15},{"$f":"IF(NumericData[[#This Row],[Difference]]=\"\",\"Y\",\"N\")","v":"Y"}]
[72,{"$nulls":4},{"$f":"IF(COUNTA(NumericData[[#This Row],[Time 1 Data]:[Time 2 Data]])<1.01,\"\",(NumericData[[#This Row],[Time 2 Data]]-NumericData[[#This Row],[Time 1 Data]]))","v":""},{"$nulls":15},{"$f":"IF(NumericData[[#This Row],[Difference]]=\"\",\"Y\",\"N\")","v":"Y"}]
[73,{"$nulls":4},{"$f":"IF(COUNTA(NumericData[[#This Row],[Time 1 Data]:[Time 2 Data]])<1.01,\"\",(NumericData[[#This Row],[Time 2 Data]]-NumericData[[#This Row],[Time 1 Data]]))","v":""},{"$nulls":15},{"$f":"IF(NumericData[[#This Row],[Difference]]=\"\",\"Y\",\"N\")","v":"Y"}]
[74,{"$nulls":4},{"$f":"IF(COUNTA(NumericData[[#This Row],[Time 1 Data]:[Time 2 Data]])<1.01,\"\",(NumericData[[#This Row],[Time 2 Data]]-NumericData[[#This Row],[Time 1 Data]]))","v":""},{"$nulls":15},{"$f":"IF(NumericData[[#This Row],[Difference]]=\"\",\"Y\",\"N\")","v":"Y"}]
[75,{"$nulls":4},{"$f":"IF(COUNTA(NumericData[[#This Row],[Time 1 Data]:[Time 2 Data]])<1.01,\"\",(NumericData[[#This Row],[Time 2 Data]]-NumericData[[#This Row],[Time 1 Data]]))","v":""},{"$nulls":15},{"$f":"IF(NumericData[[#This Row],[Difference]]=\"\",\"Y\",\"N\")","v":"Y"}]
[76,{"$nulls":4},{"$f":"IF(COUNTA(NumericData[[#This Row],[Time 1 Data]:[Time 2 Data]])<1.01,\"\",(NumericData[[#This Row],[Time 2 Data]]-NumericData[[#This Row],[Time 1 Data]]))","v":""},{"$nulls":15},{"$f":"IF(NumericData[[#This Row],[Difference]]=\"\",\"Y\",\"N\")","v":"Y"}]
[77,{"$nulls":4},{"$f":"IF(COUNTA(NumericData[[#This Row],[Time 1 Data]:[Time 2 Data]])<1.01,\"\",(NumericData[[#This Row],[Time 2 Data]]-NumericData[[#This Row],[Time 1 Data]]))","v":""},{"$nulls":15},{"$f":"IF(NumericData[[#This Row],[Difference]]=\"\",\"Y\",\"N\")","v":"Y"}]
[78,{"$nulls":4},{"$f":"IF(COUNTA(NumericData[[#This Row],[Time 1 Data]:[Time 2 Data]])<1.01,\"\",(NumericData[[#This Row],[Time 2 Data]]-NumericData[[#This Row],[Time 1 Data]]))","v":""},{"$nulls":15},{"$f":"IF(NumericData[[#This Row],[Difference]]=\"\",\"Y\",\"N\")","v":"Y"}]
[79,{"$nulls":4},{"$f":"IF(COUNTA(NumericData[[#This Row],[Time 1 Data]:[Time 2 Data]])<1.01,\"\",(NumericData[[#This Row],[Time 2 Data]]-NumericData[[#This Row],[Time 1 Data]]))","v":""},{"$nulls":15},{"$f":"IF(NumericData[[#This Row],[Difference]]=\"\",\"Y\",\"N\")","v":"Y"}]
[80,{"$nulls":4},{"$f":"IF(COUNTA(NumericData[[#This Row],[Time 1 Data]:[Time 2 Data]])<1.01,\"\",(NumericData[[#This Row],[Time 2 Data]]-NumericData[[#This Row],[Time 1 Data]]))","v":""},{"$nulls":15},{"$f":"IF(NumericData[[#This Row],[Difference]]=\"\",\"Y\",\"N\")","v":"Y"}]
[81,{"$nulls":4},{"$f":"IF(COUNTA(NumericData[[#This Row],[Time 1 Data]:[Time 2 Data]])<1.01,\"\",(NumericData[[#This Row],[Time 2 Data]]-NumericData[[#This Row],[Time 1 Data]]))","v":""},{"$nulls":15},{"$f":"IF(NumericData[[#This Row],[Difference]]=\"\",\"Y\",\"N\")","v":"Y"}]
[82,{"$nulls":4},{"$f":"IF(COUNTA(NumericData[[#This Row],[Time 1 Data]:[Time 2 Data]])<1.01,\"\",(NumericData[[#This Row],[Time 2 Data]]-NumericData[[#This Row],[Time 1 Data]]))","v":""},{"$nulls":15},{"$f":"IF(NumericData[[#This Row],[Difference]]=\"\",\"Y\",\"N\")","v":"Y"}]
[83,{"$nulls":4},{"$f":"IF(COUNTA(NumericData[[#This Row],[Time 1 Data]:[Time 2 Data]])<1.01,\"\",(NumericData[[#This Row],[Time 2 Data]]-NumericData[[#This Row],[Time 1 Data]]))","v":""},{"$nulls":15},{"$f":"IF(NumericData[[#This Row],[Difference]]=\"\",\"Y\",\"N\")","v":"Y"}]
[84,{"$nulls":4},{"$f":"IF(COUNTA(NumericData[[#This Row],[Time 1 Data]:[Time 2 Data]])<1.01,\"\",(NumericData[[#This Row],[Time 2 Data]]-NumericData[[#This Row],[Time 1 Data]]))","v":""},{"$nulls":15},{"$f":"IF(NumericData[[#This Row],[Difference]]=\"\",\"Y\",\"N\")","v":"Y"}]
[85,{"$nulls":4},{"$f":"IF(COUNTA(NumericData[[#This Row],[Time 1 Data]:[Time 2 Data]])<1.01,\"\",(NumericData[[#This Row],[Time 2 Data]]-NumericData[[#This Row],[Time 1 Data]]))","v":""},{"$nulls":15},{"$f":"IF(NumericData[[#This Row],[Difference]]=\"\",\"Y\",\"N\")","v":"Y"}]
[86,{"$nulls":4},{"$f":"IF(COUNTA(NumericData[[#This Row],[Time 1 Data]:[Time 2 Data]])<1.01,\"\",(NumericData[[#This Row],[Time 2 Data]]-NumericData[[#This Row],[Time 1 Data]]))","v":""},{"$nulls":15},{"$f":"IF(NumericData[[#This Row],[Difference]]=\"\",\"Y\",\"N\")","v":"Y"}]
[87,{"$nulls":4},{"$f":"IF(COUNTA(NumericData[[#This Row],[Time 1 Data]:[Time 2 Data]])<1.01,\"\",(NumericData[[#This Row],[Time 2 Data]]-NumericData[[#This Row],[Time 1 Data]]))","v":""},{"$nulls":15},{"$f":"IF(NumericData[[#This Row],[Difference]]=\"\",\"Y\",\"N\")","v":"Y"}]
[88,{"$nulls":4},{"$f":"IF(COUNTA(NumericData[[#This Row],[Time 1 Data]:[Time 2 Data]])<1.01,\"\",(NumericData[[#This Row],[Time 2 Data]]-NumericData[[#This Row],[Time 1 Data]]))","v":""},{"$nulls":15},{"$f":"IF(NumericData[[#This Row],[Difference]]=\"\",\"Y\",\"N\")","v":"Y"}]
[89,{"$nulls":4},{"$f":"IF(COUNTA(NumericData[[#This Row],[Time 1 Data]:[Time 2 Data]])<1.01,\"\",(NumericData[[#This Row],[Time 2 Data]]-NumericData[[#This Row],[Time 1 Data]]))","v":""},{"$nulls":15},{"$f":"IF(NumericData[[#This Row],[Difference]]=\"\",\"Y\",\"N\")","v":"Y"}]
[90,{"$nulls":4},{"$f":"IF(COUNTA(NumericData[[#This Row],[Time 1 Data]:[Time 2 Data]])<1.01,\"\",(NumericData[[#This Row],[Time 2 Data]]-NumericData[[#This Row],[Time 1 Data]]))","v":""},{"$nulls":15},{"$f":"IF(NumericData[[#This Row],[Difference]]=\"\",\"Y\",\"N\")","v":"Y"}]
[91,{"$nulls":4},{"$f":"IF(COUNTA(NumericData[[#This Row],[Time 1 Data]:[Time 2 Data]])<1.01,\"\",(NumericData[[#This Row],[Time 2 Data]]-NumericData[[#This Row],[Time 1 Data]]))","v":""},{"$nulls":15},{"$f":"IF(NumericData[[#This Row],[Difference]]=\"\",\"Y\",\"N\")","v":"Y"}]
[92,{"$nulls":4},{"$f":"IF(COUNTA(NumericData[[#This Row],[Time 1 Data]:[Time 2 Data]])<1.01,\"\",(NumericData[[#This Row],[Time 2 Data]]-NumericData[[#This Row],[Time 1 Data]]))","v":""},{"$nulls":15},{"$f":"IF(NumericData[[#This Row],[Difference]]=\"\",\"Y\",\"N\")","v":"Y"}]
[93,{"$nulls":4},{"$f":"IF(COUNTA(NumericData[[#This Row],[Time 1 Data]:[Time 2 Data]])<1.01,\"\",(NumericData[[#This Row],[Time 2 Data]]-NumericData[[#This Row],[Time 1 Data]]))","v":""},{"$nulls":15},{"$f":"IF(NumericData[[#This Row],[Difference]]=\"\",\"Y\",\"N\")","v":"Y"}]
[94,{"$nulls":4},{"$f":"IF(COUNTA(NumericData[[#This Row],[Time 1 Data]:[Time 2 Data]])<1.01,\"\",(NumericData[[#This Row],[Time 2 Data]]-NumericData[[#This Row],[Time 1 Data]]))","v":""},{"$nulls":15},{"$f":"IF(NumericData[[#This Row],[Difference]]=\"\",\"Y\",\"N\")","v":"Y"}]
[95,{"$nulls":4},{"$f":"IF(COUNTA(NumericData[[#This Row],[Time 1 Data]:[Time 2 Data]])<1.01,\"\",(NumericData[[#This Row],[Time 2 Data]]-NumericData[[#This Row],[Time 1 Data]]))","v":""},{"$nulls":15},{"$f":"IF(NumericData[[#This Row],[Difference]]=\"\",\"Y\",\"N\")","v":"Y"}]
[96,{"$nulls":4},{"$f":"IF(COUNTA(NumericData[[#This Row],[Time 1 Data]:[Time 2 Data]])<1.01,\"\",(NumericData[[#This Row],[Time 2 Data]]-NumericData[[#This Row],[Time 1 Data]]))","v":""},{"$nulls":15},{"$f":"IF(NumericData[[#This Row],[Difference]]=\"\",\"Y\",\"N\")","v":"Y"}]
[97,{"$nulls":4},{"$f":"IF(COUNTA(NumericData[[#This Row],[Time 1 Data]:[Time 2 Data]])<1.01,\"\",(NumericData[[#This Row],[Time 2 Data]]-NumericData[[#This Row],[Time 1 Data]]))","v":""},{"$nulls":15},{"$f":"IF(NumericData[[#This Row],[Difference]]=\"\",\"Y\",\"N\")","v":"Y"}]
[98,{"$nulls":4},{"$f":"IF(COUNTA(NumericData[[#This Row],[Time 1 Data]:[Time 2 Data]])<1.01,\"\",(NumericData[[#This Row],[Time 2 Data]]-NumericData[[#This Row],[Time 1 Data]]))","v":""},{"$nulls":15},{"$f":"IF(NumericData[[#This Row],[Difference]]=\"\",\"Y\",\"N\")","v":"Y"}]
[99,{"$nulls":4},{"$f":"IF(COUNTA(NumericData[[#This Row],[Time 1 Data]:[Time 2 Data]])<1.01,\"\",(NumericData[[#This Row],[Time 2 Data]]-NumericData[[#This Row],[Time 1 Data]]))","v":""},{"$nulls":15},{"$f":"IF(NumericData[[#This Row],[Difference]]=\"\",\"Y\",\"N\")","v":"Y"}]
[100,{"$nulls":4},{"$f":"IF(COUNTA(NumericData[[#This Row],[Time 1 Data]:[Time 2 Data]])<1.01,\"\",(NumericData[[#This Row],[Time 2 Data]]-NumericData[[#This Row],[Time 1 Data]]))","v":""},{"$nulls":15},{"$f":"IF(NumericData[[#This Row],[Difference]]=\"\",\"Y\",\"N\")","v":"Y"}]
[101,{"$nulls":4},{"$f":"IF(COUNTA(NumericData[[#This Row],[Time 1 Data]:[Time 2 Data]])<1.01,\"\",(NumericData[[#This Row],[Time 2 Data]]-NumericData[[#This Row],[Time 1 Data]]))","v":""},{"$nulls":15},{"$f":"IF(NumericData[[#This Row],[Difference]]=\"\",\"Y\",\"N\")","v":"Y"}]
[102,{"$nulls":4},{"$f":"IF(COUNTA(NumericData[[#This Row],[Time 1 Data]:[Time 2 Data]])<1.01,\"\",(NumericData[[#This Row],[Time 2 Data]]-NumericData[[#This Row],[Time 1 Data]]))","v":""},{"$nulls":15},{"$f":"IF(NumericData[[#This Row],[Difference]]=\"\",\"Y\",\"N\")","v":"Y"}]
[103,{"$nulls":4},{"$f":"IF(COUNTA(NumericData[[#This Row],[Time 1 Data]:[Time 2 Data]])<1.01,\"\",(NumericData[[#This Row],[Time 2 Data]]-NumericData[[#This Row],[Time 1 Data]]))","v":""},{"$nulls":15},{"$f":"IF(NumericData[[#This Row],[Difference]]=\"\",\"Y\",\"N\")","v":"Y"}]
[104,{"$nulls":4},{"$f":"IF(COUNTA(NumericData[[#This Row],[Time 1 Data]:[Time 2 Data]])<1.01,\"\",(NumericData[[#This Row],[Time 2 Data]]-NumericData[[#This Row],[Time 1 Data]]))","v":""},{"$nulls":15},{"$f":"IF(NumericData[[#This Row],[Difference]]=\"\",\"Y\",\"N\")","v":"Y"}]
[105,{"$nulls":4},{"$f":"IF(COUNTA(NumericData[[#This Row],[Time 1 Data]:[Time 2 Data]])<1.01,\"\",(NumericData[[#This Row],[Time 2 Data]]-NumericData[[#This Row],[Time 1 Data]]))","v":""},{"$nulls":15},{"$f":"IF(NumericData[[#This Row],[Difference]]=\"\",\"Y\",\"N\")","v":"Y"}]
[106,{"$nulls":4},{"$f":"IF(COUNTA(NumericData[[#This Row],[Time 1 Data]:[Time 2 Data]])<1.01,\"\",(NumericData[[#This Row],[Time 2 Data]]-NumericData[[#This Row],[Time 1 Data]]))","v":""},{"$nulls":15},{"$f":"IF(NumericData[[#This Row],[Difference]]=\"\",\"Y\",\"N\")","v":"Y"}]
[107,{"$nulls":4},{"$f":"IF(COUNTA(NumericData[[#This Row],[Time 1 Data]:[Time 2 Data]])<1.01,\"\",(NumericData[[#This Row],[Time 2 Data]]-NumericData[[#This Row],[Time 1 Data]]))","v":""},{"$nulls":15},{"$f":"IF(NumericData[[#This Row],[Difference]]=\"\",\"Y\",\"N\")","v":"Y"}]
[108,{"$nulls":4},{"$f":"IF(COUNTA(NumericData[[#This Row],[Time 1 Data]:[Time 2 Data]])<1.01,\"\",(NumericData[[#This Row],[Time 2 Data]]-NumericData[[#This Row],[Time 1 Data]]))","v":""},{"$nulls":15},{"$f":"IF(NumericData[[#This Row],[Difference]]=\"\",\"Y\",\"N\")","v":"Y"}]
[109,{"$nulls":4},{"$f":"IF(COUNTA(NumericData[[#This Row],[Time 1 Data]:[Time 2 Data]])<1.01,\"\",(NumericData[[#This Row],[Time 2 Data]]-NumericData[[#This Row],[Time 1 Data]]))","v":""},{"$nulls":15},{"$f":"IF(NumericData[[#This Row],[Difference]]=\"\",\"Y\",\"N\")","v":"Y"}]
[110,{"$nulls":4},{"$f":"IF(COUNTA(NumericData[[#This Row],[Time 1 Data]:[Time 2 Data]])<1.01,\"\",(NumericData[[#This Row],[Time 2 Data]]-NumericData[[#This Row],[Time 1 Data]]))","v":""},{"$nulls":15},{"$f":"IF(NumericData[[#This Row],[Difference]]=\"\",\"Y\",\"N\")","v":"Y"}]
[111,{"$nulls":4},{"$f":"IF(COUNTA(NumericData[[#This Row],[Time 1 Data]:[Time 2 Data]])<1.01,\"\",(NumericData[[#This Row],[Time 2 Data]]-NumericData[[#This Row],[Time 1 Data]]))","v":""},{"$nulls":15},{"$f":"IF(NumericData[[#This Row],[Difference]]=\"\",\"Y\",\"N\")","v":"Y"}]
[112,{"$nulls":4},{"$f":"IF(COUNTA(NumericData[[#This Row],[Time 1 Data]:[Time 2 Data]])<1.01,\"\",(NumericData[[#This Row],[Time 2 Data]]-NumericData[[#This Row],[Time 1 Data]]))","v":""},{"$nulls":15},{"$f":"IF(NumericData[[#This Row],[Difference]]=\"\",\"Y\",\"N\")","v":"Y"}]
[113,{"$nulls":4},{"$f":"IF(COUNTA(NumericData[[#This Row],[Time 1 Data]:[Time 2 Data]])<1.01,\"\",(NumericData[[#This Row],[Time 2 Data]]-NumericData[[#This Row],[Time 1 Data]]))","v":""},{"$nulls":15},{"$f":"IF(NumericData[[#This Row],[Difference]]=\"\",\"Y\",\"N\")","v":"Y"}]
[114,{"$nulls":4},{"$f":"IF(COUNTA(NumericData[[#This Row],[Time 1 Data]:[Time 2 Data]])<1.01,\"\",(NumericData[[#This Row],[Time 2 Data]]-NumericData[[#This Row],[Time 1 Data]]))","v":""},{"$nulls":15},{"$f":"IF(NumericData[[#This Row],[Difference]]=\"\",\"Y\",\"N\")","v":"Y"}]
[115,{"$nulls":4},{"$f":"IF(COUNTA(NumericData[[#This Row],[Time 1 Data]:[Time 2 Data]])<1.01,\"\",(NumericData[[#This Row],[Time 2 Data]]-NumericData[[#This Row],[Time 1 Data]]))","v":""},{"$nulls":15},{"$f":"IF(NumericData[[#This Row],[Difference]]=\"\",\"Y\",\"N\")","v":"Y"}]
[116,{"$nulls":4},{"$f":"IF(COUNTA(NumericData[[#This Row],[Time 1 Data]:[Time 2 Data]])<1.01,\"\",(NumericData[[#This Row],[Time 2 Data]]-NumericData[[#This Row],[Time 1 Data]]))","v":""},{"$nulls":15},{"$f":"IF(NumericData[[#This Row],[Difference]]=\"\",\"Y\",\"N\")","v":"Y"}]
[117,{"$nulls":4},{"$f":"IF(COUNTA(NumericData[[#This Row],[Time 1 Data]:[Time 2 Data]])<1.01,\"\",(NumericData[[#This Row],[Time 2 Data]]-NumericData[[#This Row],[Time 1 Data]]))","v":""},{"$nulls":15},{"$f":"IF(NumericData[[#This Row],[Difference]]=\"\",\"Y\",\"N\")","v":"Y"}]
[118,{"$nulls":4},{"$f":"IF(COUNTA(NumericData[[#This Row],[Time 1 Data]:[Time 2 Data]])<1.01,\"\",(NumericData[[#This Row],[Time 2 Data]]-NumericData[[#This Row],[Time 1 Data]]))","v":""},{"$nulls":15},{"$f":"IF(NumericData[[#This Row],[Difference]]=\"\",\"Y\",\"N\")","v":"Y"}]
[119,{"$nulls":4},{"$f":"IF(COUNTA(NumericData[[#This Row],[Time 1 Data]:[Time 2 Data]])<1.01,\"\",(NumericData[[#This Row],[Time 2 Data]]-NumericData[[#This Row],[Time 1 Data]]))","v":""},{"$nulls":15},{"$f":"IF(NumericData[[#This Row],[Difference]]=\"\",\"Y\",\"N\")","v":"Y"}]
[120,{"$nulls":4},{"$f":"IF(COUNTA(NumericData[[#This Row],[Time 1 Data]:[Time 2 Data]])<1.01,\"\",(NumericData[[#This Row],[Time 2 Data]]-NumericData[[#This Row],[Time 1 Data]]))","v":""},{"$nulls":15},{"$f":"IF(NumericData[[#This Row],[Difference]]=\"\",\"Y\",\"N\")","v":"Y"}]
[121,{"$nulls":4},{"$f":"IF(COUNTA(NumericData[[#This Row],[Time 1 Data]:[Time 2 Data]])<1.01,\"\",(NumericData[[#This Row],[Time 2 Data]]-NumericData[[#This Row],[Time 1 Data]]))","v":""},{"$nulls":15},{"$f":"IF(NumericData[[#This Row],[Difference]]=\"\",\"Y\",\"N\")","v":"Y"}]
[122,{"$nulls":4},{"$f":"IF(COUNTA(NumericData[[#This Row],[Time 1 Data]:[Time 2 Data]])<1.01,\"\",(NumericData[[#This Row],[Time 2 Data]]-NumericData[[#This Row],[Time 1 Data]]))","v":""},{"$nulls":15},{"$f":"IF(NumericData[[#This Row],[Difference]]=\"\",\"Y\",\"N\")","v":"Y"}]
[123,{"$nulls":4},{"$f":"IF(COUNTA(NumericData[[#This Row],[Time 1 Data]:[Time 2 Data]])<1.01,\"\",(NumericData[[#This Row],[Time 2 Data]]-NumericData[[#This Row],[Time 1 Data]]))","v":""},{"$nulls":15},{"$f":"IF(NumericData[[#This Row],[Difference]]=\"\",\"Y\",\"N\")","v":"Y"}]
[124,{"$nulls":4},{"$f":"IF(COUNTA(NumericData[[#This Row],[Time 1 Data]:[Time 2 Data]])<1.01,\"\",(NumericData[[#This Row],[Time 2 Data]]-NumericData[[#This Row],[Time 1 Data]]))","v":""},{"$nulls":15},{"$f":"IF(NumericData[[#This Row],[Difference]]=\"\",\"Y\",\"N\")","v":"Y"}]
[125,{"$nulls":4},{"$f":"IF(COUNTA(NumericData[[#This Row],[Time 1 Data]:[Time 2 Data]])<1.01,\"\",(NumericData[[#This Row],[Time 2 Data]]-NumericData[[#This Row],[Time 1 Data]]))","v":""},{"$nulls":15},{"$f":"IF(NumericData[[#This Row],[Difference]]=\"\",\"Y\",\"N\")","v":"Y"}]
[126,{"$nulls":4},{"$f":"IF(COUNTA(NumericData[[#This Row],[Time 1 Data]:[Time 2 Data]])<1.01,\"\",(NumericData[[#This Row],[Time 2 Data]]-NumericData[[#This Row],[Time 1 Data]]))","v":""},{"$nulls":15},{"$f":"IF(NumericData[[#This Row],[Difference]]=\"\",\"Y\",\"N\")","v":"Y"}]
[127,{"$nulls":4},{"$f":"IF(COUNTA(NumericData[[#This Row],[Time 1 Data]:[Time 2 Data]])<1.01,\"\",(NumericData[[#This Row],[Time 2 Data]]-NumericData[[#This Row],[Time 1 Data]]))","v":""},{"$nulls":15},{"$f":"IF(NumericData[[#This Row],[Difference]]=\"\",\"Y\",\"N\")","v":"Y"}]
[128,{"$nulls":4},{"$f":"IF(COUNTA(NumericData[[#This Row],[Time 1 Data]:[Time 2 Data]])<1.01,\"\",(NumericData[[#This Row],[Time 2 Data]]-NumericData[[#This Row],[Time 1 Data]]))","v":""},{"$nulls":15},{"$f":"IF(NumericData[[#This Row],[Difference]]=\"\",\"Y\",\"N\")","v":"Y"}]
[129,{"$nulls":4},{"$f":"IF(COUNTA(NumericData[[#This Row],[Time 1 Data]:[Time 2 Data]])<1.01,\"\",(NumericData[[#This Row],[Time 2 Data]]-NumericData[[#This Row],[Time 1 Data]]))","v":""},{"$nulls":15},{"$f":"IF(NumericData[[#This Row],[Difference]]=\"\",\"Y\",\"N\")","v":"Y"}]
[130,{"$nulls":4},{"$f":"IF(COUNTA(NumericData[[#This Row],[Time 1 Data]:[Time 2 Data]])<1.01,\"\",(NumericData[[#This Row],[Time 2 Data]]-NumericData[[#This Row],[Time 1 Data]]))","v":""},{"$nulls":15},{"$f":"IF(NumericData[[#This Row],[Difference]]=\"\",\"Y\",\"N\")","v":"Y"}]
[131,{"$nulls":4},{"$f":"IF(COUNTA(NumericData[[#This Row],[Time 1 Data]:[Time 2 Data]])<1.01,\"\",(NumericData[[#This Row],[Time 2 Data]]-NumericData[[#This Row],[Time 1 Data]]))","v":""},{"$nulls":15},{"$f":"IF(NumericData[[#This Row],[Difference]]=\"\",\"Y\",\"N\")","v":"Y"}]
[132,{"$nulls":4},{"$f":"IF(COUNTA(NumericData[[#This Row],[Time 1 Data]:[Time 2 Data]])<1.01,\"\",(NumericData[[#This Row],[Time 2 Data]]-NumericData[[#This Row],[Time 1 Data]]))","v":""},{"$nulls":15},{"$f":"IF(NumericData[[#This Row],[Difference]]=\"\",\"Y\",\"N\")","v":"Y"}]
[133,{"$nulls":4},{"$f":"IF(COUNTA(NumericData[[#This Row],[Time 1 Data]:[Time 2 Data]])<1.01,\"\",(NumericData[[#This Row],[Time 2 Data]]-NumericData[[#This Row],[Time 1 Data]]))","v":""},{"$nulls":15},{"$f":"IF(NumericData[[#This Row],[Difference]]=\"\",\"Y\",\"N\")","v":"Y"}]
[134,{"$nulls":4},{"$f":"IF(COUNTA(NumericData[[#This Row],[Time 1 Data]:[Time 2 Data]])<1.01,\"\",(NumericData[[#This Row],[Time 2 Data]]-NumericData[[#This Row],[Time 1 Data]]))","v":""},{"$nulls":15},{"$f":"IF(NumericData[[#This Row],[Difference]]=\"\",\"Y\",\"N\")","v":"Y"}]
[135,{"$nulls":4},{"$f":"IF(COUNTA(NumericData[[#This Row],[Time 1 Data]:[Time 2 Data]])<1.01,\"\",(NumericData[[#This Row],[Time 2 Data]]-NumericData[[#This Row],[Time 1 Data]]))","v":""},{"$nulls":15},{"$f":"IF(NumericData[[#This Row],[Difference]]=\"\",\"Y\",\"N\")","v":"Y"}]
[136,{"$nulls":4},{"$f":"IF(COUNTA(NumericData[[#This Row],[Time 1 Data]:[Time 2 Data]])<1.01,\"\",(NumericData[[#This Row],[Time 2 Data]]-NumericData[[#This Row],[Time 1 Data]]))","v":""},{"$nulls":15},{"$f":"IF(NumericData[[#This Row],[Difference]]=\"\",\"Y\",\"N\")","v":"Y"}]
[137,{"$nulls":4},{"$f":"IF(COUNTA(NumericData[[#This Row],[Time 1 Data]:[Time 2 Data]])<1.01,\"\",(NumericData[[#This Row],[Time 2 Data]]-NumericData[[#This Row],[Time 1 Data]]))","v":""},{"$nulls":15},{"$f":"IF(NumericData[[#This Row],[Difference]]=\"\",\"Y\",\"N\")","v":"Y"}]
[138,{"$nulls":4},{"$f":"IF(COUNTA(NumericData[[#This Row],[Time 1 Data]:[Time 2 Data]])<1.01,\"\",(NumericData[[#This Row],[Time 2 Data]]-NumericData[[#This Row],[Time 1 Data]]))","v":""},{"$nulls":15},{"$f":"IF(NumericData[[#This Row],[Difference]]=\"\",\"Y\",\"N\")","v":"Y"}]
[139,{"$nulls":4},{"$f":"IF(COUNTA(NumericData[[#This Row],[Time 1 Data]:[Time 2 Data]])<1.01,\"\",(NumericData[[#This Row],[Time 2 Data]]-NumericData[[#This Row],[Time 1 Data]]))","v":""},{"$nulls":15},{"$f":"IF(NumericData[[#This Row],[Difference]]=\"\",\"Y\",\"N\")","v":"Y"}]
[140,{"$nulls":4},{"$f":"IF(COUNTA(NumericData[[#This Row],[Time 1 Data]:[Time 2 Data]])<1.01,\"\",(NumericData[[#This Row],[Time 2 Data]]-NumericData[[#This Row],[Time 1 Data]]))","v":""},{"$nulls":15},{"$f":"IF(NumericData[[#This Row],[Difference]]=\"\",\"Y\",\"N\")","v":"Y"}]
[141,{"$nulls":4},{"$f":"IF(COUNTA(NumericData[[#This Row],[Time 1 Data]:[Time 2 Data]])<1.01,\"\",(NumericData[[#This Row],[Time 2 Data]]-NumericData[[#This Row],[Time 1 Data]]))","v":""},{"$nulls":15},{"$f":"IF(NumericData[[#This Row],[Difference]]=\"\",\"Y\",\"N\")","v":"Y"}]
[142,{"$nulls":4},{"$f":"IF(COUNTA(NumericData[[#This Row],[Time 1 Data]:[Time 2 Data]])<1.01,\"\",(NumericData[[#This Row],[Time 2 Data]]-NumericData[[#This Row],[Time 1 Data]]))","v":""},{"$nulls":15},{"$f":"IF(NumericData[[#This Row],[Difference]]=\"\",\"Y\",\"N\")","v":"Y"}]
[143,{"$nulls":4},{"$f":"IF(COUNTA(NumericData[[#This Row],[Time 1 Data]:[Time 2 Data]])<1.01,\"\",(NumericData[[#This Row],[Time 2 Data]]-NumericData[[#This Row],[Time 1 Data]]))","v":""},{"$nulls":15},{"$f":"IF(NumericData[[#This Row],[Difference]]=\"\",\"Y\",\"N\")","v":"Y"}]
[144,{"$nulls":4},{"$f":"IF(COUNTA(NumericData[[#This Row],[Time 1 Data]:[Time 2 Data]])<1.01,\"\",(NumericData[[#This Row],[Time 2 Data]]-NumericData[[#This Row],[Time 1 Data]]))","v":""},{"$nulls":15},{"$f":"IF(NumericData[[#This Row],[Difference]]=\"\",\"Y\",\"N\")","v":"Y"}]
[145,{"$nulls":4},{"$f":"IF(COUNTA(NumericData[[#This Row],[Time 1 Data]:[Time 2 Data]])<1.01,\"\",(NumericData[[#This Row],[Time 2 Data]]-NumericData[[#This Row],[Time 1 Data]]))","v":""},{"$nulls":15},{"$f":"IF(NumericData[[#This Row],[Difference]]=\"\",\"Y\",\"N\")","v":"Y"}]
[146,{"$nulls":4},{"$f":"IF(COUNTA(NumericData[[#This Row],[Time 1 Data]:[Time 2 Data]])<1.01,\"\",(NumericData[[#This Row],[Time 2 Data]]-NumericData[[#This Row],[Time 1 Data]]))","v":""},{"$nulls":15},{"$f":"IF(NumericData[[#This Row],[Difference]]=\"\",\"Y\",\"N\")","v":"Y"}]
[147,{"$nulls":4},{"$f":"IF(COUNTA(NumericData[[#This Row],[Time 1 Data]:[Time 2 Data]])<1.01,\"\",(NumericData[[#This Row],[Time 2 Data]]-NumericData[[#This Row],[Time 1 Data]]))","v":""},{"$nulls":15},{"$f":"IF(NumericData[[#This Row],[Difference]]=\"\",\"Y\",\"N\")","v":"Y"}]
[148,{"$nulls":4},{"$f":"IF(COUNTA(NumericData[[#This Row],[Time 1 Data]:[Time 2 Data]])<1.01,\"\",(NumericData[[#This Row],[Time 2 Data]]-NumericData[[#This Row],[Time 1 Data]]))","v":""},{"$nulls":15},{"$f":"IF(NumericData[[#This Row],[Difference]]=\"\",\"Y\",\"N\")","v":"Y"}]
[149,{"$nulls":4},{"$f":"IF(COUNTA(NumericData[[#This Row],[Time 1 Data]:[Time 2 Data]])<1.01,\"\",(NumericData[[#This Row],[Time 2 Data]]-NumericData[[#This Row],[Time 1 Data]]))","v":""},{"$nulls":15},{"$f":"IF(NumericData[[#This Row],[Difference]]=\"\",\"Y\",\"N\")","v":"Y"}]
[150,{"$nulls":4},{"$f":"IF(COUNTA(NumericData[[#This Row],[Time 1 Data]:[Time 2 Data]])<1.01,\"\",(NumericData[[#This Row],[Time 2 Data]]-NumericData[[#This Row],[Time 1 Data]]))","v":""},{"$nulls":15},{"$f":"IF(NumericData[[#This Row],[Difference]]=\"\",\"Y\",\"N\")","v":"Y"}]
[151,{"$nulls":4},{"$f":"IF(COUNTA(NumericData[[#This Row],[Time 1 Data]:[Time 2 Data]])<1.01,\"\",(NumericData[[#This Row],[Time 2 Data]]-NumericData[[#This Row],[Time 1 Data]]))","v":""},{"$nulls":15},{"$f":"IF(NumericData[[#This Row],[Difference]]=\"\",\"Y\",\"N\")","v":"Y"}]
[152,{"$nulls":4},{"$f":"IF(COUNTA(NumericData[[#This Row],[Time 1 Data]:[Time 2 Data]])<1.01,\"\",(NumericData[[#This Row],[Time 2 Data]]-NumericData[[#This Row],[Time 1 Data]]))","v":""},{"$nulls":15},{"$f":"IF(NumericData[[#This Row],[Difference]]=\"\",\"Y\",\"N\")","v":"Y"}]
[153,{"$nulls":4},{"$f":"IF(COUNTA(NumericData[[#This Row],[Time 1 Data]:[Time 2 Data]])<1.01,\"\",(NumericData[[#This Row],[Time 2 Data]]-NumericData[[#This Row],[Time 1 Data]]))","v":""},{"$nulls":15},{"$f":"IF(NumericData[[#This Row],[Difference]]=\"\",\"Y\",\"N\")","v":"Y"}]
[154,{"$nulls":4},{"$f":"IF(COUNTA(NumericData[[#This Row],[Time 1 Data]:[Time 2 Data]])<1.01,\"\",(NumericData[[#This Row],[Time 2 Data]]-NumericData[[#This Row],[Time 1 Data]]))","v":""},{"$nulls":15},{"$f":"IF(NumericData[[#This Row],[Difference]]=\"\",\"Y\",\"N\")","v":"Y"}]
[155,{"$nulls":4},{"$f":"IF(COUNTA(NumericData[[#This Row],[Time 1 Data]:[Time 2 Data]])<1.01,\"\",(NumericData[[#This Row],[Time 2 Data]]-NumericData[[#This Row],[Time 1 Data]]))","v":""},{"$nulls":15},{"$f":"IF(NumericData[[#This Row],[Difference]]=\"\",\"Y\",\"N\")","v":"Y"}]
[156,{"$nulls":4},{"$f":"IF(COUNTA(NumericData[[#This Row],[Time 1 Data]:[Time 2 Data]])<1.01,\"\",(NumericData[[#This Row],[Time 2 Data]]-NumericData[[#This Row],[Time 1 Data]]))","v":""},{"$nulls":15},{"$f":"IF(NumericData[[#This Row],[Difference]]=\"\",\"Y\",\"N\")","v":"Y"}]
[157,{"$nulls":4},{"$f":"IF(COUNTA(NumericData[[#This Row],[Time 1 Data]:[Time 2 Data]])<1.01,\"\",(NumericData[[#This Row],[Time 2 Data]]-NumericData[[#This Row],[Time 1 Data]]))","v":""},{"$nulls":15},{"$f":"IF(NumericData[[#This Row],[Difference]]=\"\",\"Y\",\"N\")","v":"Y"}]
[158,{"$nulls":4},{"$f":"IF(COUNTA(NumericData[[#This Row],[Time 1 Data]:[Time 2 Data]])<1.01,\"\",(NumericData[[#This Row],[Time 2 Data]]-NumericData[[#This Row],[Time 1 Data]]))","v":""},{"$nulls":15},{"$f":"IF(NumericData[[#This Row],[Difference]]=\"\",\"Y\",\"N\")","v":"Y"}]
[159,{"$nulls":4},{"$f":"IF(COUNTA(NumericData[[#This Row],[Time 1 Data]:[Time 2 Data]])<1.01,\"\",(NumericData[[#This Row],[Time 2 Data]]-NumericData[[#This Row],[Time 1 Data]]))","v":""},{"$nulls":15},{"$f":"IF(NumericData[[#This Row],[Difference]]=\"\",\"Y\",\"N\")","v":"Y"}]
[160,{"$nulls":4},{"$f":"IF(COUNTA(NumericData[[#This Row],[Time 1 Data]:[Time 2 Data]])<1.01,\"\",(NumericData[[#This Row],[Time 2 Data]]-NumericData[[#This Row],[Time 1 Data]]))","v":""},{"$nulls":15},{"$f":"IF(NumericData[[#This Row],[Difference]]=\"\",\"Y\",\"N\")","v":"Y"}]
[161,{"$nulls":4},{"$f":"IF(COUNTA(NumericData[[#This Row],[Time 1 Data]:[Time 2 Data]])<1.01,\"\",(NumericData[[#This Row],[Time 2 Data]]-NumericData[[#This Row],[Time 1 Data]]))","v":""},{"$nulls":15},{"$f":"IF(NumericData[[#This Row],[Difference]]=\"\",\"Y\",\"N\")","v":"Y"}]
[162,{"$nulls":4},{"$f":"IF(COUNTA(NumericData[[#This Row],[Time 1 Data]:[Time 2 Data]])<1.01,\"\",(NumericData[[#This Row],[Time 2 Data]]-NumericData[[#This Row],[Time 1 Data]]))","v":""},{"$nulls":15},{"$f":"IF(NumericData[[#This Row],[Difference]]=\"\",\"Y\",\"N\")","v":"Y"}]
[163,{"$nulls":4},{"$f":"IF(COUNTA(NumericData[[#This Row],[Time 1 Data]:[Time 2 Data]])<1.01,\"\",(NumericData[[#This Row],[Time 2 Data]]-NumericData[[#This Row],[Time 1 Data]]))","v":""},{"$nulls":15},{"$f":"IF(NumericData[[#This Row],[Difference]]=\"\",\"Y\",\"N\")","v":"Y"}]
[164,{"$nulls":4},{"$f":"IF(COUNTA(NumericData[[#This Row],[Time 1 Data]:[Time 2 Data]])<1.01,\"\",(NumericData[[#This Row],[Time 2 Data]]-NumericData[[#This Row],[Time 1 Data]]))","v":""},{"$nulls":15},{"$f":"IF(NumericData[[#This Row],[Difference]]=\"\",\"Y\",\"N\")","v":"Y"}]
[165,{"$nulls":4},{"$f":"IF(COUNTA(NumericData[[#This Row],[Time 1 Data]:[Time 2 Data]])<1.01,\"\",(NumericData[[#This Row],[Time 2 Data]]-NumericData[[#This Row],[Time 1 Data]]))","v":""},{"$nulls":15},{"$f":"IF(NumericData[[#This Row],[Difference]]=\"\",\"Y\",\"N\")","v":"Y"}]
[166,{"$nulls":4},{"$f":"IF(COUNTA(NumericData[[#This Row],[Time 1 Data]:[Time 2 Data]])<1.01,\"\",(NumericData[[#This Row],[Time 2 Data]]-NumericData[[#This Row],[Time 1 Data]]))","v":""},{"$nulls":15},{"$f":"IF(NumericData[[#This Row],[Difference]]=\"\",\"Y\",\"N\")","v":"Y"}]
[167,{"$nulls":4},{"$f":"IF(COUNTA(NumericData[[#This Row],[Time 1 Data]:[Time 2 Data]])<1.01,\"\",(NumericData[[#This Row],[Time 2 Data]]-NumericData[[#This Row],[Time 1 Data]]))","v":""},{"$nulls":15},{"$f":"IF(NumericData[[#This Row],[Difference]]=\"\",\"Y\",\"N\")","v":"Y"}]
[168,{"$nulls":4},{"$f":"IF(COUNTA(NumericData[[#This Row],[Time 1 Data]:[Time 2 Data]])<1.01,\"\",(NumericData[[#This Row],[Time 2 Data]]-NumericData[[#This Row],[Time 1 Data]]))","v":""},{"$nulls":15},{"$f":"IF(NumericData[[#This Row],[Difference]]=\"\",\"Y\",\"N\")","v":"Y"}]
[169,{"$nulls":4},{"$f":"IF(COUNTA(NumericData[[#This Row],[Time 1 Data]:[Time 2 Data]])<1.01,\"\",(NumericData[[#This Row],[Time 2 Data]]-NumericData[[#This Row],[Time 1 Data]]))","v":""},{"$nulls":15},{"$f":"IF(NumericData[[#This Row],[Difference]]=\"\",\"Y\",\"N\")","v":"Y"}]
[170,{"$nulls":4},{"$f":"IF(COUNTA(NumericData[[#This Row],[Time 1 Data]:[Time 2 Data]])<1.01,\"\",(NumericData[[#This Row],[Time 2 Data]]-NumericData[[#This Row],[Time 1 Data]]))","v":""},{"$nulls":15},{"$f":"IF(NumericData[[#This Row],[Difference]]=\"\",\"Y\",\"N\")","v":"Y"}]
[171,{"$nulls":4},{"$f":"IF(COUNTA(NumericData[[#This Row],[Time 1 Data]:[Time 2 Data]])<1.01,\"\",(NumericData[[#This Row],[Time 2 Data]]-NumericData[[#This Row],[Time 1 Data]]))","v":""},{"$nulls":15},{"$f":"IF(NumericData[[#This Row],[Difference]]=\"\",\"Y\",\"N\")","v":"Y"}]
[172,{"$nulls":4},{"$f":"IF(COUNTA(NumericData[[#This Row],[Time 1 Data]:[Time 2 Data]])<1.01,\"\",(NumericData[[#This Row],[Time 2 Data]]-NumericData[[#This Row],[Time 1 Data]]))","v":""},{"$nulls":15},{"$f":"IF(NumericData[[#This Row],[Difference]]=\"\",\"Y\",\"N\")","v":"Y"}]
[173,{"$nulls":4},{"$f":"IF(COUNTA(NumericData[[#This Row],[Time 1 Data]:[Time 2 Data]])<1.01,\"\",(NumericData[[#This Row],[Time 2 Data]]-NumericData[[#This Row],[Time 1 Data]]))","v":""},{"$nulls":15},{"$f":"IF(NumericData[[#This Row],[Difference]]=\"\",\"Y\",\"N\")","v":"Y"}]
[174,{"$nulls":4},{"$f":"IF(COUNTA(NumericData[[#This Row],[Time 1 Data]:[Time 2 Data]])<1.01,\"\",(NumericData[[#This Row],[Time 2 Data]]-NumericData[[#This Row],[Time 1 Data]]))","v":""},{"$nulls":15},{"$f":"IF(NumericData[[#This Row],[Difference]]=\"\",\"Y\",\"N\")","v":"Y"}]
[175,{"$nulls":4},{"$f":"IF(COUNTA(NumericData[[#This Row],[Time 1 Data]:[Time 2 Data]])<1.01,\"\",(NumericData[[#This Row],[Time 2 Data]]-NumericData[[#This Row],[Time 1 Data]]))","v":""},{"$nulls":15},{"$f":"IF(NumericData[[#This Row],[Difference]]=\"\",\"Y\",\"N\")","v":"Y"}]
[176,{"$nulls":4},{"$f":"IF(COUNTA(NumericData[[#This Row],[Time 1 Data]:[Time 2 Data]])<1.01,\"\",(NumericData[[#This Row],[Time 2 Data]]-NumericData[[#This Row],[Time 1 Data]]))","v":""},{"$nulls":15},{"$f":"IF(NumericData[[#This Row],[Difference]]=\"\",\"Y\",\"N\")","v":"Y"}]
[177,{"$nulls":4},{"$f":"IF(COUNTA(NumericData[[#This Row],[Time 1 Data]:[Time 2 Data]])<1.01,\"\",(NumericData[[#This Row],[Time 2 Data]]-NumericData[[#This Row],[Time 1 Data]]))","v":""},{"$nulls":15},{"$f":"IF(NumericData[[#This Row],[Difference]]=\"\",\"Y\",\"N\")","v":"Y"}]
[178,{"$nulls":4},{"$f":"IF(COUNTA(NumericData[[#This Row],[Time 1 Data]:[Time 2 Data]])<1.01,\"\",(NumericData[[#This Row],[Time 2 Data]]-NumericData[[#This Row],[Time 1 Data]]))","v":""},{"$nulls":15},{"$f":"IF(NumericData[[#This Row],[Difference]]=\"\",\"Y\",\"N\")","v":"Y"}]
[179,{"$nulls":4},{"$f":"IF(COUNTA(NumericData[[#This Row],[Time 1 Data]:[Time 2 Data]])<1.01,\"\",(NumericData[[#This Row],[Time 2 Data]]-NumericData[[#This Row],[Time 1 Data]]))","v":""},{"$nulls":15},{"$f":"IF(NumericData[[#This Row],[Difference]]=\"\",\"Y\",\"N\")","v":"Y"}]
[180,{"$nulls":4},{"$f":"IF(COUNTA(NumericData[[#This Row],[Time 1 Data]:[Time 2 Data]])<1.01,\"\",(NumericData[[#This Row],[Time 2 Data]]-NumericData[[#This Row],[Time 1 Data]]))","v":""},{"$nulls":15},{"$f":"IF(NumericData[[#This Row],[Difference]]=\"\",\"Y\",\"N\")","v":"Y"}]
[181,{"$nulls":4},{"$f":"IF(COUNTA(NumericData[[#This Row],[Time 1 Data]:[Time 2 Data]])<1.01,\"\",(NumericData[[#This Row],[Time 2 Data]]-NumericData[[#This Row],[Time 1 Data]]))","v":""},{"$nulls":15},{"$f":"IF(NumericData[[#This Row],[Difference]]=\"\",\"Y\",\"N\")","v":"Y"}]
[182,{"$nulls":4},{"$f":"IF(COUNTA(NumericData[[#This Row],[Time 1 Data]:[Time 2 Data]])<1.01,\"\",(NumericData[[#This Row],[Time 2 Data]]-NumericData[[#This Row],[Time 1 Data]]))","v":""},{"$nulls":15},{"$f":"IF(NumericData[[#This Row],[Difference]]=\"\",\"Y\",\"N\")","v":"Y"}]
[183,{"$nulls":4},{"$f":"IF(COUNTA(NumericData[[#This Row],[Time 1 Data]:[Time 2 Data]])<1.01,\"\",(NumericData[[#This Row],[Time 2 Data]]-NumericData[[#This Row],[Time 1 Data]]))","v":""},{"$nulls":15},{"$f":"IF(NumericData[[#This Row],[Difference]]=\"\",\"Y\",\"N\")","v":"Y"}]
[184,{"$nulls":4},{"$f":"IF(COUNTA(NumericData[[#This Row],[Time 1 Data]:[Time 2 Data]])<1.01,\"\",(NumericData[[#This Row],[Time 2 Data]]-NumericData[[#This Row],[Time 1 Data]]))","v":""},{"$nulls":15},{"$f":"IF(NumericData[[#This Row],[Difference]]=\"\",\"Y\",\"N\")","v":"Y"}]
[185,{"$nulls":4},{"$f":"IF(COUNTA(NumericData[[#This Row],[Time 1 Data]:[Time 2 Data]])<1.01,\"\",(NumericData[[#This Row],[Time 2 Data]]-NumericData[[#This Row],[Time 1 Data]]))","v":""},{"$nulls":15},{"$f":"IF(NumericData[[#This Row],[Difference]]=\"\",\"Y\",\"N\")","v":"Y"}]
[186,{"$nulls":4},{"$f":"IF(COUNTA(NumericData[[#This Row],[Time 1 Data]:[Time 2 Data]])<1.01,\"\",(NumericData[[#This Row],[Time 2 Data]]-NumericData[[#This Row],[Time 1 Data]]))","v":""},{"$nulls":15},{"$f":"IF(NumericData[[#This Row],[Difference]]=\"\",\"Y\",\"N\")","v":"Y"}]
[187,{"$nulls":4},{"$f":"IF(COUNTA(NumericData[[#This Row],[Time 1 Data]:[Time 2 Data]])<1.01,\"\",(NumericData[[#This Row],[Time 2 Data]]-NumericData[[#This Row],[Time 1 Data]]))","v":""},{"$nulls":15},{"$f":"IF(NumericData[[#This Row],[Difference]]=\"\",\"Y\",\"N\")","v":"Y"}]
[188,{"$nulls":4},{"$f":"IF(COUNTA(NumericData[[#This Row],[Time 1 Data]:[Time 2 Data]])<1.01,\"\",(NumericData[[#This Row],[Time 2 Data]]-NumericData[[#This Row],[Time 1 Data]]))","v":""},{"$nulls":15},{"$f":"IF(NumericData[[#This Row],[Difference]]=\"\",\"Y\",\"N\")","v":"Y"}]
[189,{"$nulls":4},{"$f":"IF(COUNTA(NumericData[[#This Row],[Time 1 Data]:[Time 2 Data]])<1.01,\"\",(NumericData[[#This Row],[Time 2 Data]]-NumericData[[#This Row],[Time 1 Data]]))","v":""},{"$nulls":15},{"$f":"IF(NumericData[[#This Row],[Difference]]=\"\",\"Y\",\"N\")","v":"Y"}]
[190,{"$nulls":4},{"$f":"IF(COUNTA(NumericData[[#This Row],[Time 1 Data]:[Time 2 Data]])<1.01,\"\",(NumericData[[#This Row],[Time 2 Data]]-NumericData[[#This Row],[Time 1 Data]]))","v":""},{"$nulls":15},{"$f":"IF(NumericData[[#This Row],[Difference]]=\"\",\"Y\",\"N\")","v":"Y"}]
[191,{"$nulls":4},{"$f":"IF(COUNTA(NumericData[[#This Row],[Time 1 Data]:[Time 2 Data]])<1.01,\"\",(NumericData[[#This Row],[Time 2 Data]]-NumericData[[#This Row],[Time 1 Data]]))","v":""},{"$nulls":15},{"$f":"IF(NumericData[[#This Row],[Difference]]=\"\",\"Y\",\"N\")","v":"Y"}]
[192,{"$nulls":4},{"$f":"IF(COUNTA(NumericData[[#This Row],[Time 1 Data]:[Time 2 Data]])<1.01,\"\",(NumericData[[#This Row],[Time 2 Data]]-NumericData[[#This Row],[Time 1 Data]]))","v":""},{"$nulls":15},{"$f":"IF(NumericData[[#This Row],[Difference]]=\"\",\"Y\",\"N\")","v":"Y"}]
[193,{"$nulls":4},{"$f":"IF(COUNTA(NumericData[[#This Row],[Time 1 Data]:[Time 2 Data]])<1.01,\"\",(NumericData[[#This Row],[Time 2 Data]]-NumericData[[#This Row],[Time 1 Data]]))","v":""},{"$nulls":15},{"$f":"IF(NumericData[[#This Row],[Difference]]=\"\",\"Y\",\"N\")","v":"Y"}]
[194,{"$nulls":4},{"$f":"IF(COUNTA(NumericData[[#This Row],[Time 1 Data]:[Time 2 Data]])<1.01,\"\",(NumericData[[#This Row],[Time 2 Data]]-NumericData[[#This Row],[Time 1 Data]]))","v":""},{"$nulls":15},{"$f":"IF(NumericData[[#This Row],[Difference]]=\"\",\"Y\",\"N\")","v":"Y"}]
[195,{"$nulls":4},{"$f":"IF(COUNTA(NumericData[[#This Row],[Time 1 Data]:[Time 2 Data]])<1.01,\"\",(NumericData[[#This Row],[Time 2 Data]]-NumericData[[#This Row],[Time 1 Data]]))","v":""},{"$nulls":15},{"$f":"IF(NumericData[[#This Row],[Difference]]=\"\",\"Y\",\"N\")","v":"Y"}]
[196,{"$nulls":4},{"$f":"IF(COUNTA(NumericData[[#This Row],[Time 1 Data]:[Time 2 Data]])<1.01,\"\",(NumericData[[#This Row],[Time 2 Data]]-NumericData[[#This Row],[Time 1 Data]]))","v":""},{"$nulls":15},{"$f":"IF(NumericData[[#This Row],[Difference]]=\"\",\"Y\",\"N\")","v":"Y"}]
[197,{"$nulls":4},{"$f":"IF(COUNTA(NumericData[[#This Row],[Time 1 Data]:[Time 2 Data]])<1.01,\"\",(NumericData[[#This Row],[Time 2 Data]]-NumericData[[#This Row],[Time 1 Data]]))","v":""},{"$nulls":15},{"$f":"IF(NumericData[[#This Row],[Difference]]=\"\",\"Y\",\"N\")","v":"Y"}]
[198,{"$nulls":4},{"$f":"IF(COUNTA(NumericData[[#This Row],[Time 1 Data]:[Time 2 Data]])<1.01,\"\",(NumericData[[#This Row],[Time 2 Data]]-NumericData[[#This Row],[Time 1 Data]]))","v":""},{"$nulls":15},{"$f":"IF(NumericData[[#This Row],[Difference]]=\"\",\"Y\",\"N\")","v":"Y"}]
[199,{"$nulls":4},{"$f":"IF(COUNTA(NumericData[[#This Row],[Time 1 Data]:[Time 2 Data]])<1.01,\"\",(NumericData[[#This Row],[Time 2 Data]]-NumericData[[#This Row],[Time 1 Data]]))","v":""},{"$nulls":15},{"$f":"IF(NumericData[[#This Row],[Difference]]=\"\",\"Y\",\"N\")","v":"Y"}]
[200,{"$nulls":4},{"$f":"IF(COUNTA(NumericData[[#This Row],[Time 1 Data]:[Time 2 Data]])<1.01,\"\",(NumericData[[#This Row],[Time 2 Data]]-NumericData[[#This Row],[Time 1 Data]]))","v":""},{"$nulls":15},{"$f":"IF(NumericData[[#This Row],[Difference]]=\"\",\"Y\",\"N\")","v":"Y"}]
[201,{"$nulls":4},{"$f":"IF(COUNTA(NumericData[[#This Row],[Time 1 Data]:[Time 2 Data]])<1.01,\"\",(NumericData[[#This Row],[Time 2 Data]]-NumericData[[#This Row],[Time 1 Data]]))","v":""},{"$nulls":15},{"$f":"IF(NumericData[[#This Row],[Difference]]=\"\",\"Y\",\"N\")","v":"Y"}]
[202,{"$nulls":4},{"$f":"IF(COUNTA(NumericData[[#This Row],[Time 1 Data]:[Time 2 Data]])<1.01,\"\",(NumericData[[#This Row],[Time 2 Data]]-NumericData[[#This Row],[Time 1 Data]]))","v":""},{"$nulls":15},{"$f":"IF(NumericData[[#This Row],[Difference]]=\"\",\"Y\",\"N\")","v":"Y"}]
[203,{"$nulls":4},{"$f":"IF(COUNTA(NumericData[[#This Row],[Time 1 Data]:[Time 2 Data]])<1.01,\"\",(NumericData[[#This Row],[Time 2 Data]]-NumericData[[#This Row],[Time 1 Data]]))","v":""},{"$nulls":15},{"$f":"IF(NumericData[[#This Row],[Difference]]=\"\",\"Y\",\"N\")","v":"Y"}]
[204,{"$nulls":4},{"$f":"IF(COUNTA(NumericData[[#This Row],[Time 1 Data]:[Time 2 Data]])<1.01,\"\",(NumericData[[#This Row],[Time 2 Data]]-NumericData[[#This Row],[Time 1 Data]]))","v":""},{"$nulls":15},{"$f":"IF(NumericData[[#This Row],[Difference]]=\"\",\"Y\",\"N\")","v":"Y"}]
[205,{"$nulls":4},{"$f":"IF(COUNTA(NumericData[[#This Row],[Time 1 Data]:[Time 2 Data]])<1.01,\"\",(NumericData[[#This Row],[Time 2 Data]]-NumericData[[#This Row],[Time 1 Data]]))","v":""},{"$nulls":15},{"$f":"IF(NumericData[[#This Row],[Difference]]=\"\",\"Y\",\"N\")","v":"Y"}]
[206,{"$nulls":4},{"$f":"IF(COUNTA(NumericData[[#This Row],[Time 1 Data]:[Time 2 Data]])<1.01,\"\",(NumericData[[#This Row],[Time 2 Data]]-NumericData[[#This Row],[Time 1 Data]]))","v":""},{"$nulls":15},{"$f":"IF(NumericData[[#This Row],[Difference]]=\"\",\"Y\",\"N\")","v":"Y"}]
[207,{"$nulls":4},{"$f":"IF(COUNTA(NumericData[[#This Row],[Time 1 Data]:[Time 2 Data]])<1.01,\"\",(NumericData[[#This Row],[Time 2 Data]]-NumericData[[#This Row],[Time 1 Data]]))","v":""},{"$nulls":15},{"$f":"IF(NumericData[[#This Row],[Difference]]=\"\",\"Y\",\"N\")","v":"Y"}]
[208,{"$nulls":4},{"$f":"IF(COUNTA(NumericData[[#This Row],[Time 1 Data]:[Time 2 Data]])<1.01,\"\",(NumericData[[#This Row],[Time 2 Data]]-NumericData[[#This Row],[Time 1 Data]]))","v":""},{"$nulls":15},{"$f":"IF(NumericData[[#This Row],[Difference]]=\"\",\"Y\",\"N\")","v":"Y"}]
[209,{"$nulls":4},{"$f":"IF(COUNTA(NumericData[[#This Row],[Time 1 Data]:[Time 2 Data]])<1.01,\"\",(NumericData[[#This Row],[Time 2 Data]]-NumericData[[#This Row],[Time 1 Data]]))","v":""},{"$nulls":15},{"$f":"IF(NumericData[[#This Row],[Difference]]=\"\",\"Y\",\"N\")","v":"Y"}]
[210,{"$nulls":4},{"$f":"IF(COUNTA(NumericData[[#This Row],[Time 1 Data]:[Time 2 Data]])<1.01,\"\",(NumericData[[#This Row],[Time 2 Data]]-NumericData[[#This Row],[Time 1 Data]]))","v":""},{"$nulls":15},{"$f":"IF(NumericData[[#This Row],[Difference]]=\"\",\"Y\",\"N\")","v":"Y"}]
[211,{"$nulls":4},{"$f":"IF(COUNTA(NumericData[[#This Row],[Time 1 Data]:[Time 2 Data]])<1.01,\"\",(NumericData[[#This Row],[Time 2 Data]]-NumericData[[#This Row],[Time 1 Data]]))","v":""},{"$nulls":15},{"$f":"IF(NumericData[[#This Row],[Difference]]=\"\",\"Y\",\"N\")","v":"Y"}]
[212,{"$nulls":4},{"$f":"IF(COUNTA(NumericData[[#This Row],[Time 1 Data]:[Time 2 Data]])<1.01,\"\",(NumericData[[#This Row],[Time 2 Data]]-NumericData[[#This Row],[Time 1 Data]]))","v":""},{"$nulls":15},{"$f":"IF(NumericData[[#This Row],[Difference]]=\"\",\"Y\",\"N\")","v":"Y"}]
[213,{"$nulls":4},{"$f":"IF(COUNTA(NumericData[[#This Row],[Time 1 Data]:[Time 2 Data]])<1.01,\"\",(NumericData[[#This Row],[Time 2 Data]]-NumericData[[#This Row],[Time 1 Data]]))","v":""},{"$nulls":15},{"$f":"IF(NumericData[[#This Row],[Difference]]=\"\",\"Y\",\"N\")","v":"Y"}]
[214,{"$nulls":4},{"$f":"IF(COUNTA(NumericData[[#This Row],[Time 1 Data]:[Time 2 Data]])<1.01,\"\",(NumericData[[#This Row],[Time 2 Data]]-NumericData[[#This Row],[Time 1 Data]]))","v":""},{"$nulls":15},{"$f":"IF(NumericData[[#This Row],[Difference]]=\"\",\"Y\",\"N\")","v":"Y"}]
[215,{"$nulls":4},{"$f":"IF(COUNTA(NumericData[[#This Row],[Time 1 Data]:[Time 2 Data]])<1.01,\"\",(NumericData[[#This Row],[Time 2 Data]]-NumericData[[#This Row],[Time 1 Data]]))","v":""},{"$nulls":15},{"$f":"IF(NumericData[[#This Row],[Difference]]=\"\",\"Y\",\"N\")","v":"Y"}]
[216,{"$nulls":4},{"$f":"IF(COUNTA(NumericData[[#This Row],[Time 1 Data]:[Time 2 Data]])<1.01,\"\",(NumericData[[#This Row],[Time 2 Data]]-NumericData[[#This Row],[Time 1 Data]]))","v":""},{"$nulls":15},{"$f":"IF(NumericData[[#This Row],[Difference]]=\"\",\"Y\",\"N\")","v":"Y"}]
[217,{"$nulls":4},{"$f":"IF(COUNTA(NumericData[[#This Row],[Time 1 Data]:[Time 2 Data]])<1.01,\"\",(NumericData[[#This Row],[Time 2 Data]]-NumericData[[#This Row],[Time 1 Data]]))","v":""},{"$nulls":15},{"$f":"IF(NumericData[[#This Row],[Difference]]=\"\",\"Y\",\"N\")","v":"Y"}]
[218,{"$nulls":4},{"$f":"IF(COUNTA(NumericData[[#This Row],[Time 1 Data]:[Time 2 Data]])<1.01,\"\",(NumericData[[#This Row],[Time 2 Data]]-NumericData[[#This Row],[Time 1 Data]]))","v":""},{"$nulls":15},{"$f":"IF(NumericData[[#This Row],[Difference]]=\"\",\"Y\",\"N\")","v":"Y"}]
[219,{"$nulls":4},{"$f":"IF(COUNTA(NumericData[[#This Row],[Time 1 Data]:[Time 2 Data]])<1.01,\"\",(NumericData[[#This Row],[Time 2 Data]]-NumericData[[#This Row],[Time 1 Data]]))","v":""},{"$nulls":15},{"$f":"IF(NumericData[[#This Row],[Difference]]=\"\",\"Y\",\"N\")","v":"Y"}]
[220,{"$nulls":4},{"$f":"IF(COUNTA(NumericData[[#This Row],[Time 1 Data]:[Time 2 Data]])<1.01,\"\",(NumericData[[#This Row],[Time 2 Data]]-NumericData[[#This Row],[Time 1 Data]]))","v":""},{"$nulls":15},{"$f":"IF(NumericData[[#This Row],[Difference]]=\"\",\"Y\",\"N\")","v":"Y"}]
[221,{"$nulls":4},{"$f":"IF(COUNTA(NumericData[[#This Row],[Time 1 Data]:[Time 2 Data]])<1.01,\"\",(NumericData[[#This Row],[Time 2 Data]]-NumericData[[#This Row],[Time 1 Data]]))","v":""},{"$nulls":15},{"$f":"IF(NumericData[[#This Row],[Difference]]=\"\",\"Y\",\"N\")","v":"Y"}]
[222,{"$nulls":4},{"$f":"IF(COUNTA(NumericData[[#This Row],[Time 1 Data]:[Time 2 Data]])<1.01,\"\",(NumericData[[#This Row],[Time 2 Data]]-NumericData[[#This Row],[Time 1 Data]]))","v":""},{"$nulls":15},{"$f":"IF(NumericData[[#This Row],[Difference]]=\"\",\"Y\",\"N\")","v":"Y"}]
[223,{"$nulls":4},{"$f":"IF(COUNTA(NumericData[[#This Row],[Time 1 Data]:[Time 2 Data]])<1.01,\"\",(NumericData[[#This Row],[Time 2 Data]]-NumericData[[#This Row],[Time 1 Data]]))","v":""},{"$nulls":15},{"$f":"IF(NumericData[[#This Row],[Difference]]=\"\",\"Y\",\"N\")","v":"Y"}]
[224,{"$nulls":4},{"$f":"IF(COUNTA(NumericData[[#This Row],[Time 1 Data]:[Time 2 Data]])<1.01,\"\",(NumericData[[#This Row],[Time 2 Data]]-NumericData[[#This Row],[Time 1 Data]]))","v":""},{"$nulls":15},{"$f":"IF(NumericData[[#This Row],[Difference]]=\"\",\"Y\",\"N\")","v":"Y"}]
[225,{"$nulls":4},{"$f":"IF(COUNTA(NumericData[[#This Row],[Time 1 Data]:[Time 2 Data]])<1.01,\"\",(NumericData[[#This Row],[Time 2 Data]]-NumericData[[#This Row],[Time 1 Data]]))","v":""},{"$nulls":15},{"$f":"IF(NumericData[[#This Row],[Difference]]=\"\",\"Y\",\"N\")","v":"Y"}]
[226,{"$nulls":4},{"$f":"IF(COUNTA(NumericData[[#This Row],[Time 1 Data]:[Time 2 Data]])<1.01,\"\",(NumericData[[#This Row],[Time 2 Data]]-NumericData[[#This Row],[Time 1 Data]]))","v":""},{"$nulls":15},{"$f":"IF(NumericData[[#This Row],[Difference]]=\"\",\"Y\",\"N\")","v":"Y"}]
[227,{"$nulls":4},{"$f":"IF(COUNTA(NumericData[[#This Row],[Time 1 Data]:[Time 2 Data]])<1.01,\"\",(NumericData[[#This Row],[Time 2 Data]]-NumericData[[#This Row],[Time 1 Data]]))","v":""},{"$nulls":15},{"$f":"IF(NumericData[[#This Row],[Difference]]=\"\",\"Y\",\"N\")","v":"Y"}]
[228,{"$nulls":4},{"$f":"IF(COUNTA(NumericData[[#This Row],[Time 1 Data]:[Time 2 Data]])<1.01,\"\",(NumericData[[#This Row],[Time 2 Data]]-NumericData[[#This Row],[Time 1 Data]]))","v":""},{"$nulls":15},{"$f":"IF(NumericData[[#This Row],[Difference]]=\"\",\"Y\",\"N\")","v":"Y"}]
[229,{"$nulls":4},{"$f":"IF(COUNTA(NumericData[[#This Row],[Time 1 Data]:[Time 2 Data]])<1.01,\"\",(NumericData[[#This Row],[Time 2 Data]]-NumericData[[#This Row],[Time 1 Data]]))","v":""},{"$nulls":15},{"$f":"IF(NumericData[[#This Row],[Difference]]=\"\",\"Y\",\"N\")","v":"Y"}]
[230,{"$nulls":4},{"$f":"IF(COUNTA(NumericData[[#This Row],[Time 1 Data]:[Time 2 Data]])<1.01,\"\",(NumericData[[#This Row],[Time 2 Data]]-NumericData[[#This Row],[Time 1 Data]]))","v":""},{"$nulls":15},{"$f":"IF(NumericData[[#This Row],[Difference]]=\"\",\"Y\",\"N\")","v":"Y"}]
[231,{"$nulls":4},{"$f":"IF(COUNTA(NumericData[[#This Row],[Time 1 Data]:[Time 2 Data]])<1.01,\"\",(NumericData[[#This Row],[Time 2 Data]]-NumericData[[#This Row],[Time 1 Data]]))","v":""},{"$nulls":15},{"$f":"IF(NumericData[[#This Row],[Difference]]=\"\",\"Y\",\"N\")","v":"Y"}]
[232,{"$nulls":4},{"$f":"IF(COUNTA(NumericData[[#This Row],[Time 1 Data]:[Time 2 Data]])<1.01,\"\",(NumericData[[#This Row],[Time 2 Data]]-NumericData[[#This Row],[Time 1 Data]]))","v":""},{"$nulls":15},{"$f":"IF(NumericData[[#This Row],[Difference]]=\"\",\"Y\",\"N\")","v":"Y"}]
[233,{"$nulls":4},{"$f":"IF(COUNTA(NumericData[[#This Row],[Time 1 Data]:[Time 2 Data]])<1.01,\"\",(NumericData[[#This Row],[Time 2 Data]]-NumericData[[#This Row],[Time 1 Data]]))","v":""},{"$nulls":15},{"$f":"IF(NumericData[[#This Row],[Difference]]=\"\",\"Y\",\"N\")","v":"Y"}]
[234,{"$nulls":4},{"$f":"IF(COUNTA(NumericData[[#This Row],[Time 1 Data]:[Time 2 Data]])<1.01,\"\",(NumericData[[#This Row],[Time 2 Data]]-NumericData[[#This Row],[Time 1 Data]]))","v":""},{"$nulls":15},{"$f":"IF(NumericData[[#This Row],[Difference]]=\"\",\"Y\",\"N\")","v":"Y"}]
[235,{"$nulls":4},{"$f":"IF(COUNTA(NumericData[[#This Row],[Time 1 Data]:[Time 2 Data]])<1.01,\"\",(NumericData[[#This Row],[Time 2 Data]]-NumericData[[#This Row],[Time 1 Data]]))","v":""},{"$nulls":15},{"$f":"IF(NumericData[[#This Row],[Difference]]=\"\",\"Y\",\"N\")","v":"Y"}]
[236,{"$nulls":4},{"$f":"IF(COUNTA(NumericData[[#This Row],[Time 1 Data]:[Time 2 Data]])<1.01,\"\",(NumericData[[#This Row],[Time 2 Data]]-NumericData[[#This Row],[Time 1 Data]]))","v":""},{"$nulls":15},{"$f":"IF(NumericData[[#This Row],[Difference]]=\"\",\"Y\",\"N\")","v":"Y"}]
[237,{"$nulls":4},{"$f":"IF(COUNTA(NumericData[[#This Row],[Time 1 Data]:[Time 2 Data]])<1.01,\"\",(NumericData[[#This Row],[Time 2 Data]]-NumericData[[#This Row],[Time 1 Data]]))","v":""},{"$nulls":15},{"$f":"IF(NumericData[[#This Row],[Difference]]=\"\",\"Y\",\"N\")","v":"Y"}]
[238,{"$nulls":4},{"$f":"IF(COUNTA(NumericData[[#This Row],[Time 1 Data]:[Time 2 Data]])<1.01,\"\",(NumericData[[#This Row],[Time 2 Data]]-NumericData[[#This Row],[Time 1 Data]]))","v":""},{"$nulls":15},{"$f":"IF(NumericData[[#This Row],[Difference]]=\"\",\"Y\",\"N\")","v":"Y"}]
[239,{"$nulls":4},{"$f":"IF(COUNTA(NumericData[[#This Row],[Time 1 Data]:[Time 2 Data]])<1.01,\"\",(NumericData[[#This Row],[Time 2 Data]]-NumericData[[#This Row],[Time 1 Data]]))","v":""},{"$nulls":15},{"$f":"IF(NumericData[[#This Row],[Difference]]=\"\",\"Y\",\"N\")","v":"Y"}]
[240,{"$nulls":4},{"$f":"IF(COUNTA(NumericData[[#This Row],[Time 1 Data]:[Time 2 Data]])<1.01,\"\",(NumericData[[#This Row],[Time 2 Data]]-NumericData[[#This Row],[Time 1 Data]]))","v":""},{"$nulls":15},{"$f":"IF(NumericData[[#This Row],[Difference]]=\"\",\"Y\",\"N\")","v":"Y"}]
[241,{"$nulls":4},{"$f":"IF(COUNTA(NumericData[[#This Row],[Time 1 Data]:[Time 2 Data]])<1.01,\"\",(NumericData[[#This Row],[Time 2 Data]]-NumericData[[#This Row],[Time 1 Data]]))","v":""},{"$nulls":15},{"$f":"IF(NumericData[[#This Row],[Difference]]=\"\",\"Y\",\"N\")","v":"Y"}]
[242,{"$nulls":4},{"$f":"IF(COUNTA(NumericData[[#This Row],[Time 1 Data]:[Time 2 Data]])<1.01,\"\",(NumericData[[#This Row],[Time 2 Data]]-NumericData[[#This Row],[Time 1 Data]]))","v":""},{"$nulls":15},{"$f":"IF(NumericData[[#This Row],[Difference]]=\"\",\"Y\",\"N\")","v":"Y"}]
[243,{"$nulls":4},{"$f":"IF(COUNTA(NumericData[[#This Row],[Time 1 Data]:[Time 2 Data]])<1.01,\"\",(NumericData[[#This Row],[Time 2 Data]]-NumericData[[#This Row],[Time 1 Data]]))","v":""},{"$nulls":15},{"$f":"IF(NumericData[[#This Row],[Difference]]=\"\",\"Y\",\"N\")","v":"Y"}]
[244,{"$nulls":4},{"$f":"IF(COUNTA(NumericData[[#This Row],[Time 1 Data]:[Time 2 Data]])<1.01,\"\",(NumericData[[#This Row],[Time 2 Data]]-NumericData[[#This Row],[Time 1 Data]]))","v":""},{"$nulls":15},{"$f":"IF(NumericData[[#This Row],[Difference]]=\"\",\"Y\",\"N\")","v":"Y"}]
[245,{"$nulls":4},{"$f":"IF(COUNTA(NumericData[[#This Row],[Time 1 Data]:[Time 2 Data]])<1.01,\"\",(NumericData[[#This Row],[Time 2 Data]]-NumericData[[#This Row],[Time 1 Data]]))","v":""},{"$nulls":15},{"$f":"IF(NumericData[[#This Row],[Difference]]=\"\",\"Y\",\"N\")","v":"Y"}]
[246,{"$nulls":4},{"$f":"IF(COUNTA(NumericData[[#This Row],[Time 1 Data]:[Time 2 Data]])<1.01,\"\",(NumericData[[#This Row],[Time 2 Data]]-NumericData[[#This Row],[Time 1 Data]]))","v":""},{"$nulls":15},{"$f":"IF(NumericData[[#This Row],[Difference]]=\"\",\"Y\",\"N\")","v":"Y"}]
[247,{"$nulls":4},{"$f":"IF(COUNTA(NumericData[[#This Row],[Time 1 Data]:[Time 2 Data]])<1.01,\"\",(NumericData[[#This Row],[Time 2 Data]]-NumericData[[#This Row],[Time 1 Data]]))","v":""},{"$nulls":15},{"$f":"IF(NumericData[[#This Row],[Difference]]=\"\",\"Y\",\"N\")","v":"Y"}]
[248,{"$nulls":4},{"$f":"IF(COUNTA(NumericData[[#This Row],[Time 1 Data]:[Time 2 Data]])<1.01,\"\",(NumericData[[#This Row],[Time 2 Data]]-NumericData[[#This Row],[Time 1 Data]]))","v":""},{"$nulls":15},{"$f":"IF(NumericData[[#This Row],[Difference]]=\"\",\"Y\",\"N\")","v":"Y"}]
[249,{"$nulls":4},{"$f":"IF(COUNTA(NumericData[[#This Row],[Time 1 Data]:[Time 2 Data]])<1.01,\"\",(NumericData[[#This Row],[Time 2 Data]]-NumericData[[#This Row],[Time 1 Data]]))","v":""},{"$nulls":15},{"$f":"IF(NumericData[[#This Row],[Difference]]=\"\",\"Y\",\"N\")","v":"Y"}]
[250,{"$nulls":4},{"$f":"IF(COUNTA(NumericData[[#This Row],[Time 1 Data]:[Time 2 Data]])<1.01,\"\",(NumericData[[#This Row],[Time 2 Data]]-NumericData[[#This Row],[Time 1 Data]]))","v":""},{"$nulls":15},{"$f":"IF(NumericData[[#This Row],[Difference]]=\"\",\"Y\",\"N\")","v":"Y"}]

{"sheet":"Qualitative Data Template","index":2,"n_rows":258,"n_cols":27,"rows_kept":258,"merged":[[0,0,0,5],[0,8,0,18],[1,0,1,5],[2,0,2,5],[3,2,3,3],[3,4,4,4],[3,5,4,5],[4,2,4,3],[4,8,4,16],[5,8,5,10],[5,13,5,16],[6,0,6,5],[6,13,7,16],[9,8,9,11],[9,13,9,16]]}
["Data Collation Sheet: Qualitative Template",{"$nulls":7},"2. DATA ANALYSIS INPUTS  - Enter Assessment levels (highest to lowest):",{"$nulls":11},1]
["This spreadsheet can be used for any assessment which yields a qualitative result (e.g. interpretations, grades, quality ratings etc.)",{"$nulls":7},"Highest",{"$nulls":8},"Lowest",null,null,2]
["1. INFORMATION",{"$nulls":19},3]
[null,"Assessment:",null,null,"Assessment times:",{"$nulls":15},4]
[null,"Other information:",{"$nulls":6},"4. SUMMARY",{"$nulls":11},5]
[{"$nulls":8},"Most Common Level",{"$nulls":4},"Comments"]
["3. DATA",{"$nulls":7},{"$f":"QualitativeData[[#Headers],[Time 1 Data]]","v":"Time 1 Data"},{"$f":"QualitativeData[[#Headers],[Time 2 Data]]","v":"Time 2 Data"},"Av. Levels Up/Down",{"$nulls":11},"Levels"]
["#","Student","Other information (e.g. class)","Time 1 Data","Time 2 Data","# of Levels Up/Down",null,null,{"$f":"IF(SUM(J12:J21)=0,\"\",(INDEX($I$12:$I$21,(MATCH(MAX($J$12:$J$21),$J$12:$J$21,0)),1)))","v":""},{"$f":"IF(SUM(K12:K21)=0,\"\",(INDEX($I$12:$I$21,(MATCH(MAX($K$12:$K$21),$K$12:$K$21,0)),1)))","v":""},{"$f":"IFERROR(AVERAGE($F$9:$F$258),\"\")","v":""},{"$nulls":9},"Is dif cell blank?","Student","Time 1","Time 2",null,"Labels","Dummy values"]
[1,{"$nulls":4},{"$f":"IFERROR((INDEX($U$1:$U$5,(MATCH(D9,$I$3:$R$3,0)),1)-(INDEX($U$1:$U$5,(MATCH(E9,$I$3:$R$3,0)),1))),\"\")","v":""},{"$nulls":14},{"$f":"IF(QualitativeData[[#This Row],['# of Levels Up/Down]]=\"\",\"Y\",\"N\")","v":"Y"},{"$f":"IF(QualitativeData[[#This Row],[Student]]=\"\",\"\",QualitativeData[[#This Row],[Student]])","v":""},{"$f":"IF(QualitativeData[[#This Row],[Time 1 Data]]=\"\",\"\",(INDEX($AA$10:$AA$19,(MATCH(QualitativeData[[#This Row],[Time 1 Data]],$Z$10:$Z$19,0)),1)))","v":""},{"$f":"IF(QualitativeData[[#This Row],[Time 2 Data]]=\"\",\"\",(INDEX($AA$10:$AA$19,(MATCH(QualitativeData[[#This Row],[Time 2 Data]],$Z$10:$Z$19,0)),1)))","v":""}]
[2,{"$nulls":4},"",null,null,"Number of students across levels",{"$nulls":4},"% Students Across Levels",{"$nulls":6},{"$f":"IF(QualitativeData[[#This Row],['# of Levels Up/Down]]=\"\",\"Y\",\"N\")","v":"Y"},{"$f":"IF(QualitativeData[[#This Row],[Student]]=\"\",\"\",QualitativeData[[#This Row],[Student]])","v":""},{"$f":"IF(QualitativeData[[#This Row],[Time 1 Data]]=\"\",\"\",(INDEX($AA$10:$AA$19,(MATCH(QualitativeData[[#This Row],[Time 1 Data]],$Z$10:$Z$19,0)),1)))","v":""},{"$f":"IF(QualitativeData[[#This Row],[Time 2 Data]]=\"\",\"\",(INDEX($AA$10:$AA$19,(MATCH(QualitativeData[[#This Row],[Time 2 Data]],$Z$10:$Z$19,0)),1)))","v":""},null,{"$f":"I3","v":0},10]
[3,{"$nulls":4},"",null,null,"Level",{"$f":"QualitativeData[[#Headers],[Time 1 Data]]","v":"Time 1 Data"},{"$f":"QualitativeData[[#Headers],[Time 2 Data]]","v":"Time 2 Data"},{"$f":"NumericData[[#Headers],[Difference]]","v":"Difference"},null,"Level",{"$f":"QualitativeData[[#Headers],[Time 1 Data]]","v":"Time 1 Data"},{"$f":"QualitativeData[[#Headers],[Time 2 Data]]","v":"Time 2 Data"},{"$f":"NumericData[[#Headers],[Difference]]","v":"Difference"},{"$nulls":3},{"$f":"IF(QualitativeData[[#This Row],['# of Levels Up/Down]]=\"\",\"Y\",\"N\")","v":"Y"},{"$f":"IF(QualitativeData[[#This Row],[Student]]=\"\",\"\",QualitativeData[[#This Row],[Student]])","v":""},{"$f":"IF(QualitativeData[[#This Row],[Time 1 Data]]=\"\",\"\",(INDEX($AA$10:$AA$19,(MATCH(QualitativeData[[#This Row],[Time 1 Data]],$Z$10:$Z$19,0)),1)))","v":""},{"$f":"IF(QualitativeData[[#This Row],[Time 2 Data]]=\"\",\"\",(INDEX($AA$10:$AA$19,(MATCH(QualitativeData[[#This Row],[Time 2 Data]],$Z$10:$Z$19,0)),1)))","v":""},null,{"$f":"J3","v":0},9]
[4,{"$nulls":4},"",null,1,{"$f":"I3","v":0},{"$f":"IFERROR(COUNTIF($D$9:$D$258,$I12),\"\")","v":0},{"$f":"IFERROR(COUNTIF($E$9:$E$258,$I12),\"\")","v":0},{"$f":"K12-J12","v":0},null,{"$f":"I12","v":0},{"$f":"IFERROR(J12/SUM($J$12:$J$21),\"\")","v":""},{"$f":"IFERROR(K12/SUM($J$12:$J$21),\"\")","v":""},{"$f":"IFERROR(P12-O12,\"\")","v":""},{"$nulls":3},{"$f":"IF(QualitativeData[[#This Row],['# of Levels Up/Down]]=\"\",\"Y\",\"N\")","v":"Y"},{"$f":"IF(QualitativeData[[#This Row],[Student]]=\"\",\"\",QualitativeData[[#This Row],[Student]])","v":""},{"$f":"IF(QualitativeData[[#This Row],[Time 1 Data]]=\"\",\"\",(INDEX($AA$10:$AA$19,(MATCH(QualitativeData[[#This Row],[Time 1 Data]],$Z$10:$Z$19,0)),1)))","v":""},{"$f":"IF(QualitativeData[[#This Row],[Time 2 Data]]=\"\",\"\",(INDEX($AA$10:$AA$19,(MATCH(QualitativeData[[#This Row],[Time 2 Data]],$Z$10:$Z$19,0)),1)))","v":""},null,{"$f":"K3","v":0},8]
[5,{"$nulls":4},"",null,2,{"$f":"J3","v":0},0,0,0,null,0,"","","",{"$nulls":3},{"$f":"IF(QualitativeData[[#This Row],['# of Levels Up/Down]]=\"\",\"Y\",\"N\")","v":"Y"},{"$f":"IF(QualitativeData[[#This Row],[Student]]=\"\",\"\",QualitativeData[[#This Row],[Student]])","v":""},{"$f":"IF(QualitativeData[[#This Row],[Time 1 Data]]=\"\",\"\",(INDEX($AA$10:$AA$19,(MATCH(QualitativeData[[#This Row],[Time 1 Data]],$Z$10:$Z$19,0)),1)))","v":""},{"$f":"IF(QualitativeData[[#This Row],[Time 2 Data]]=\"\",\"\",(INDEX($AA$10:$AA$19,(MATCH(QualitativeData[[#This Row],[Time 2 Data]],$Z$10:$Z$19,0)),1)))","v":""},null,{"$f":"L3","v":0},7]
[6,{"$nulls":4},"",null,3,{"$f":"K3","v":0},0,0,0,null,0,"","","",{"$nulls":3},{"$f":"IF(QualitativeData[[#This Row],['# of Levels Up/Down]]=\"\",\"Y\",\"N\")","v":"Y"},{"$f":"IF(QualitativeData[[#This Row],[Student]]=\"\",\"\",QualitativeData[[#This Row],[Student]])","v":""},{"$f":"IF(QualitativeData[[#This Row],[Time 1 Data]]=\"\",\"\",(INDEX($AA$10:$AA$19,(MATCH(QualitativeData[[#This Row],[Time 1 Data]],$Z$10:$Z$19,0)),1)))","v":""},{"$f":"IF(QualitativeData[[#This Row],[Time 2 Data]]=\"\",\"\",(INDEX($AA$10:$AA$19,(MATCH(QualitativeData[[#This Row],[Time 2 Data]],$Z$10:$Z$19,0)),1)))","v":""},null,{"$f":"M3","v":0},6]
[7,{"$nulls":4},"",null,4,{"$f":"L3","v":0},0,0,0,null,0,"","","",{"$nulls":3},{"$f":"IF(QualitativeData[[#This Row],['# of Levels Up/Down]]=\"\",\"Y\",\"N\")","v":"Y"},{"$f":"IF(QualitativeData[[#This Row],[Student]]=\"\",\"\",QualitativeData[[#This Row],[Student]])","v":""},{"$f":"IF(QualitativeData[[#This Row],[Time 1 Data]]=\"\",\"\",(INDEX($AA$10:$AA$19,(MATCH(QualitativeData[[#This Row],[Time 1 Data]],$Z$10:$Z$19,0)),1)))","v":""},{"$f":"IF(QualitativeData[[#This Row],[Time 2 Data]]=\"\",\"\",(INDEX($AA$10:$AA$19,(MATCH(QualitativeData[[#This Row],[Time 2 Data]],$Z$10:$Z$19,0)),1)))","v":""},null,{"$f":"N3","v":0},5]
[8,{"$nulls":4},"",null,5,{"$f":"M3","v":0},0,0,0,null,0,"","","",{"$nulls":3},{"$f":"IF(QualitativeData[[#This Row],['# of Levels Up/Down]]=\"\",\"Y\",\"N\")","v":"Y"},{"$f":"IF(QualitativeData[[#This Row],[Student]]=\"\",\"\",QualitativeData[[#This Row],[Student]])","v":""},{"$f":"IF(QualitativeData[[#This Row],[Time 1 Data]]=\"\",\"\",(INDEX($AA$10:$AA$19,(MATCH(QualitativeData[[#This Row],[Time 1 Data]],$Z$10:$Z$19,0)),1)))","v":""},{"$f":"IF(QualitativeData[[#This Row],[Time 2 Data]]=\"\",\"\",(INDEX($AA$10:$AA$19,(MATCH(QualitativeData[[#This Row],[Time 2 Data]],$Z$10:$Z$19,0)),1)))","v":""},null,{"$f":"O3","v":0},4]
[9,{"$nulls":4},"",null,6,{"$f":"N3","v":0},0,0,0,null,0,"","","",{"$nulls":3},{"$f":"IF(QualitativeData[[#This Row],['# of Levels Up/Down]]=\"\",\"Y\",\"N\")","v":"Y"},{"$f":"IF(QualitativeData[[#This Row],[Student]]=\"\",\"\",QualitativeData[[#This Row],[Student]])","v":""},{"$f":"IF(QualitativeData[[#This Row],[Time 1 Data]]=\"\",\"\",(INDEX($AA$10:$AA$19,(MATCH(QualitativeData[[#This Row],[Time 1 Data]],$Z$10:$Z$19,0)),1)))","v":""},{"$f":"IF(QualitativeData[[#This Row],[Time 2 Data]]=\"\",\"\",(INDEX($AA$10:$AA$19,(MATCH(QualitativeData[[#This Row],[Time 2 Data]],$Z$10:$Z$19,0)),1)))","v":""},null,{"$f":"P3","v":0},3]
[10,{"$nulls":4},"",null,7,{"$f":"O3","v":0},0,0,0,null,0,"","","",{"$nulls":3},{"$f":"IF(QualitativeData[[#This Row],['# of Levels Up/Down]]=\"\",\"Y\",\"N\")","v":"Y"},{"$f":"IF(QualitativeData[[#This Row],[Student]]=\"\",\"\",QualitativeData[[#This Row],[Student]])","v":""},{"$f":"IF(QualitativeData[[#This Row],[Time 1 Data]]=\"\",\"\",(INDEX($AA$10:$AA$19,(MATCH(QualitativeData[[#This Row],[Time 1 Data]],$Z$10:$Z$19,0)),1)))","v":""},{"$f":"IF(QualitativeData[[#This Row],[Time 2 Data]]=\"\",\"\",(INDEX($AA$10:$AA$19,(MATCH(QualitativeData[[#This Row],[Time 2 Data]],$Z$10:$Z$19,0)),1)))","v":""},null,{"$f":"Q3","v":0},2]
[11,{"$nulls":4},"",null,8,{"$f":"P3","v":0},0,0,0,null,0,"","","",{"$nulls":3},{"$f":"IF(QualitativeData[[#This Row],['# of Levels Up/Down]]=\"\",\"Y\",\"N\")","v":"Y"},{"$f":"IF(QualitativeData[[#This Row],[Student]]=\"\",\"\",QualitativeData[[#This Row],[Student]])","v":""},{"$f":"IF(QualitativeData[[#This Row],[Time 1 Data]]=\"\",\"\",(INDEX($AA$10:$AA$19,(MATCH(QualitativeData[[#This Row],[Time 1 Data]],$Z$10:$Z$19,0)),1)))","v":""},{"$f":"IF(QualitativeData[[#This Row],[Time 2 Data]]=\"\",\"\",(INDEX($AA$10:$AA$19,(MATCH(QualitativeData[[#This Row],[Time 2 Data]],$Z$10:$Z$19,0)),1)))","v":""},null,{"$f":"R3","v":0},1]
[12,{"$nulls":4},"",null,9,{"$f":"Q3","v":0},0,0,0,null,0,"","","",{"$nulls":3},{"$f":"IF(QualitativeData[[#This Row],['# of Levels Up/Down]]=\"\",\"Y\",\"N\")","v":"Y"},{"$f":"IF(QualitativeData[[#This Row],[Student]]=\"\",\"\",QualitativeData[[#This Row],[Student]])","v":""},{"$f":"IF(QualitativeData[[#This Row],[Time 1 Data]]=\"\",\"\",(INDEX($AA$10:$AA$19,(MATCH(QualitativeData[[#This Row],[Time 1 Data]],$Z$10:$Z$19,0)),1)))","v":""},{"$f":"IF(QualitativeData[[#This Row],[Time 2 Data]]=\"\",\"\",(INDEX($AA$10:$AA$19,(MATCH(QualitativeData[[#This Row],[Time 2 Data]],$Z$10:$Z$19,0)),1)))","v":""}]
[13,{"$nulls":4},"",null,10,{"$f":"R3","v":0},0,0,0,null,0,"","","",{"$nulls":3},{"$f":"IF(QualitativeData[[#This Row],['# of Levels Up/Down]]=\"\",\"Y\",\"N\")","v":"Y"},{"$f":"IF(QualitativeData[[#This Row],[Student]]=\"\",\"\",QualitativeData[[#This Row],[Student]])","v":""},{"$f":"IF(QualitativeData[[#This Row],[Time 1 Data]]=\"\",\"\",(INDEX($AA$10:$AA$19,(MATCH(QualitativeData[[#This Row],[Time 1 Data]],$Z$10:$Z$19,0)),1)))","v":""},{"$f":"IF(QualitativeData[[#This Row],[Time 2 Data]]=\"\",\"\",(INDEX($AA$10:$AA$19,(MATCH(QualitativeData[[#This Row],[Time 2 Data]],$Z$10:$Z$19,0)),1)))","v":""}]
[14,{"$nulls":4},"",{"$nulls":14},{"$f":"IF(QualitativeData[[#This Row],['# of Levels Up/Down]]=\"\",\"Y\",\"N\")","v":"Y"},{"$f":"IF(QualitativeData[[#This Row],[Student]]=\"\",\"\",QualitativeData[[#This Row],[Student]])","v":""},{"$f":"IF(QualitativeData[[#This Row],[Time 1 Data]]=\"\",\"\",(INDEX($AA$10:$AA$19,(MATCH(QualitativeData[[#This Row],[Time 1 Data]],$Z$10:$Z$19,0)),1)))","v":""},{"$f":"IF(QualitativeData[[#This Row],[Time 2 Data]]=\"\",\"\",(INDEX($AA$10:$AA$19,(MATCH(QualitativeData[[#This Row],[Time 2 Data]],$Z$10:$Z$19,0)),1)))","v":""}]
[15,{"$nulls":4},"",{"$nulls":14},{"$f":"IF(QualitativeData[[#This Row],['# of Levels Up/Down]]=\"\",\"Y\",\"N\")","v":"Y"},{"$f":"IF(QualitativeData[[#This Row],[Student]]=\"\",\"\",QualitativeData[[#This Row],[Student]])","v":""},{"$f":"IF(QualitativeData[[#This Row],[Time 1 Data]]=\"\",\"\",(INDEX($AA$10:$AA$19,(MATCH(QualitativeData[[#This Row],[Time 1 Data]],$Z$10:$Z$19,0)),1)))","v":""},{"$f":"IF(QualitativeData[[#This Row],[Time 2 Data]]=\"\",\"\",(INDEX($AA$10:$AA$19,(MATCH(QualitativeData[[#This Row],[Time 2 Data]],$Z$10:$Z$19,0)),1)))","v":""}]
[16,{"$nulls":4},"",{"$nulls":14},{"$f":"IF(QualitativeData[[#This Row],['# of Levels Up/Down]]=\"\",\"Y\",\"N\")","v":"Y"},{"$f":"IF(QualitativeData[[#This Row],[Student]]=\"\",\"\",QualitativeData[[#This Row],[Student]])","v":""},{"$f":"IF(QualitativeData[[#This Row],[Time 1 Data]]=\"\",\"\",(INDEX($AA$10:$AA$19,(MATCH(QualitativeData[[#This Row],[Time 1 Data]],$Z$10:$Z$19,0)),1)))","v":""},{"$f":"IF(QualitativeData[[#This Row],[Time 2 Data]]=\"\",\"\",(INDEX($AA$10:$AA$19,(MATCH(QualitativeData[[#This Row],[Time 2 Data]],$Z$10:$Z$19,0)),1)))","v":""}]
[17,{"$nulls":4},"",{"$nulls":14},{"$f":"IF(QualitativeData[[#This Row],['# of Levels Up/Down]]=\"\",\"Y\",\"N\")","v":"Y"},{"$f":"IF(QualitativeData[[#This Row],[Student]]=\"\",\"\",QualitativeData[[#This Row],[Student]])","v":""},{"$f":"IF(QualitativeData[[#This Row],[Time 1 Data]]=\"\",\"\",(INDEX($AA$10:$AA$19,(MATCH(QualitativeData[[#This Row],[Time 1 Data]],$Z$10:$Z$19,0)),1)))","v":""},{"$f":"IF(QualitativeData[[#This Row],[Time 2 Data]]=\"\",\"\",(INDEX($AA$10:$AA$19,(MATCH(QualitativeData[[#This Row],[Time 2 Data]],$Z$10:$Z$19,0)),1)))","v":""}]
[18,{"$nulls":4},"",{"$nulls":14},{"$f":"IF(QualitativeData[[#This Row],['# of Levels Up/Down]]=\"\",\"Y\",\"N\")","v":"Y"},{"$f":"IF(QualitativeData[[#This Row],[Student]]=\"\",\"\",QualitativeData[[#This Row],[Student]])","v":""},{"$f":"IF(QualitativeData[[#This Row],[Time 1 Data]]=\"\",\"\",(INDEX($AA$10:$AA$19,(MATCH(QualitativeData[[#This Row],[Time 1 Data]],$Z$10:$Z$19,0)),1)))","v":""},{"$f":"IF(QualitativeData[[#This Row],[Time 2 Data]]=\"\",\"\",(INDEX($AA$10:$AA$19,(MATCH(QualitativeData[[#This Row],[Time 2 Data]],$Z$10:$Z$19,0)),1)))","v":""}]
[19,{"$nulls":4},"",{"$nulls":14},{"$f":"IF(QualitativeData[[#This Row],['# of Levels Up/Down]]=\"\",\"Y\",\"N\")","v":"Y"},{"$f":"IF(QualitativeData[[#This Row],[Student]]=\"\",\"\",QualitativeData[[#This Row],[Student]])","v":""},{"$f":"IF(QualitativeData[[#This Row],[Time 1 Data]]=\"\",\"\",(INDEX($AA$10:$AA$19,(MATCH(QualitativeData[[#This Row],[Time 1 Data]],$Z$10:$Z$19,0)),1)))","v":""},{"$f":"IF(QualitativeData[[#This Row],[Time 2 Data]]=\"\",\"\",(INDEX($AA$10:$AA$19,(MATCH(QualitativeData[[#This Row],[Time 2 Data]],$Z$10:$Z$19,0)),1)))","v":""}]
[20,{"$nulls":4},"",{"$nulls":14},{"$f":"IF(QualitativeData[[#This Row],['# of Levels Up/Down]]=\"\",\"Y\",\"N\")","v":"Y"},{"$f":"IF(QualitativeData[[#This Row],[Student]]=\"\",\"\",QualitativeData[[#This Row],[Student]])","v":""},{"$f":"IF(QualitativeData[[#This Row],[Time 1 Data]]=\"\",\"\",(INDEX($AA$10:$AA$19,(MATCH(QualitativeData[[#This Row],[Time 1 Data]],$Z$10:$Z$19,0)),1)))","v":""},{"$f":"IF(QualitativeData[[#This Row],[Time 2 Data]]=\"\",\"\",(INDEX($AA$10:$AA$19,(MATCH(QualitativeData[[#This Row],[Time 2 Data]],$Z$10:$Z$19,0)),1)))","v":""}]
[21,{"$nulls":4},"",{"$nulls":14},{"$f":"IF(QualitativeData[[#This Row],['# of Levels Up/Down]]=\"\",\"Y\",\"N\")","v":"Y"},{"$f":"IF(QualitativeData[[#This Row],[Student]]=\"\",\"\",QualitativeData[[#This Row],[Student]])","v":""},{"$f":"IF(QualitativeData[[#This Row],[Time 1 Data]]=\"\",\"\",(INDEX($AA$10:$AA$19,(MATCH(QualitativeData[[#This Row],[Time 1 Data]],$Z$10:$Z$19,0)),1)))","v":""},{"$f":"IF(QualitativeData[[#This Row],[Time 2 Data]]=\"\",\"\",(INDEX($AA$10:$AA$19,(MATCH(QualitativeData[[#This Row],[Time 2 Data]],$Z$10:$Z$19,0)),1)))","v":""}]
[22,{"$nulls":4},"",{"$nulls":14},{"$f":"IF(QualitativeData[[#This Row],['# of Levels Up/Down]]=\"\",\"Y\",\"N\")","v":"Y"},{"$f":"IF(QualitativeData[[#This Row],[Student]]=\"\",\"\",QualitativeData[[#This Row],[Student]])","v":""},{"$f":"IF(QualitativeData[[#This Row],[Time 1 Data]]=\"\",\"\",(INDEX($AA$10:$AA$19,(MATCH(QualitativeData[[#This Row],[Time 1 Data]],$Z$10:$Z$19,0)),1)))","v":""},{"$f":"IF(QualitativeData[[#This Row],[Time 2 Data]]=\"\",\"\",(INDEX($AA$10:$AA$19,(MATCH(QualitativeData[[#This Row],[Time 2 Data]],$Z$10:$Z$19,0)),1)))","v":""}]
[23,{"$nulls":4},"",{"$nulls":14},{"$f":"IF(QualitativeData[[#This Row],['# of Levels Up/Down]]=\"\",\"Y\",\"N\")","v":"Y"},{"$f":"IF(QualitativeData[[#This Row],[Student]]=\"\",\"\",QualitativeData[[#This Row],[Student]])","v":""},{"$f":"IF(QualitativeData[[#This Row],[Time 1 Data]]=\"\",\"\",(INDEX($AA$10:$AA$19,(MATCH(QualitativeData[[#This Row],[Time 1 Data]],$Z$10:$Z$19,0)),1)))","v":""},{"$f":"IF(QualitativeData[[#This Row],[Time 2 Data]]=\"\",\"\",(INDEX($AA$10:$AA$19,(MATCH(QualitativeData[[#This Row],[Time 2 Data]],$Z$10:$Z$19,0)),1)))","v":""}]
[24,{"$nulls":4},"",{"$nulls":14},{"$f":"IF(QualitativeData[[#This Row],['# of Levels Up/Down]]=\"\",\"Y\",\"N\")","v":"Y"},{"$f":"IF(QualitativeData[[#This Row],[Student]]=\"\",\"\",QualitativeData[[#This Row],[Student]])","v":""},{"$f":"IF(QualitativeData[[#This Row],[Time 1 Data]]=\"\",\"\",(INDEX($AA$10:$AA$19,(MATCH(QualitativeData[[#This Row],[Time 1 Data]],$Z$10:$Z$19,0)),1)))","v":""},{"$f":"IF(QualitativeData[[#This Row],[Time 2 Data]]=\"\",\"\",(INDEX($AA$10:$AA$19,(MATCH(QualitativeData[[#This Row],[Time 2 Data]],$Z$10:$Z$19,0)),1)))","v":""}]
[25,{"$nulls":4},"",{"$nulls":14},{"$f":"IF(QualitativeData[[#This Row],['# of Levels Up/Down]]=\"\",\"Y\",\"N\")","v":"Y"},{"$f":"IF(QualitativeData[[#This Row],[Student]]=\"\",\"\",QualitativeData[[#This Row],[Student]])","v":""},{"$f":"IF(QualitativeData[[#This Row],[Time 1 Data]]=\"\",\"\",(INDEX($AA$10:$AA$19,(MATCH(QualitativeData[[#This Row],[Time 1 Data]],$Z$10:$Z$19,0)),1)))","v":""},{"$f":"IF(QualitativeData[[#This Row],[Time 2 Data]]=\"\",\"\",(INDEX($AA$10:$AA$19,(MATCH(QualitativeData[[#This Row],[Time 2 Data]],$Z$10:$Z$19,0)),1)))","v":""}]
[26,{"$nulls":4},"",{"$nulls":14},{"$f":"IF(QualitativeData[[#This Row],['# of Levels Up/Down]]=\"\",\"Y\",\"N\")","v":"Y"},{"$f":"IF(QualitativeData[[#This Row],[Student]]=\"\",\"\",QualitativeData[[#This Row],[Student]])","v":""},{"$f":"IF(QualitativeData[[#This Row],[Time 1 Data]]=\"\",\"\",(INDEX($AA$10:$AA$19,(MATCH(QualitativeData[[#This Row],[Time 1 Data]],$Z$10:$Z$19,0)),1)))","v":""},{"$f":"IF(QualitativeData[[#This Row],[Time 2 Data]]=\"\",\"\",(INDEX($AA$10:$AA$19,(MATCH(QualitativeData[[#This Row],[Time 2 Data]],$Z$10:$Z$19,0)),1)))","v":""}]
[27,{"$nulls":4},"",{"$nulls":14},{"$f":"IF(QualitativeData[[#This Row],['# of Levels Up/Down]]=\"\",\"Y\",\"N\")","v":"Y"},{"$f":"IF(QualitativeData[[#This Row],[Student]]=\"\",\"\",QualitativeData[[#This Row],[Student]])","v":""},{"$f":"IF(QualitativeData[[#This Row],[Time 1 Data]]=\"\",\"\",(INDEX($AA$10:$AA$19,(MATCH(QualitativeData[[#This Row],[Time 1 Data]],$Z$10:$Z$19,0)),1)))","v":""},{"$f":"IF(QualitativeData[[#This Row],[Time 2 Data]]=\"\",\"\",(INDEX($AA$10:$AA$19,(MATCH(QualitativeData[[#This Row],[Time 2 Data]],$Z$10:$Z$19,0)),1)))","v":""}]
[28,{"$nulls":4},"",{"$nulls":14},{"$f":"IF(QualitativeData[[#This Row],['# of Levels Up/Down]]=\"\",\"Y\",\"N\")","v":"Y"},{"$f":"IF(QualitativeData[[#This Row],[Student]]=\"\",\"\",QualitativeData[[#This Row],[Student]])","v":""},{"$f":"IF(QualitativeData[[#This Row],[Time 1 Data]]=\"\",\"\",(INDEX($AA$10:$AA$19,(MATCH(QualitativeData[[#This Row],[Time 1 Data]],$Z$10:$Z$19,0)),1)))","v":""},{"$f":"IF(QualitativeData[[#This Row],[Time 2 Data]]=\"\",\"\",(INDEX($AA$10:$AA$19,(MATCH(QualitativeData[[#This Row],[Time 2 Data]],$Z$10:$Z$19,0)),1)))","v":""}]
[29,{"$nulls":4},"",{"$nulls":14},{"$f":"IF(QualitativeData[[#This Row],['# of Levels Up/Down]]=\"\",\"Y\",\"N\")","v":"Y"},{"$f":"IF(QualitativeData[[#This Row],[Student]]=\"\",\"\",QualitativeData[[#This Row],[Student]])","v":""},{"$f":"IF(QualitativeData[[#This Row],[Time 1 Data]]=\"\",\"\",(INDEX($AA$10:$AA$19,(MATCH(QualitativeData[[#This Row],[Time 1 Data]],$Z$10:$Z$19,0)),1)))","v":""},{"$f":"IF(QualitativeData[[#This Row],[Time 2 Data]]=\"\",\"\",(INDEX($AA$10:$AA$19,(MATCH(QualitativeData[[#This Row],[Time 2 Data]],$Z$10:$Z$19,0)),1)))","v":""}]
[30,{"$nulls":4},"",{"$nulls":14},{"$f":"IF(QualitativeData[[#This Row],['# of Levels Up/Down]]=\"\",\"Y\",\"N\")","v":"Y"},{"$f":"IF(QualitativeData[[#This Row],[Student]]=\"\",\"\",QualitativeData[[#This Row],[Student]])","v":""},{"$f":"IF(QualitativeData[[#This Row],[Time 1 Data]]=\"\",\"\",(INDEX($AA$10:$AA$19,(MATCH(QualitativeData[[#This Row],[Time 1 Data]],$Z$10:$Z$19,0)),1)))","v":""},{"$f":"IF(QualitativeData[[#This Row],[Time 2 Data]]=\"\",\"\",(INDEX($AA$10:$AA$19,(MATCH(QualitativeData[[#This Row],[Time 2 Data]],$Z$10:$Z$19,0)),1)))","v":""}]
[31,{"$nulls":4},"",{"$nulls":14},{"$f":"IF(QualitativeData[[#This Row],['# of Levels Up/Down]]=\"\",\"Y\",\"N\")","v":"Y"}]
[32,{"$nulls":4},"",{"$nulls":14},{"$f":"IF(QualitativeData[[#This Row],['# of Levels Up/Down]]=\"\",\"Y\",\"N\")","v":"Y"}]
[33,{"$nulls":4},"",{"$nulls":14},{"$f":"IF(QualitativeData[[#This Row],['# of Levels Up/Down]]=\"\",\"Y\",\"N\")","v":"Y"}]
[34,{"$nulls":4},"",{"$nulls":14},{"$f":"IF(QualitativeData[[#This Row],['# of Levels Up/Down]]=\"\",\"Y\",\"N\")","v":"Y"}]
[35,{"$nulls":4},"",{"$nulls":14},{"$f":"IF(QualitativeData[[#This Row],['# of Levels Up/Down]]=\"\",\"Y\",\"N\")","v":"Y"}]
[36,{"$nulls":4},"",{"$nulls":14},{"$f":"IF(QualitativeData[[#This Row],['# of Levels Up/Down]]=\"\",\"Y\",\"N\")","v":"Y"}]
[37,{"$nulls":4},"",{"$nulls":14},{"$f":"IF(QualitativeData[[#This Row],['# of Levels Up/Down]]=\"\",\"Y\",\"N\")","v":"Y"}]
[38,{"$nulls":4},"",{"$nulls":14},{"$f":"IF(QualitativeData[[#This Row],['# of Levels Up/Down]]=\"\",\"Y\",\"N\")","v":"Y"}]
[39,{"$nulls":4},"",null,null,{"$f":"Z10&\"-\"","v":"0-"},{"$nulls":11},{"$f":"IF(QualitativeData[[#This Row],['# of Levels Up/Down]]=\"\",\"Y\",\"N\")","v":"Y"}]
[40,{"$nulls":4},"",null,null,{"$f":"Z11&\"-\"","v":"0-"},{"$nulls":11},{"$f":"IF(QualitativeData[[#This Row],['# of Levels Up/Down]]=\"\",\"Y\",\"N\")","v":"Y"}]
[41,{"$nulls":4},"",null,null,"0-",{"$nulls":11},{"$f":"IF(QualitativeData[[#This Row],['# of Levels Up/Down]]=\"\",\"Y\",\"N\")","v":"Y"}]
[42,{"$nulls":4},"",null,null,"0-",{"$nulls":11},{"$f":"IF(QualitativeData[[#This Row],['# of Levels Up/Down]]=\"\",\"Y\",\"N\")","v":"Y"}]
[43,{"$nulls":4},"",null,null,"0-",{"$nulls":11},{"$f":"IF(QualitativeData[[#This Row],['# of Levels Up/Down]]=\"\",\"Y\",\"N\")","v":"Y"}]
[44,{"$nulls":4},"",null,null,"0-",{"$nulls":11},{"$f":"IF(QualitativeData[[#This Row],['# of Levels Up/Down]]=\"\",\"Y\",\"N\")","v":"Y"}]
[45,{"$nulls":4},"",null,null,"0-",{"$nulls":11},{"$f":"IF(QualitativeData[[#This Row],['# of Levels Up/Down]]=\"\",\"Y\",\"N\")","v":"Y"}]
[46,{"$nulls":4},"",null,null,"0-",{"$nulls":11},{"$f":"IF(QualitativeData[[#This Row],['# of Levels Up/Down]]=\"\",\"Y\",\"N\")","v":"Y"}]
[47,{"$nulls":4},"",null,null,"0-",{"$nulls":11},{"$f":"IF(QualitativeData[[#This Row],['# of Levels Up/Down]]=\"\",\"Y\",\"N\")","v":"Y"}]
[48,{"$nulls":4},"",null,null,"0-",{"$nulls":11},{"$f":"IF(QualitativeData[[#This Row],['# of Levels Up/Down]]=\"\",\"Y\",\"N\")","v":"Y"}]
[49,{"$nulls":4},"",{"$nulls":14},{"$f":"IF(QualitativeData[[#This Row],['# of Levels Up/Down]]=\"\",\"Y\",\"N\")","v":"Y"}]
[50,{"$nulls":4},"",{"$nulls":14},{"$f":"IF(QualitativeData[[#This Row],['# of Levels Up/Down]]=\"\",\"Y\",\"N\")","v":"Y"}]
[51,{"$nulls":4},"",{"$nulls":14},{"$f":"IF(QualitativeData[[#This Row],['# of Levels Up/Down]]=\"\",\"Y\",\"N\")","v":"Y"}]
[52,{"$nulls":4},"",{"$nulls":14},{"$f":"IF(QualitativeData[[#This Row],['# of Levels Up/Down]]=\"\",\"Y\",\"N\")","v":"Y"}]
[53,{"$nulls":4},"",{"$nulls":14},{"$f":"IF(QualitativeData[[#This Row],['# of Levels Up/Down]]=\"\",\"Y\",\"N\")","v":"Y"}]
[54,{"$nulls":4},"",{"$nulls":14},{"$f":"IF(QualitativeData[[#This Row],['# of Levels Up/Down]]=\"\",\"Y\",\"N\")","v":"Y"}]
[55,{"$nulls":4},"",{"$nulls":14},{"$f":"IF(QualitativeData[[#This Row],['# of Levels Up/Down]]=\"\",\"Y\",\"N\")","v":"Y"}]
[56,{"$nulls":4},"",{"$nulls":14},{"$f":"IF(QualitativeData[[#This Row],['# of Levels Up/Down]]=\"\",\"Y\",\"N\")","v":"Y"}]
[57,{"$nulls":4},"",{"$nulls":14},{"$f":"IF(QualitativeData[[#This Row],['# of Levels Up/Down]]=\"\",\"Y\",\"N\")","v":"Y"}]
[58,{"$nulls":4},"",{"$nulls":14},{"$f":"IF(QualitativeData[[#This Row],['# of Levels Up/Down]]=\"\",\"Y\",\"N\")","v":"Y"}]
[59,{"$nulls":4},"",{"$nulls":14},{"$f":"IF(QualitativeData[[#This Row],['# of Levels Up/Down]]=\"\",\"Y\",\"N\")","v":"Y"}]
[60,{"$nulls":4},"",{"$nulls":14},{"$f":"IF(QualitativeData[[#This Row],['# of Levels Up/Down]]=\"\",\"Y\",\"N\")","v":"Y"}]
[61,{"$nulls":4},"",{"$nulls":14},{"$f":"IF(QualitativeData[[#This Row],['# of Levels Up/Down]]=\"\",\"Y\",\"N\")","v":"Y"}]
[62,{"$nulls":4},"",{"$nulls":14},{"$f":"IF(QualitativeData[[#This Row],['# of Levels Up/Down]]=\"\",\"Y\",\"N\")","v":"Y"}]
[63,{"$nulls":4},"",{"$nulls":14},{"$f":"IF(QualitativeData[[#This Row],['# of Levels Up/Down]]=\"\",\"Y\",\"N\")","v":"Y"}]
[64,{"$nulls":4},"",{"$nulls":14},{"$f":"IF(QualitativeData[[#This Row],['# of Levels Up/Down]]=\"\",\"Y\",\"N\")","v":"Y"}]
[65,{"$nulls":4},{"$f":"IFERROR((INDEX($U$1:$U$5,(MATCH(D73,$I$3:$R$3,0)),1)-(INDEX($U$1:$U$5,(MATCH(E73,$I$3:$R$3,0)),1))),\"\")","v":""},{"$nulls":14},{"$f":"IF(QualitativeData[[#This Row],['# of Levels Up/Down]]=\"\",\"Y\",\"N\")","v":"Y"}]
[66,{"$nulls":4},"",{"$nulls":14},{"$f":"IF(QualitativeData[[#This Row],['# of Levels Up/Down]]=\"\",\"Y\",\"N\")","v":"Y"}]
[67,{"$nulls":4},"",{"$nulls":14},{"$f":"IF(QualitativeData[[#This Row],['# of Levels Up/Down]]=\"\",\"Y\",\"N\")","v":"Y"}]
[68,{"$nulls":4},"",{"$nulls":14},{"$f":"IF(QualitativeData[[#This Row],['# of Levels Up/Down]]=\"\",\"Y\",\"N\")","v":"Y"}]
[69,{"$nulls":4},"",{"$nulls":14},{"$f":"IF(QualitativeData[[#This Row],['# of Levels Up/Down]]=\"\",\"Y\",\"N\")","v":"Y"}]
[70,{"$nulls":4},"",{"$nulls":14},{"$f":"IF(QualitativeData[[#This Row],['# of Levels Up/Down]]=\"\",\"Y\",\"N\")","v":"Y"}]
[71,{"$nulls":4},"",{"$nulls":14},{"$f":"IF(QualitativeData[[#This Row],['# of Levels Up/Down]]=\"\",\"Y\",\"N\")","v":"Y"}]
[72,{"$nulls":4},"",{"$nulls":14},{"$f":"IF(QualitativeData[[#This Row],['# of Levels Up/Down]]=\"\",\"Y\",\"N\")","v":"Y"}]
[73,{"$nulls":4},"",{"$nulls":14},{"$f":"IF(QualitativeData[[#This Row],['# of Levels Up/Down]]=\"\",\"Y\",\"N\")","v":"Y"}]
[74,{"$nulls":4},"",{"$nulls":14},{"$f":"IF(QualitativeData[[#This Row],['# of Levels Up/Down]]=\"\",\"Y\",\"N\")","v":"Y"}]
[75,{"$nulls":4},"",{"$nulls":14},{"$f":"IF(QualitativeData[[#This Row],['# of Levels Up/Down]]=\"\",\"Y\",\"N\")","v":"Y"}]
[76,{"$nulls":4},"",{"$nulls":14},{"$f":"IF(QualitativeData[[#This Row],['# of Levels Up/Down]]=\"\",\"Y\",\"N\")","v":"Y"}]
[77,{"$nulls":4},"",{"$nulls":14},{"$f":"IF(QualitativeData[[#This Row],['# of Levels Up/Down]]=\"\",\"Y\",\"N\")","v":"Y"}]
[78,{"$nulls":4},"",{"$nulls":14},{"$f":"IF(QualitativeData[[#This Row],['# of Levels Up/Down]]=\"\",\"Y\",\"N\")","v":"Y"}]
[79,{"$nulls":4},"",{"$nulls":14},{"$f":"IF(QualitativeData[[#This Row],['# of Levels Up/Down]]=\"\",\"Y\",\"N\")","v":"Y"}]
[80,{"$nulls":4},"",{"$nulls":14},{"$f":"IF(QualitativeData[[#This Row],['# of Levels Up/Down]]=\"\",\"Y\",\"N\")","v":"Y"}]
[81,{"$nulls":4},"",{"$nulls":14},{"$f":"IF(QualitativeData[[#This Row],['# of Levels Up/Down]]=\"\",\"Y\",\"N\")","v":"Y"}]
[82,{"$nulls":4},"",{"$nulls":14},{"$f":"IF(QualitativeData[[#This Row],['# of Levels Up/Down]]=\"\",\"Y\",\"N\")","v":"Y"}]
[83,{"$nulls":4},"",{"$nulls":14},{"$f":"IF(QualitativeData[[#This Row],['# of Levels Up/Down]]=\"\",\"Y\",\"N\")","v":"Y"}]
[84,{"$nulls":4},"",{"$nulls":14},{"$f":"IF(QualitativeData[[#This Row],['# of Levels Up/Down]]=\"\",\"Y\",\"N\")","v":"Y"}]
[85,{"$nulls":4},"",{"$nulls":14},{"$f":"IF(QualitativeData[[#This Row],['# of Levels Up/Down]]=\"\",\"Y\",\"N\")","v":"Y"}]
[86,{"$nulls":4},"",{"$nulls":14},{"$f":"IF(QualitativeData[[#This Row],['# of Levels Up/Down]]=\"\",\"Y\",\"N\")","v":"Y"}]
[87,{"$nulls":4},"",{"$nulls":14},{"$f":"IF(QualitativeData[[#This Row],['# of Levels Up/Down]]=\"\",\"Y\",\"N\")","v":"Y"}]
[88,{"$nulls":4},"",{"$nulls":14},{"$f":"IF(QualitativeData[[#This Row],['# of Levels Up/Down]]=\"\",\"Y\",\"N\")","v":"Y"}]
[89,{"$nulls":4},"",{"$nulls":14},{"$f":"IF(QualitativeData[[#This Row],['# of Levels Up/Down]]=\"\",\"Y\",\"N\")","v":"Y"}]
[90,{"$nulls":4},"",{"$nulls":14},{"$f":"IF(QualitativeData[[#This Row],['# of Levels Up/Down]]=\"\",\"Y\",\"N\")","v":"Y"}]
[91,{"$nulls":4},"",{"$nulls":14},{"$f":"IF(QualitativeData[[#This Row],['# of Levels Up/Down]]=\"\",\"Y\",\"N\")","v":"Y"}]
[92,{"$nulls":4},"",{"$nulls":14},{"$f":"IF(QualitativeData[[#This Row],['# of Levels Up/Down]]=\"\",\"Y\",\"N\")","v":"Y"}]
[93,{"$nulls":4},"",{"$nulls":14},{"$f":"IF(QualitativeData[[#This Row],['# of Levels Up/Down]]=\"\",\"Y\",\"N\")","v":"Y"}]
[94,{"$nulls":4},"",{"$nulls":14},{"$f":"IF(QualitativeData[[#This Row],['# of Levels Up/Down]]=\"\",\"Y\",\"N\")","v":"Y"}]
[95,{"$nulls":4},"",{"$nulls":14},{"$f":"IF(QualitativeData[[#This Row],['# of Levels Up/Down]]=\"\",\"Y\",\"N\")","v":"Y"}]
[96,{"$nulls":4},"",{"$nulls":14},{"$f":"IF(QualitativeData[[#This Row],['# of Levels Up/Down]]=\"\",\"Y\",\"N\")","v":"Y"}]
[97,{"$nulls":4},"",{"$nulls":14},{"$f":"IF(QualitativeData[[#This Row],['# of Levels Up/Down]]=\"\",\"Y\",\"N\")","v":"Y"}]
[98,{"$nulls":4},"",{"$nulls":14},{"$f":"IF(QualitativeData[[#This Row],['# of Levels Up/Down]]=\"\",\"Y\",\"N\")","v":"Y"}]
[99,{"$nulls":4},"",{"$nulls":14},{"$f":"IF(QualitativeData[[#This Row],['# of Levels Up/Down]]=\"\",\"Y\",\"N\")","v":"Y"}]
[100,{"$nulls":4},"",{"$nulls":14},{"$f":"IF(QualitativeData[[#This Row],['# of Levels Up/Down]]=\"\",\"Y\",\"N\")","v":"Y"}]
[101,{"$nulls":4},"",{"$nulls":14},{"$f":"IF(QualitativeData[[#This Row],['# of Levels Up/Down]]=\"\",\"Y\",\"N\")","v":"Y"}]
[102,{"$nulls":4},"",{"$nulls":14},{"$f":"IF(QualitativeData[[#This Row],['# of Levels Up/Down]]=\"\",\"Y\",\"N\")","v":"Y"}]
[103,{"$nulls":4},"",{"$nulls":14},{"$f":"IF(QualitativeData[[#This Row],['# of Levels Up/Down]]=\"\",\"Y\",\"N\")","v":"Y"}]
[104,{"$nulls":4},"",{"$nulls":14},{"$f":"IF(QualitativeData[[#This Row],['# of Levels Up/Down]]=\"\",\"Y\",\"N\")","v":"Y"}]
[105,{"$nulls":4},"",{"$nulls":14},{"$f":"IF(QualitativeData[[#This Row],['# of Levels Up/Down]]=\"\",\"Y\",\"N\")","v":"Y"}]
[106,{"$nulls":4},"",{"$nulls":14},{"$f":"IF(QualitativeData[[#This Row],['# of Levels Up/Down]]=\"\",\"Y\",\"N\")","v":"Y"}]
[107,{"$nulls":4},"",{"$nulls":14},{"$f":"IF(QualitativeData[[#This Row],['# of Levels Up/Down]]=\"\",\"Y\",\"N\")","v":"Y"}]
[108,{"$nulls":4},"",{"$nulls":14},{"$f":"IF(QualitativeData[[#This Row],['# of Levels Up/Down]]=\"\",\"Y\",\"N\")","v":"Y"}]
[109,{"$nulls":4},"",{"$nulls":14},{"$f":"IF(QualitativeData[[#This Row],['# of Levels Up/Down]]=\"\",\"Y\",\"N\")","v":"Y"}]
[110,{"$nulls":4},"",{"$nulls":14},{"$f":"IF(QualitativeData[[#This Row],['# of Levels Up/Down]]=\"\",\"Y\",\"N\")","v":"Y"}]
[111,{"$nulls":4},"",{"$nulls":14},{"$f":"IF(QualitativeData[[#This Row],['# of Levels Up/Down]]=\"\",\"Y\",\"N\")","v":"Y"}]
[112,{"$nulls":4},"",{"$nulls":14},{"$f":"IF(QualitativeData[[#This Row],['# of Levels Up/Down]]=\"\",\"Y\",\"N\")","v":"Y"}]
[113,{"$nulls":4},"",{"$nulls":14},{"$f":"IF(QualitativeData[[#This Row],['# of Levels Up/Down]]=\"\",\"Y\",\"N\")","v":"Y"}]
[114,{"$nulls":4},"",{"$nulls":14},{"$f":"IF(QualitativeData[[#This Row],['# of Levels Up/Down]]=\"\",\"Y\",\"N\")","v":"Y"}]
[115,{"$nulls":4},"",{"$nulls":14},{"$f":"IF(QualitativeData[[#This Row],['# of Levels Up/Down]]=\"\",\"Y\",\"N\")","v":"Y"}]
[116,{"$nulls":4},"",{"$nulls":14},{"$f":"IF(QualitativeData[[#This Row],['# of Levels Up/Down]]=\"\",\"Y\",\"N\")","v":"Y"}]
[117,{"$nulls":4},"",{"$nulls":14},{"$f":"IF(QualitativeData[[#This Row],['# of Levels Up/Down]]=\"\",\"Y\",\"N\")","v":"Y"}]
[118,{"$nulls":4},"",{"$nulls":14},{"$f":"IF(QualitativeData[[#This Row],['# of Levels Up/Down]]=\"\",\"Y\",\"N\")","v":"Y"}]
[119,{"$nulls":4},"",{"$nulls":14},{"$f":"IF(QualitativeData[[#This Row],['# of Levels Up/Down]]=\"\",\"Y\",\"N\")","v":"Y"}]
[120,{"$nulls":4},"",{"$nulls":14},{"$f":"IF(QualitativeData[[#This Row],['# of Levels Up/Down]]=\"\",\"Y\",\"N\")","v":"Y"}]
[121,{"$nulls":4},"",{"$nulls":14},{"$f":"IF(QualitativeData[[#This Row],['# of Levels Up/Down]]=\"\",\"Y\",\"N\")","v":"Y"}]
[122,{"$nulls":4},"",{"$nulls":14},{"$f":"IF(QualitativeData[[#This Row],['# of Levels Up/Down]]=\"\",\"Y\",\"N\")","v":"Y"}]
[123,{"$nulls":4},"",{"$nulls":14},{"$f":"IF(QualitativeData[[#This Row],['# of Levels Up/Down]]=\"\",\"Y\",\"N\")","v":"Y"}]
[124,{"$nulls":4},"",{"$nulls":14},{"$f":"IF(QualitativeData[[#This Row],['# of Levels Up/Down]]=\"\",\"Y\",\"N\")","v":"Y"}]
[125,{"$nulls":4},"",{"$nulls":14},{"$f":"IF(QualitativeData[[#This Row],['# of Levels Up/Down]]=\"\",\"Y\",\"N\")","v":"Y"}]
[126,{"$nulls":4},"",{"$nulls":14},{"$f":"IF(QualitativeData[[#This Row],['# of Levels Up/Down]]=\"\",\"Y\",\"N\")","v":"Y"}]
[127,{"$nulls":4},"",{"$nulls":14},{"$f":"IF(QualitativeData[[#This Row],['# of Levels Up/Down]]=\"\",\"Y\",\"N\")","v":"Y"}]
[128,{"$nulls":4},"",{"$nulls":14},{"$f":"IF(QualitativeData[[#This Row],['# of Levels Up/Down]]=\"\",\"Y\",\"N\")","v":"Y"}]
[129,{"$nulls":4},{"$f":"IFERROR((INDEX($U$1:$U$5,(MATCH(D137,$I$3:$R$3,0)),1)-(INDEX($U$1:$U$5,(MATCH(E137,$I$3:$R$3,0)),1))),\"\")","v":""},{"$nulls":14},{"$f":"IF(QualitativeData[[#This Row],['# of Levels Up/Down]]=\"\",\"Y\",\"N\")","v":"Y"}]
[130,{"$nulls":4},"",{"$nulls":14},{"$f":"IF(QualitativeData[[#This Row],['# of Levels Up/Down]]=\"\",\"Y\",\"N\")","v":"Y"}]
[131,{"$nulls":4},"",{"$nulls":14},{"$f":"IF(QualitativeData[[#This Row],['# of Levels Up/Down]]=\"\",\"Y\",\"N\")","v":"Y"}]
[132,{"$nulls":4},"",{"$nulls":14},{"$f":"IF(QualitativeData[[#This Row],['# of Levels Up/Down]]=\"\",\"Y\",\"N\")","v":"Y"}]
[133,{"$nulls":4},"",{"$nulls":14},{"$f":"IF(QualitativeData[[#This Row],['# of Levels Up/Down]]=\"\",\"Y\",\"N\")","v":"Y"}]
[134,{"$nulls":4},"",{"$nulls":14},{"$f":"IF(QualitativeData[[#This Row],['# of Levels Up/Down]]=\"\",\"Y\",\"N\")","v":"Y"}]
[135,{"$nulls":4},"",{"$nulls":14},{"$f":"IF(QualitativeData[[#This Row],['# of Levels Up/Down]]=\"\",\"Y\",\"N\")","v":"Y"}]
[136,{"$nulls":4},"",{"$nulls":14},{"$f":"IF(QualitativeData[[#This Row],['# of Levels Up/Down]]=\"\",\"Y\",\"N\")","v":"Y"}]
[137,{"$nulls":4},"",{"$nulls":14},{"$f":"IF(QualitativeData[[#This Row],['# of Levels Up/Down]]=\"\",\"Y\",\"N\")","v":"Y"}]
[138,{"$nulls":4},"",{"$nulls":14},{"$f":"IF(QualitativeData[[#This Row],['# of Levels Up/Down]]=\"\",\"Y\",\"N\")","v":"Y"}]
[139,{"$nulls":4},"",{"$nulls":14},{"$f":"IF(QualitativeData[[#This Row],['# of Levels Up/Down]]=\"\",\"Y\",\"N\")","v":"Y"}]
[140,{"$nulls":4},"",{"$nulls":14},{"$f":"IF(QualitativeData[[#This Row],['# of Levels Up/Down]]=\"\",\"Y\",\"N\")","v":"Y"}]
[141,{"$nulls":4},"",{"$nulls":14},{"$f":"IF(QualitativeData[[#This Row],['# of Levels Up/Down]]=\"\",\"Y\",\"N\")","v":"Y"}]
[142,{"$nulls":4},"",{"$nulls":14},{"$f":"IF(QualitativeData[[#This Row],['# of Levels Up/Down]]=\"\",\"Y\",\"N\")","v":"Y"}]
[143,{"$nulls":4},"",{"$nulls":14},{"$f":"IF(QualitativeData[[#This Row],['# of Levels Up/Down]]=\"\",\"Y\",\"N\")","v":"Y"}]
[144,{"$nulls":4},"",{"$nulls":14},{"$f":"IF(QualitativeData[[#This Row],['# of Levels Up/Down]]=\"\",\"Y\",\"N\")","v":"Y"}]
[145,{"$nulls":4},"",{"$nulls":14},{"$f":"IF(QualitativeData[[#This Row],['# of Levels Up/Down]]=\"\",\"Y\",\"N\")","v":"Y"}]
[146,{"$nulls":4},"",{"$nulls":14},{"$f":"IF(QualitativeData[[#This Row],['# of Levels Up/Down]]=\"\",\"Y\",\"N\")","v":"Y"}]
[147,{"$nulls":4},"",{"$nulls":14},{"$f":"IF(QualitativeData[[#This Row],['# of Levels Up/Down]]=\"\",\"Y\",\"N\")","v":"Y"}]
[148,{"$nulls":4},"",{"$nulls":14},{"$f":"IF(QualitativeData[[#This Row],['# of Levels Up/Down]]=\"\",\"Y\",\"N\")","v":"Y"}]
[149,{"$nulls":4},"",{"$nulls":14},{"$f":"IF(QualitativeData[[#This Row],['# of Levels Up/Down]]=\"\",\"Y\",\"N\")","v":"Y"}]
[150,{"$nulls":4},"",{"$nulls":14},{"$f":"IF(QualitativeData[[#This Row],['# of Levels Up/Down]]=\"\",\"Y\",\"N\")","v":"Y"}]
[151,{"$nulls":4},"",{"$nulls":14},{"$f":"IF(QualitativeData[[#This Row],['# of Levels Up/Down]]=\"\",\"Y\",\"N\")","v":"Y"}]
[152,{"$nulls":4},"",{"$nulls":14},{"$f":"IF(QualitativeData[[#This Row],['# of Levels Up/Down]]=\"\",\"Y\",\"N\")","v":"Y"}]
[153,{"$nulls":4},"",{"$nulls":14},{"$f":"IF(QualitativeData[[#This Row],['# of Levels Up/Down]]=\"\",\"Y\",\"N\")","v":"Y"}]
[154,{"$nulls":4},"",{"$nulls":14},{"$f":"IF(QualitativeData[[#This Row],['# of Levels Up/Down]]=\"\",\"Y\",\"N\")","v":"Y"}]
[155,{"$nulls":4},"",{"$nulls":14},{"$f":"IF(QualitativeData[[#This Row],['# of Levels Up/Down]]=\"\",\"Y\",\"N\")","v":"Y"}]
[156,{"$nulls":4},"",{"$nulls":14},{"$f":"IF(QualitativeData[[#This Row],['# of Levels Up/Down]]=\"\",\"Y\",\"N\")","v":"Y"}]
[157,{"$nulls":4},"",{"$nulls":14},{"$f":"IF(QualitativeData[[#This Row],['# of Levels Up/Down]]=\"\",\"Y\",\"N\")","v":"Y"}]
[158,{"$nulls":4},"",{"$nulls":14},{"$f":"IF(QualitativeData[[#This Row],['# of Levels Up/Down]]=\"\",\"Y\",\"N\")","v":"Y"}]
[159,{"$nulls":4},"",{"$nulls":14},{"$f":"IF(QualitativeData[[#This Row],['# of Levels Up/Down]]=\"\",\"Y\",\"N\")","v":"Y"}]
[160,{"$nulls":4},"",{"$nulls":14},{"$f":"IF(QualitativeData[[#This Row],['# of Levels Up/Down]]=\"\",\"Y\",\"N\")","v":"Y"}]
[161,{"$nulls":4},"",{"$nulls":14},{"$f":"IF(QualitativeData[[#This Row],['# of Levels Up/Down]]=\"\",\"Y\",\"N\")","v":"Y"}]
[162,{"$nulls":4},"",{"$nulls":14},{"$f":"IF(QualitativeData[[#This Row],['# of Levels Up/Down]]=\"\",\"Y\",\"N\")","v":"Y"}]
[163,{"$nulls":4},"",{"$nulls":14},{"$f":"IF(QualitativeData[[#This Row],['# of Levels Up/Down]]=\"\",\"Y\",\"N\")","v":"Y"}]
[164,{"$nulls":4},"",{"$nulls":14},{"$f":"IF(QualitativeData[[#This Row],['# of Levels Up/Down]]=\"\",\"Y\",\"N\")","v":"Y"}]
[165,{"$nulls":4},"",{"$nulls":14},{"$f":"IF(QualitativeData[[#This Row],['# of Levels Up/Down]]=\"\",\"Y\",\"N\")","v":"Y"}]
[166,{"$nulls":4},"",{"$nulls":14},{"$f":"IF(QualitativeData[[#This Row],['# of Levels Up/Down]]=\"\",\"Y\",\"N\")","v":"Y"}]
[167,{"$nulls":4},"",{"$nulls":14},{"$f":"IF(QualitativeData[[#This Row],['# of Levels Up/Down]]=\"\",\"Y\",\"N\")","v":"Y"}]
[168,{"$nulls":4},"",{"$nulls":14},{"$f":"IF(QualitativeData[[#This Row],['# of Levels Up/Down]]=\"\",\"Y\",\"N\")","v":"Y"}]
[169,{"$nulls":4},"",{"$nulls":14},{"$f":"IF(QualitativeData[[#This Row],['# of Levels Up/Down]]=\"\",\"Y\",\"N\")","v":"Y"}]
[170,{"$nulls":4},"",{"$nulls":14},{"$f":"IF(QualitativeData[[#This Row],['# of Levels Up/Down]]=\"\",\"Y\",\"N\")","v":"Y"}]
[171,{"$nulls":4},"",{"$nulls":14},{"$f":"IF(QualitativeData[[#This Row],['# of Levels Up/Down]]=\"\",\"Y\",\"N\")","v":"Y"}]
[172,{"$nulls":4},"",{"$nulls":14},{"$f":"IF(QualitativeData[[#This Row],['# of Levels Up/Down]]=\"\",\"Y\",\"N\")","v":"Y"}]
[173,{"$nulls":4},"",{"$nulls":14},{"$f":"IF(QualitativeData[[#This Row],['# of Levels Up/Down]]=\"\",\"Y\",\"N\")","v":"Y"}]
[174,{"$nulls":4},"",{"$nulls":14},{"$f":"IF(QualitativeData[[#This Row],['# of Levels Up/Down]]=\"\",\"Y\",\"N\")","v":"Y"}]
[175,{"$nulls":4},"",{"$nulls":14},{"$f":"IF(QualitativeData[[#This Row],['# of Levels Up/Down]]=\"\",\"Y\",\"N\")","v":"Y"}]
[176,{"$nulls":4},"",{"$nulls":14},{"$f":"IF(QualitativeData[[#This Row],['# of Levels Up/Down]]=\"\",\"Y\",\"N\")","v":"Y"}]
[177,{"$nulls":4},"",{"$nulls":14},{"$f":"IF(QualitativeData[[#This Row],['# of Levels Up/Down]]=\"\",\"Y\",\"N\")","v":"Y"}]
[178,{"$nulls":4},"",{"$nulls":14},{"$f":"IF(QualitativeData[[#This Row],['# of Levels Up/Down]]=\"\",\"Y\",\"N\")","v":"Y"}]
[179,{"$nulls":4},"",{"$nulls":14},{"$f":"IF(QualitativeData[[#This Row],['# of Levels Up/Down]]=\"\",\"Y\",\"N\")","v":"Y"}]
[180,{"$nulls":4},"",{"$nulls":14},{"$f":"IF(QualitativeData[[#This Row],['# of Levels Up/Down]]=\"\",\"Y\",\"N\")","v":"Y"}]
[181,{"$nulls":4},"",{"$nulls":14},{"$f":"IF(QualitativeData[[#This Row],['# of Levels Up/Down]]=\"\",\"Y\",\"N\")","v":"Y"}]
[182,{"$nulls":4},"",{"$nulls":14},{"$f":"IF(QualitativeData[[#This Row],['# of Levels Up/Down]]=\"\",\"Y\",\"N\")","v":"Y"}]
[183,{"$nulls":4},"",{"$nulls":14},{"$f":"IF(QualitativeData[[#This Row],['# of Levels Up/Down]]=\"\",\"Y\",\"N\")","v":"Y"}]
[184,{"$nulls":4},"",{"$nulls":14},{"$f":"IF(QualitativeData[[#This Row],['# of Levels Up/Down]]=\"\",\"Y\",\"N\")","v":"Y"}]
[185,{"$nulls":4},"",{"$nulls":14},{"$f":"IF(QualitativeData[[#This Row],['# of Levels Up/Down]]=\"\",\"Y\",\"N\")","v":"Y"}]
[186,{"$nulls":4},"",{"$nulls":14},{"$f":"IF(QualitativeData[[#This Row],['# of Levels Up/Down]]=\"\",\"Y\",\"N\")","v":"Y"}]
[187,{"$nulls":4},"",{"$nulls":14},{"$f":"IF(QualitativeData[[#This Row],['# of Levels Up/Down]]=\"\",\"Y\",\"N\")","v":"Y"}]
[188,{"$nulls":4},"",{"$nulls":14},{"$f":"IF(QualitativeData[[#This Row],['# of Levels Up/Down]]=\"\",\"Y\",\"N\")","v":"Y"}]
[189,{"$nulls":4},"",{"$nulls":14},{"$f":"IF(QualitativeData[[#This Row],['# of Levels Up/Down]]=\"\",\"Y\",\"N\")","v":"Y"}]
[190,{"$nulls":4},"",{"$nulls":14},{"$f":"IF(QualitativeData[[#This Row],['# of Levels Up/Down]]=\"\",\"Y\",\"N\")","v":"Y"}]
[191,{"$nulls":4},"",{"$nulls":14},{"$f":"IF(QualitativeData[[#This Row],['# of Levels Up/Down]]=\"\",\"Y\",\"N\")","v":"Y"}]
[192,{"$nulls":4},"",{"$nulls":14},{"$f":"IF(QualitativeData[[#This Row],['# of Levels Up/Down]]=\"\",\"Y\",\"N\")","v":"Y"}]
[193,{"$nulls":4},{"$f":"IFERROR((INDEX($U$1:$U$5,(MATCH(D201,$I$3:$R$3,0)),1)-(INDEX($U$1:$U$5,(MATCH(E201,$I$3:$R$3,0)),1))),\"\")","v":""},{"$nulls":14},{"$f":"IF(QualitativeData[[#This Row],['# of Levels Up/Down]]=\"\",\"Y\",\"N\")","v":"Y"}]
[194,{"$nulls":4},"",{"$nulls":14},{"$f":"IF(QualitativeData[[#This Row],['# of Levels Up/Down]]=\"\",\"Y\",\"N\")","v":"Y"}]
[195,{"$nulls":4},"",{"$nulls":14},{"$f":"IF(QualitativeData[[#This Row],['# of Levels Up/Down]]=\"\",\"Y\",\"N\")","v":"Y"}]
[196,{"$nulls":4},"",{"$nulls":14},{"$f":"IF(QualitativeData[[#This Row],['# of Levels Up/Down]]=\"\",\"Y\",\"N\")","v":"Y"}]
[197,{"$nulls":4},"",{"$nulls":14},{"$f":"IF(QualitativeData[[#This Row],['# of Levels Up/Down]]=\"\",\"Y\",\"N\")","v":"Y"}]
[198,{"$nulls":4},"",{"$nulls":14},{"$f":"IF(QualitativeData[[#This Row],['# of Levels Up/Down]]=\"\",\"Y\",\"N\")","v":"Y"}]
[199,{"$nulls":4},"",{"$nulls":14},{"$f":"IF(QualitativeData[[#This Row],['# of Levels Up/Down]]=\"\",\"Y\",\"N\")","v":"Y"}]
[200,{"$nulls":4},"",{"$nulls":14},{"$f":"IF(QualitativeData[[#This Row],['# of Levels Up/Down]]=\"\",\"Y\",\"N\")","v":"Y"}]
[201,{"$nulls":4},"",{"$nulls":14},{"$f":"IF(QualitativeData[[#This Row],['# of Levels Up/Down]]=\"\",\"Y\",\"N\")","v":"Y"}]
[202,{"$nulls":4},"",{"$nulls":14},{"$f":"IF(QualitativeData[[#This Row],['# of Levels Up/Down]]=\"\",\"Y\",\"N\")","v":"Y"}]
[203,{"$nulls":4},"",{"$nulls":14},{"$f":"IF(QualitativeData[[#This Row],['# of Levels Up/Down]]=\"\",\"Y\",\"N\")","v":"Y"}]
[204,{"$nulls":4},"",{"$nulls":14},{"$f":"IF(QualitativeData[[#This Row],['# of Levels Up/Down]]=\"\",\"Y\",\"N\")","v":"Y"}]
[205,{"$nulls":4},"",{"$nulls":14},{"$f":"IF(QualitativeData[[#This Row],['# of Levels Up/Down]]=\"\",\"Y\",\"N\")","v":"Y"}]
[206,{"$nulls":4},"",{"$nulls":14},{"$f":"IF(QualitativeData[[#This Row],['# of Levels Up/Down]]=\"\",\"Y\",\"N\")","v":"Y"}]
[207,{"$nulls":4},"",{"$nulls":14},{"$f":"IF(QualitativeData[[#This Row],['# of Levels Up/Down]]=\"\",\"Y\",\"N\")","v":"Y"}]
[208,{"$nulls":4},"",{"$nulls":14},{"$f":"IF(QualitativeData[[#This Row],['# of Levels Up/Down]]=\"\",\"Y\",\"N\")","v":"Y"}]
[209,{"$nulls":4},"",{"$nulls":14},{"$f":"IF(QualitativeData[[#This Row],['# of Levels Up/Down]]=\"\",\"Y\",\"N\")","v":"Y"}]
[210,{"$nulls":4},"",{"$nulls":14},{"$f":"IF(QualitativeData[[#This Row],['# of Levels Up/Down]]=\"\",\"Y\",\"N\")","v":"Y"}]
[211,{"$nulls":4},"",{"$nulls":14},{"$f":"IF(QualitativeData[[#This Row],['# of Levels Up/Down]]=\"\",\"Y\",\"N\")","v":"Y"}]
[212,{"$nulls":4},"",{"$nulls":14},{"$f":"IF(QualitativeData[[#This Row],['# of Levels Up/Down]]=\"\",\"Y\",\"N\")","v":"Y"}]
[213,{"$nulls":4},"",{"$nulls":14},{"$f":"IF(QualitativeData[[#This Row],['# of Levels Up/Down]]=\"\",\"Y\",\"N\")","v":"Y"}]
[214,{"$nulls":4},"",{"$nulls":14},{"$f":"IF(QualitativeData[[#This Row],['# of Levels Up/Down]]=\"\",\"Y\",\"N\")","v":"Y"}]
[215,{"$nulls":4},"",{"$nulls":14},{"$f":"IF(QualitativeData[[#This Row],['# of Levels Up/Down]]=\"\",\"Y\",\"N\")","v":"Y"}]
[216,{"$nulls":4},"",{"$nulls":14},{"$f":"IF(QualitativeData[[#This Row],['# of Levels Up/Down]]=\"\",\"Y\",\"N\")","v":"Y"}]
[217,{"$nulls":4},"",{"$nulls":14},{"$f":"IF(QualitativeData[[#This Row],['# of Levels Up/Down]]=\"\",\"Y\",\"N\")","v":"Y"}]
[218,{"$nulls":4},"",{"$nulls":14},{"$f":"IF(QualitativeData[[#This Row],['# of Levels Up/Down]]=\"\",\"Y\",\"N\")","v":"Y"}]
[219,{"$nulls":4},"",{"$nulls":14},{"$f":"IF(QualitativeData[[#This Row],['# of Levels Up/Down]]=\"\",\"Y\",\"N\")","v":"Y"}]
[220,{"$nulls":4},"",{"$nulls":14},{"$f":"IF(QualitativeData[[#This Row],['# of Levels Up/Down]]=\"\",\"Y\",\"N\")","v":"Y"}]
[221,{"$nulls":4},"",{"$nulls":14},{"$f":"IF(QualitativeData[[#This Row],['# of Levels Up/Down]]=\"\",\"Y\",\"N\")","v":"Y"}]
[222,{"$nulls":4},"",{"$nulls":14},{"$f":"IF(QualitativeData[[#This Row],['# of Levels Up/Down]]=\"\",\"Y\",\"N\")","v":"Y"}]
[223,{"$nulls":4},"",{"$nulls":14},{"$f":"IF(QualitativeData[[#This Row],['# of Levels Up/Down]]=\"\",\"Y\",\"N\")","v":"Y"}]
[224,{"$nulls":4},"",{"$nulls":14},{"$f":"IF(QualitativeData[[#This Row],['# of Levels Up/Down]]=\"\",\"Y\",\"N\")","v":"Y"}]
[225,{"$nulls":4},"",{"$nulls":14},{"$f":"IF(QualitativeData[[#This Row],['# of Levels Up/Down]]=\"\",\"Y\",\"N\")","v":"Y"}]
[226,{"$nulls":4},"",{"$nulls":14},{"$f":"IF(QualitativeData[[#This Row],['# of Levels Up/Down]]=\"\",\"Y\",\"N\")","v":"Y"}]
[227,{"$nulls":4},"",{"$nulls":14},{"$f":"IF(QualitativeData[[#This Row],['# of Levels Up/Down]]=\"\",\"Y\",\"N\")","v":"Y"}]
[228,{"$nulls":4},"",{"$nulls":14},{"$f":"IF(QualitativeData[[#This Row],['# of Levels Up/Down]]=\"\",\"Y\",\"N\")","v":"Y"}]
[229,{"$nulls":4},"",{"$nulls":14},{"$f":"IF(QualitativeData[[#This Row],['# of Levels Up/Down]]=\"\",\"Y\",\"N\")","v":"Y"}]
[230,{"$nulls":4},"",{"$nulls":14},{"$f":"IF(QualitativeData[[#This Row],['# of Levels Up/Down]]=\"\",\"Y\",\"N\")","v":"Y"}]
[231,{"$nulls":4},"",{"$nulls":14},{"$f":"IF(QualitativeData[[#This Row],['# of Levels Up/Down]]=\"\",\"Y\",\"N\")","v":"Y"}]
[232,{"$nulls":4},"",{"$nulls":14},{"$f":"IF(QualitativeData[[#This Row],['# of Levels Up/Down]]=\"\",\"Y\",\"N\")","v":"Y"}]
[233,{"$nulls":4},"",{"$nulls":14},{"$f":"IF(QualitativeData[[#This Row],['# of Levels Up/Down]]=\"\",\"Y\",\"N\")","v":"Y"}]
[234,{"$nulls":4},"",{"$nulls":14},{"$f":"IF(QualitativeData[[#This Row],['# of Levels Up/Down]]=\"\",\"Y\",\"N\")","v":"Y"}]
[235,{"$nulls":4},"",{"$nulls":14},{"$f":"IF(QualitativeData[[#This Row],['# of Levels Up/Down]]=\"\",\"Y\",\"N\")","v":"Y"}]
[236,{"$nulls":4},"",{"$nulls":14},{"$f":"IF(QualitativeData[[#This Row],['# of Levels Up/Down]]=\"\",\"Y\",\"N\")","v":"Y"}]
[237,{"$nulls":4},"",{"$nulls":14},{"$f":"IF(QualitativeData[[#This Row],['# of Levels Up/Down]]=\"\",\"Y\",\"N\")","v":"Y"}]
[238,{"$nulls":4},"",{"$nulls":14},{"$f":"IF(QualitativeData[[#This Row],['# of Levels Up/Down]]=\"\",\"Y\",\"N\")","v":"Y"}]
[239,{"$nulls":4},"",{"$nulls":14},{"$f":"IF(QualitativeData[[#This Row],['# of Levels Up/Down]]=\"\",\"Y\",\"N\")","v":"Y"}]
[240,{"$nulls":4},"",{"$nulls":14},{"$f":"IF(QualitativeData[[#This Row],['# of Levels Up/Down]]=\"\",\"Y\",\"N\")","v":"Y"}]
[241,{"$nulls":4},"",{"$nulls":14},{"$f":"IF(QualitativeData[[#This Row],['# of Levels Up/Down]]=\"\",\"Y\",\"N\")","v":"Y"}]
[242,{"$nulls":4},"",{"$nulls":14},{"$f":"IF(QualitativeData[[#This Row],['# of Levels Up/Down]]=\"\",\"Y\",\"N\")","v":"Y"}]
[243,{"$nulls":4},"",{"$nulls":14},{"$f":"IF(QualitativeData[[#This Row],['# of Levels Up/Down]]=\"\",\"Y\",\"N\")","v":"Y"}]
[244,{"$nulls":4},"",{"$nulls":14},{"$f":"IF(QualitativeData[[#This Row],['# of Levels Up/Down]]=\"\",\"Y\",\"N\")","v":"Y"}]
[245,{"$nulls":4},"",{"$nulls":14},{"$f":"IF(QualitativeData[[#This Row],['# of Levels Up/Down]]=\"\",\"Y\",\"N\")","v":"Y"}]
[246,{"$nulls":4},"",{"$nulls":14},{"$f":"IF(QualitativeData[[#This Row],['# of Levels Up/Down]]=\"\",\"Y\",\"N\")","v":"Y"}]
[247,{"$nulls":4},"",{"$nulls":14},{"$f":"IF(QualitativeData[[#This Row],['# of Levels Up/Down]]=\"\",\"Y\",\"N\")","v":"Y"}]
[248,{"$nulls":4},"",{"$nulls":14},{"$f":"IF(QualitativeData[[#This Row],['# of Levels Up/Down]]=\"\",\"Y\",\"N\")","v":"Y"}]
[249,{"$nulls":4},"",{"$nulls":14},{"$f":"IF(QualitativeData[[#This Row],['# of Levels Up/Down]]=\"\",\"Y\",\"N\")","v":"Y"}]
[250,{"$nulls":4},"",{"$nulls":14},{"$f":"IF(QualitativeData[[#This Row],['# of Levels Up/Down]]=\"\",\"Y\",\"N\")","v":"Y"}]

{"sheet":"Simple Generic Template","index":3,"n_rows":257,"n_cols":8,"rows_kept":257,"merged":[[0,0,0,5],[1,0,1,5],[2,2,2,3],[2,4,3,4],[2,5,3,5],[3,2,3,3],[5,0,5,5],[5,7,6,7],[7,7,93,7]]}
["Data Collation Sheet: Generic Template"]
["INFORMATION"]
[null,"Assessment:",null,null,"Assessment times:"]
[null,"Other information:"]
[]
["DATA",{"$nulls":6},"COMMENTS"]
["#","Student","Other information (e.g. class)","Time 1 Data","Time 2 Data","Difference"]
[1,{"$nulls":4},{"$f":"IF(SimpleData[[#This Row],[Time 2 Data]]=\"\",\"\",(IFERROR(SimpleData[[#This Row],[Time 2 Data]]-SimpleData[[#This Row],[Time 1 Data]],\"\")))","v":""}]
[{"$f":"A8+1","v":2},{"$nulls":4},{"$f":"IF(SimpleData[[#This Row],[Time 2 Data]]=\"\",\"\",(IFERROR(SimpleData[[#This Row],[Time 2 Data]]-SimpleData[[#This Row],[Time 1 Data]],\"\")))","v":""}]
[{"$f":"A9+1","v":3},{"$nulls":4},{"$f":"IF(SimpleData[[#This Row],[Time 2 Data]]=\"\",\"\",(IFERROR(SimpleData[[#This Row],[Time 2 Data]]-SimpleData[[#This Row],[Time 1 Data]],\"\")))","v":""}]
[4,{"$nulls":4},{"$f":"IF(SimpleData[[#This Row],[Time 2 Data]]=\"\",\"\",(IFERROR(SimpleData[[#This Row],[Time 2 Data]]-SimpleData[[#This Row],[Time 1 Data]],\"\")))","v":""}]
[5,{"$nulls":4},{"$f":"IF(SimpleData[[#This Row],[Time 2 Data]]=\"\",\"\",(IFERROR(SimpleData[[#This Row],[Time 2 Data]]-SimpleData[[#This Row],[Time 1 Data]],\"\")))","v":""}]
[6,{"$nulls":4},{"$f":"IF(SimpleData[[#This Row],[Time 2 Data]]=\"\",\"\",(IFERROR(SimpleData[[#This Row],[Time 2 Data]]-SimpleData[[#This Row],[Time 1 Data]],\"\")))","v":""}]
[7,{"$nulls":4},{"$f":"IF(SimpleData[[#This Row],[Time 2 Data]]=\"\",\"\",(IFERROR(SimpleData[[#This Row],[Time 2 Data]]-SimpleData[[#This Row],[Time 1 Data]],\"\")))","v":""}]
[8,{"$nulls":4},{"$f":"IF(SimpleData[[#This Row],[Time 2 Data]]=\"\",\"\",(IFERROR(SimpleData[[#This Row],[Time 2 Data]]-SimpleData[[#This Row],[Time 1 Data]],\"\")))","v":""}]
[9,{"$nulls":4},{"$f":"IF(SimpleData[[#This Row],[Time 2 Data]]=\"\",\"\",(IFERROR(SimpleData[[#This Row],[Time 2 Data]]-SimpleData[[#This Row],[Time 1 Data]],\"\")))","v":""}]
[10,{"$nulls":4},{"$f":"IF(SimpleData[[#This Row],[Time 2 Data]]=\"\",\"\",(IFERROR(SimpleData[[#This Row],[Time 2 Data]]-SimpleData[[#This Row],[Time 1 Data]],\"\")))","v":""}]
[11,{"$nulls":4},{"$f":"IF(SimpleData[[#This Row],[Time 2 Data]]=\"\",\"\",(IFERROR(SimpleData[[#This Row],[Time 2 Data]]-SimpleData[[#This Row],[Time 1 Data]],\"\")))","v":""}]
[12,{"$nulls":4},{"$f":"IF(SimpleData[[#This Row],[Time 2 Data]]=\"\",\"\",(IFERROR(SimpleData[[#This Row],[Time 2 Data]]-SimpleData[[#This Row],[Time 1 Data]],\"\")))","v":""}]
[13,{"$nulls":4},{"$f":"IF(SimpleData[[#This Row],[Time 2 Data]]=\"\",\"\",(IFERROR(SimpleData[[#This Row],[Time 2 Data]]-SimpleData[[#This Row],[Time 1 Data]],\"\")))","v":""}]
[14,{"$nulls":4},{"$f":"IF(SimpleData[[#This Row],[Time 2 Data]]=\"\",\"\",(IFERROR(SimpleData[[#This Row],[Time 2 Data]]-SimpleData[[#This Row],[Time 1 Data]],\"\")))","v":""}]
[15,{"$nulls":4},{"$f":"IF(SimpleData[[#This Row],[Time 2 Data]]=\"\",\"\",(IFERROR(SimpleData[[#This Row],[Time 2 Data]]-SimpleData[[#This Row],[Time 1 Data]],\"\")))","v":""}]
[16,{"$nulls":4},{"$f":"IF(SimpleData[[#This Row],[Time 2 Data]]=\"\",\"\",(IFERROR(SimpleData[[#This Row],[Time 2 Data]]-SimpleData[[#This Row],[Time 1 Data]],\"\")))","v":""}]
[17,{"$nulls":4},{"$f":"IF(SimpleData[[#This Row],[Time 2 Data]]=\"\",\"\",(IFERROR(SimpleData[[#This Row],[Time 2 Data]]-SimpleData[[#This Row],[Time 1 Data]],\"\")))","v":""}]
[18,{"$nulls":4},{"$f":"IF(SimpleData[[#This Row],[Time 2 Data]]=\"\",\"\",(IFERROR(SimpleData[[#This Row],[Time 2 Data]]-SimpleData[[#This Row],[Time 1 Data]],\"\")))","v":""}]
[19,{"$nulls":4},{"$f":"IF(SimpleData[[#This Row],[Time 2 Data]]=\"\",\"\",(IFERROR(SimpleData[[#This Row],[Time 2 Data]]-SimpleData[[#This Row],[Time 1 Data]],\"\")))","v":""}]
[20,{"$nulls":4},{"$f":"IF(SimpleData[[#This Row],[Time 2 Data]]=\"\",\"\",(IFERROR(SimpleData[[#This Row],[Time 2 Data]]-SimpleData[[#This Row],[Time 1 Data]],\"\")))","v":""}]
[21,{"$nulls":4},{"$f":"IF(SimpleData[[#This Row],[Time 2 Data]]=\"\",\"\",(IFERROR(SimpleData[[#This Row],[Time 2 Data]]-SimpleData[[#This Row],[Time 1 Data]],\"\")))","v":""}]
[22,{"$nulls":4},{"$f":"IF(SimpleData[[#This Row],[Time 2 Data]]=\"\",\"\",(IFERROR(SimpleData[[#This Row],[Time 2 Data]]-SimpleData[[#This Row],[Time 1 Data]],\"\")))","v":""}]
[23,{"$nulls":4},{"$f":"IF(SimpleData[[#This Row],[Time 2 Data]]=\"\",\"\",(IFERROR(SimpleData[[#This Row],[Time 2 Data]]-SimpleData[[#This Row],[Time 1 Data]],\"\")))","v":""}]
[24,{"$nulls":4},{"$f":"IF(SimpleData[[#This Row],[Time 2 Data]]=\"\",\"\",(IFERROR(SimpleData[[#This Row],[Time 2 Data]]-SimpleData[[#This Row],[Time 1 Data]],\"\")))","v":""}]
[25,{"$nulls":4},{"$f":"IF(SimpleData[[#This Row],[Time 2 Data]]=\"\",\"\",(IFERROR(SimpleData[[#This Row],[Time 2 Data]]-SimpleData[[#This Row],[Time 1 Data]],\"\")))","v":""}]
[26,{"$nulls":4},{"$f":"IF(SimpleData[[#This Row],[Time 2 Data]]=\"\",\"\",(IFERROR(SimpleData[[#This Row],[Time 2 Data]]-SimpleData[[#This Row],[Time 1 Data]],\"\")))","v":""}]
[27,{"$nulls":4},{"$f":"IF(SimpleData[[#This Row],[Time 2 Data]]=\"\",\"\",(IFERROR(SimpleData[[#This Row],[Time 2 Data]]-SimpleData[[#This Row],[Time 1 Data]],\"\")))","v":""}]
[28,{"$nulls":4},{"$f":"IF(SimpleData[[#This Row],[Time 2 Data]]=\"\",\"\",(IFERROR(SimpleData[[#This Row],[Time 2 Data]]-SimpleData[[#This Row],[Time 1 Data]],\"\")))","v":""}]
[29,{"$nulls":4},{"$f":"IF(SimpleData[[#This Row],[Time 2 Data]]=\"\",\"\",(IFERROR(SimpleData[[#This Row],[Time 2 Data]]-SimpleData[[#This Row],[Time 1 Data]],\"\")))","v":""}]
[30,{"$nulls":4},{"$f":"IF(SimpleData[[#This Row],[Time 2 Data]]=\"\",\"\",(IFERROR(SimpleData[[#This Row],[Time 2 Data]]-SimpleData[[#This Row],[Time 1 Data]],\"\")))","v":""}]
[31,{"$nulls":4},{"$f":"IF(SimpleData[[#This Row],[Time 2 Data]]=\"\",\"\",(IFERROR(SimpleData[[#This Row],[Time 2 Data]]-SimpleData[[#This Row],[Time 1 Data]],\"\")))","v":""}]
[32,{"$nulls":4},{"$f":"IF(SimpleData[[#This Row],[Time 2 Data]]=\"\",\"\",(IFERROR(SimpleData[[#This Row],[Time 2 Data]]-SimpleData[[#This Row],[Time 1 Data]],\"\")))","v":""}]
[33,{"$nulls":4},{"$f":"IF(SimpleData[[#This Row],[Time 2 Data]]=\"\",\"\",(IFERROR(SimpleData[[#This Row],[Time 2 Data]]-SimpleData[[#This Row],[Time 1 Data]],\"\")))","v":""}]
[34,{"$nulls":4},{"$f":"IF(SimpleData[[#This Row],[Time 2 Data]]=\"\",\"\",(IFERROR(SimpleData[[#This Row],[Time 2 Data]]-SimpleData[[#This Row],[Time 1 Data]],\"\")))","v":""}]
[35,{"$nulls":4},{"$f":"IF(SimpleData[[#This Row],[Time 2 Data]]=\"\",\"\",(IFERROR(SimpleData[[#This Row],[Time 2 Data]]-SimpleData[[#This Row],[Time 1 Data]],\"\")))","v":""}]
[36,{"$nulls":4},{"$f":"IF(SimpleData[[#This Row],[Time 2 Data]]=\"\",\"\",(IFERROR(SimpleData[[#This Row],[Time 2 Data]]-SimpleData[[#This Row],[Time 1 Data]],\"\")))","v":""}]
[37,{"$nulls":4},{"$f":"IF(SimpleData[[#This Row],[Time 2 Data]]=\"\",\"\",(IFERROR(SimpleData[[#This Row],[Time 2 Data]]-SimpleData[[#This Row],[Time 1 Data]],\"\")))","v":""}]
[38,{"$nulls":4},{"$f":"IF(SimpleData[[#This Row],[Time 2 Data]]=\"\",\"\",(IFERROR(SimpleData[[#This Row],[Time 2 Data]]-SimpleData[[#This Row],[Time 1 Data]],\"\")))","v":""}]
[39,{"$nulls":4},{"$f":"IF(SimpleData[[#This Row],[Time 2 Data]]=\"\",\"\",(IFERROR(SimpleData[[#This Row],[Time 2 Data]]-SimpleData[[#This Row],[Time 1 Data]],\"\")))","v":""}]
[40,{"$nulls":4},{"$f":"IF(SimpleData[[#This Row],[Time 2 Data]]=\"\",\"\",(IFERROR(SimpleData[[#This Row],[Time 2 Data]]-SimpleData[[#This Row],[Time 1 Data]],\"\")))","v":""}]
[41,{"$nulls":4},{"$f":"IF(SimpleData[[#This Row],[Time 2 Data]]=\"\",\"\",(IFERROR(SimpleData[[#This Row],[Time 2 Data]]-SimpleData[[#This Row],[Time 1 Data]],\"\")))","v":""}]
[42,{"$nulls":4},{"$f":"IF(SimpleData[[#This Row],[Time 2 Data]]=\"\",\"\",(IFERROR(SimpleData[[#This Row],[Time 2 Data]]-SimpleData[[#This Row],[Time 1 Data]],\"\")))","v":""}]
[43,{"$nulls":4},{"$f":"IF(SimpleData[[#This Row],[Time 2 Data]]=\"\",\"\",(IFERROR(SimpleData[[#This Row],[Time 2 Data]]-SimpleData[[#This Row],[Time 1 Data]],\"\")))","v":""}]
[44,{"$nulls":4},{"$f":"IF(SimpleData[[#This Row],[Time 2 Data]]=\"\",\"\",(IFERROR(SimpleData[[#This Row],[Time 2 Data]]-SimpleData[[#This Row],[Time 1 Data]],\"\")))","v":""}]
[45,{"$nulls":4},{"$f":"IF(SimpleData[[#This Row],[Time 2 Data]]=\"\",\"\",(IFERROR(SimpleData[[#This Row],[Time 2 Data]]-SimpleData[[#This Row],[Time 1 Data]],\"\")))","v":""}]
[46,{"$nulls":4},{"$f":"IF(SimpleData[[#This Row],[Time 2 Data]]=\"\",\"\",(IFERROR(SimpleData[[#This Row],[Time 2 Data]]-SimpleData[[#This Row],[Time 1 Data]],\"\")))","v":""}]
[47,{"$nulls":4},{"$f":"IF(SimpleData[[#This Row],[Time 2 Data]]=\"\",\"\",(IFERROR(SimpleData[[#This Row],[Time 2 Data]]-SimpleData[[#This Row],[Time 1 Data]],\"\")))","v":""}]
[48,{"$nulls":4},{"$f":"IF(SimpleData[[#This Row],[Time 2 Data]]=\"\",\"\",(IFERROR(SimpleData[[#This Row],[Time 2 Data]]-SimpleData[[#This Row],[Time 1 Data]],\"\")))","v":""}]
[49,{"$nulls":4},{"$f":"IF(SimpleData[[#This Row],[Time 2 Data]]=\"\",\"\",(IFERROR(SimpleData[[#This Row],[Time 2 Data]]-SimpleData[[#This Row],[Time 1 Data]],\"\")))","v":""}]
[50,{"$nulls":4},{"$f":"IF(SimpleData[[#This Row],[Time 2 Data]]=\"\",\"\",(IFERROR(SimpleData[[#This Row],[Time 2 Data]]-SimpleData[[#This Row],[Time 1 Data]],\"\")))","v":""}]
[51,{"$nulls":4},{"$f":"IF(SimpleData[[#This Row],[Time 2 Data]]=\"\",\"\",(IFERROR(SimpleData[[#This Row],[Time 2 Data]]-SimpleData[[#This Row],[Time 1 Data]],\"\")))","v":""}]
[52,{"$nulls":4},{"$f":"IF(SimpleData[[#This Row],[Time 2 Data]]=\"\",\"\",(IFERROR(SimpleData[[#This Row],[Time 2 Data]]-SimpleData[[#This Row],[Time 1 Data]],\"\")))","v":""}]
[53,{"$nulls":4},{"$f":"IF(SimpleData[[#This Row],[Time 2 Data]]=\"\",\"\",(IFERROR(SimpleData[[#This Row],[Time 2 Data]]-SimpleData[[#This Row],[Time 1 Data]],\"\")))","v":""}]
[54,{"$nulls":4},{"$f":"IF(SimpleData[[#This Row],[Time 2 Data]]=\"\",\"\",(IFERROR(SimpleData[[#This Row],[Time 2 Data]]-SimpleData[[#This Row],[Time 1 Data]],\"\")))","v":""}]
[55,{"$nulls":4},{"$f":"IF(SimpleData[[#This Row],[Time 2 Data]]=\"\",\"\",(IFERROR(SimpleData[[#This Row],[Time 2 Data]]-SimpleData[[#This Row],[Time 1 Data]],\"\")))","v":""}]
[56,{"$nulls":4},{"$f":"IF(SimpleData[[#This Row],[Time 2 Data]]=\"\",\"\",(IFERROR(SimpleData[[#This Row],[Time 2 Data]]-SimpleData[[#This Row],[Time 1 Data]],\"\")))","v":""}]
[57,{"$nulls":4},{"$f":"IF(SimpleData[[#This Row],[Time 2 Data]]=\"\",\"\",(IFERROR(SimpleData[[#This Row],[Time 2 Data]]-SimpleData[[#This Row],[Time 1 Data]],\"\")))","v":""}]
[58,{"$nulls":4},{"$f":"IF(SimpleData[[#This Row],[Time 2 Data]]=\"\",\"\",(IFERROR(SimpleData[[#This Row],[Time 2 Data]]-SimpleData[[#This Row],[Time 1 Data]],\"\")))","v":""}]
[59,{"$nulls":4},{"$f":"IF(SimpleData[[#This Row],[Time 2 Data]]=\"\",\"\",(IFERROR(SimpleData[[#This Row],[Time 2 Data]]-SimpleData[[#This Row],[Time 1 Data]],\"\")))","v":""}]
[60,{"$nulls":4},{"$f":"IF(SimpleData[[#This Row],[Time 2 Data]]=\"\",\"\",(IFERROR(SimpleData[[#This Row],[Time 2 Data]]-SimpleData[[#This Row],[Time 1 Data]],\"\")))","v":""}]
[61,{"$nulls":4},{"$f":"IF(SimpleData[[#This Row],[Time 2 Data]]=\"\",\"\",(IFERROR(SimpleData[[#This Row],[Time 2 Data]]-SimpleData[[#This Row],[Time 1 Data]],\"\")))","v":""}]
[62,{"$nulls":4},{"$f":"IF(SimpleData[[#This Row],[Time 2 Data]]=\"\",\"\",(IFERROR(SimpleData[[#This Row],[Time 2 Data]]-SimpleData[[#This Row],[Time 1 Data]],\"\")))","v":""}]
[63,{"$nulls":4},{"$f":"IF(SimpleData[[#This Row],[Time 2 Data]]=\"\",\"\",(IFERROR(SimpleData[[#This Row],[Time 2 Data]]-SimpleData[[#This Row],[Time 1 Data]],\"\")))","v":""}]
[64,{"$nulls":4},{"$f":"IF(SimpleData[[#This Row],[Time 2 Data]]=\"\",\"\",(IFERROR(SimpleData[[#This Row],[Time 2 Data]]-SimpleData[[#This Row],[Time 1 Data]],\"\")))","v":""}]
[65,{"$nulls":4},{"$f":"IF(SimpleData[[#This Row],[Time 2 Data]]=\"\",\"\",(IFERROR(SimpleData[[#This Row],[Time 2 Data]]-SimpleData[[#This Row],[Time 1 Data]],\"\")))","v":""}]
[66,{"$nulls":4},{"$f":"IF(SimpleData[[#This Row],[Time 2 Data]]=\"\",\"\",(IFERROR(SimpleData[[#This Row],[Time 2 Data]]-SimpleData[[#This Row],[Time 1 Data]],\"\")))","v":""}]
[{"$f":"A73+1","v":67},{"$nulls":4},{"$f":"IF(SimpleData[[#This Row],[Time 2 Data]]=\"\",\"\",(IFERROR(SimpleData[[#This Row],[Time 2 Data]]-SimpleData[[#This Row],[Time 1 Data]],\"\")))","v":""}]
[68,{"$nulls":4},{"$f":"IF(SimpleData[[#This Row],[Time 2 Data]]=\"\",\"\",(IFERROR(SimpleData[[#This Row],[Time 2 Data]]-SimpleData[[#This Row],[Time 1 Data]],\"\")))","v":""}]
[69,{"$nulls":4},{"$f":"IF(SimpleData[[#This Row],[Time 2 Data]]=\"\",\"\",(IFERROR(SimpleData[[#This Row],[Time 2 Data]]-SimpleData[[#This Row],[Time 1 Data]],\"\")))","v":""}]
[70,{"$nulls":4},{"$f":"IF(SimpleData[[#This Row],[Time 2 Data]]=\"\",\"\",(IFERROR(SimpleData[[#This Row],[Time 2 Data]]-SimpleData[[#This Row],[Time 1 Data]],\"\")))","v":""}]
[71,{"$nulls":4},{"$f":"IF(SimpleData[[#This Row],[Time 2 Data]]=\"\",\"\",(IFERROR(SimpleData[[#This Row],[Time 2 Data]]-SimpleData[[#This Row],[Time 1 Data]],\"\")))","v":""}]
[72,{"$nulls":4},{"$f":"IF(SimpleData[[#This Row],[Time 2 Data]]=\"\",\"\",(IFERROR(SimpleData[[#This Row],[Time 2 Data]]-SimpleData[[#This Row],[Time 1 Data]],\"\")))","v":""}]
[73,{"$nulls":4},{"$f":"IF(SimpleData[[#This Row],[Time 2 Data]]=\"\",\"\",(IFERROR(SimpleData[[#This Row],[Time 2 Data]]-SimpleData[[#This Row],[Time 1 Data]],\"\")))","v":""}]
[74,{"$nulls":4},{"$f":"IF(SimpleData[[#This Row],[Time 2 Data]]=\"\",\"\",(IFERROR(SimpleData[[#This Row],[Time 2 Data]]-SimpleData[[#This Row],[Time 1 Data]],\"\")))","v":""}]
[75,{"$nulls":4},{"$f":"IF(SimpleData[[#This Row],[Time 2 Data]]=\"\",\"\",(IFERROR(SimpleData[[#This Row],[Time 2 Data]]-SimpleData[[#This Row],[Time 1 Data]],\"\")))","v":""}]
[76,{"$nulls":4},{"$f":"IF(SimpleData[[#This Row],[Time 2 Data]]=\"\",\"\",(IFERROR(SimpleData[[#This Row],[Time 2 Data]]-SimpleData[[#This Row],[Time 1 Data]],\"\")))","v":""}]
[77,{"$nulls":4},{"$f":"IF(SimpleData[[#This Row],[Time 2 Data]]=\"\",\"\",(IFERROR(SimpleData[[#This Row],[Time 2 Data]]-SimpleData[[#This Row],[Time 1 Data]],\"\")))","v":""}]
[78,{"$nulls":4},{"$f":"IF(SimpleData[[#This Row],[Time 2 Data]]=\"\",\"\",(IFERROR(SimpleData[[#This Row],[Time 2 Data]]-SimpleData[[#This Row],[Time 1 Data]],\"\")))","v":""}]
[79,{"$nulls":4},{"$f":"IF(SimpleData[[#This Row],[Time 2 Data]]=\"\",\"\",(IFERROR(SimpleData[[#This Row],[Time 2 Data]]-SimpleData[[#This Row],[Time 1 Data]],\"\")))","v":""}]
[80,{"$nulls":4},{"$f":"IF(SimpleData[[#This Row],[Time 2 Data]]=\"\",\"\",(IFERROR(SimpleData[[#This Row],[Time 2 Data]]-SimpleData[[#This Row],[Time 1 Data]],\"\")))","v":""}]
[81,{"$nulls":4},{"$f":"IF(SimpleData[[#This Row],[Time 2 Data]]=\"\",\"\",(IFERROR(SimpleData[[#This Row],[Time 2 Data]]-SimpleData[[#This Row],[Time 1 Data]],\"\")))","v":""}]
[82,{"$nulls":4},{"$f":"IF(SimpleData[[#This Row],[Time 2 Data]]=\"\",\"\",(IFERROR(SimpleData[[#This Row],[Time 2 Data]]-SimpleData[[#This Row],[Time 1 Data]],\"\")))","v":""}]
[83,{"$nulls":4},{"$f":"IF(SimpleData[[#This Row],[Time 2 Data]]=\"\",\"\",(IFERROR(SimpleData[[#This Row],[Time 2 Data]]-SimpleData[[#This Row],[Time 1 Data]],\"\")))","v":""}]
[84,{"$nulls":4},{"$f":"IF(SimpleData[[#This Row],[Time 2 Data]]=\"\",\"\",(IFERROR(SimpleData[[#This Row],[Time 2 Data]]-SimpleData[[#This Row],[Time 1 Data]],\"\")))","v":""}]
[85,{"$nulls":4},{"$f":"IF(SimpleData[[#This Row],[Time 2 Data]]=\"\",\"\",(IFERROR(SimpleData[[#This Row],[Time 2 Data]]-SimpleData[[#This Row],[Time 1 Data]],\"\")))","v":""}]
[86,{"$nulls":4},{"$f":"IF(SimpleData[[#This Row],[Time 2 Data]]=\"\",\"\",(IFERROR(SimpleData[[#This Row],[Time 2 Data]]-SimpleData[[#This Row],[Time 1 Data]],\"\")))","v":""}]
[87,{"$nulls":4},{"$f":"IF(SimpleData[[#This Row],[Time 2 Data]]=\"\",\"\",(IFERROR(SimpleData[[#This Row],[Time 2 Data]]-SimpleData[[#This Row],[Time 1 Data]],\"\")))","v":""}]
[88,{"$nulls":4},{"$f":"IF(SimpleData[[#This Row],[Time 2 Data]]=\"\",\"\",(IFERROR(SimpleData[[#This Row],[Time 2 Data]]-SimpleData[[#This Row],[Time 1 Data]],\"\")))","v":""}]
[89,{"$nulls":4},{"$f":"IF(SimpleData[[#This Row],[Time 2 Data]]=\"\",\"\",(IFERROR(SimpleData[[#This Row],[Time 2 Data]]-SimpleData[[#This Row],[Time 1 Data]],\"\")))","v":""}]
[90,{"$nulls":4},{"$f":"IF(SimpleData[[#This Row],[Time 2 Data]]=\"\",\"\",(IFERROR(SimpleData[[#This Row],[Time 2 Data]]-SimpleData[[#This Row],[Time 1 Data]],\"\")))","v":""}]
[91,{"$nulls":4},{"$f":"IF(SimpleData[[#This Row],[Time 2 Data]]=\"\",\"\",(IFERROR(SimpleData[[#This Row],[Time 2 Data]]-SimpleData[[#This Row],[Time 1 Data]],\"\")))","v":""}]
[92,{"$nulls":4},{"$f":"IF(SimpleData[[#This Row],[Time 2 Data]]=\"\",\"\",(IFERROR(SimpleData[[#This Row],[Time 2 Data]]-SimpleData[[#This Row],[Time 1 Data]],\"\")))","v":""}]
[93,{"$nulls":4},{"$f":"IF(SimpleData[[#This Row],[Time 2 Data]]=\"\",\"\",(IFERROR(SimpleData[[#This Row],[Time 2 Data]]-SimpleData[[#This Row],[Time 1 Data]],\"\")))","v":""}]
[94,{"$nulls":4},{"$f":"IF(SimpleData[[#This Row],[Time 2 Data]]=\"\",\"\",(IFERROR(SimpleData[[#This Row],[Time 2 Data]]-SimpleData[[#This Row],[Time 1 Data]],\"\")))","v":""}]
[95,{"$nulls":4},{"$f":"IF(SimpleData[[#This Row],[Time 2 Data]]=\"\",\"\",(IFERROR(SimpleData[[#This Row],[Time 2 Data]]-SimpleData[[#This Row],[Time 1 Data]],\"\")))","v":""}]
[96,{"$nulls":4},{"$f":"IF(SimpleData[[#This Row],[Time 2 Data]]=\"\",\"\",(IFERROR(SimpleData[[#This Row],[Time 2 Data]]-SimpleData[[#This Row],[Time 1 Data]],\"\")))","v":""}]
[97,{"$nulls":4},{"$f":"IF(SimpleData[[#This Row],[Time 2 Data]]=\"\",\"\",(IFERROR(SimpleData[[#This Row],[Time 2 Data]]-SimpleData[[#This Row],[Time 1 Data]],\"\")))","v":""}]
[98,{"$nulls":4},{"$f":"IF(SimpleData[[#This Row],[Time 2 Data]]=\"\",\"\",(IFERROR(SimpleData[[#This Row],[Time 2 Data]]-SimpleData[[#This Row],[Time 1 Data]],\"\")))","v":""}]
[99,{"$nulls":4},{"$f":"IF(SimpleData[[#This Row],[Time 2 Data]]=\"\",\"\",(IFERROR(SimpleData[[#This Row],[Time 2 Data]]-SimpleData[[#This Row],[Time 1 Data]],\"\")))","v":""}]
[100,{"$nulls":4},{"$f":"IF(SimpleData[[#This Row],[Time 2 Data]]=\"\",\"\",(IFERROR(SimpleData[[#This Row],[Time 2 Data]]-SimpleData[[#This Row],[Time 1 Data]],\"\")))","v":""}]
[101,{"$nulls":4},{"$f":"IF(SimpleData[[#This Row],[Time 2 Data]]=\"\",\"\",(IFERROR(SimpleData[[#This Row],[Time 2 Data]]-SimpleData[[#This Row],[Time 1 Data]],\"\")))","v":""}]
[102,{"$nulls":4},{"$f":"IF(SimpleData[[#This Row],[Time 2 Data]]=\"\",\"\",(IFERROR(SimpleData[[#This Row],[Time 2 Data]]-SimpleData[[#This Row],[Time 1 Data]],\"\")))","v":""}]
[103,{"$nulls":4},{"$f":"IF(SimpleData[[#This Row],[Time 2 Data]]=\"\",\"\",(IFERROR(SimpleData[[#This Row],[Time 2 Data]]-SimpleData[[#This Row],[Time 1 Data]],\"\")))","v":""}]
[104,{"$nulls":4},{"$f":"IF(SimpleData[[#This Row],[Time 2 Data]]=\"\",\"\",(IFERROR(SimpleData[[#This Row],[Time 2 Data]]-SimpleData[[#This Row],[Time 1 Data]],\"\")))","v":""}]
[105,{"$nulls":4},{"$f":"IF(SimpleData[[#This Row],[Time 2 Data]]=\"\",\"\",(IFERROR(SimpleData[[#This Row],[Time 2 Data]]-SimpleData[[#This Row],[Time 1 Data]],\"\")))","v":""}]
[106,{"$nulls":4},{"$f":"IF(SimpleData[[#This Row],[Time 2 Data]]=\"\",\"\",(IFERROR(SimpleData[[#This Row],[Time 2 Data]]-SimpleData[[#This Row],[Time 1 Data]],\"\")))","v":""}]
[107,{"$nulls":4},{"$f":"IF(SimpleData[[#This Row],[Time 2 Data]]=\"\",\"\",(IFERROR(SimpleData[[#This Row],[Time 2 Data]]-SimpleData[[#This Row],[Time 1 Data]],\"\")))","v":""}]
[108,{"$nulls":4},{"$f":"IF(SimpleData[[#This Row],[Time 2 Data]]=\"\",\"\",(IFERROR(SimpleData[[#This Row],[Time 2 Data]]-SimpleData[[#This Row],[Time 1 Data]],\"\")))","v":""}]
[109,{"$nulls":4},{"$f":"IF(SimpleData[[#This Row],[Time 2 Data]]=\"\",\"\",(IFERROR(SimpleData[[#This Row],[Time 2 Data]]-SimpleData[[#This Row],[Time 1 Data]],\"\")))","v":""}]
[110,{"$nulls":4},{"$f":"IF(SimpleData[[#This Row],[Time 2 Data]]=\"\",\"\",(IFERROR(SimpleData[[#This Row],[Time 2 Data]]-SimpleData[[#This Row],[Time 1 Data]],\"\")))","v":""}]
[111,{"$nulls":4},{"$f":"IF(SimpleData[[#This Row],[Time 2 Data]]=\"\",\"\",(IFERROR(SimpleData[[#This Row],[Time 2 Data]]-SimpleData[[#This Row],[Time 1 Data]],\"\")))","v":""}]
[112,{"$nulls":4},{"$f":"IF(SimpleData[[#This Row],[Time 2 Data]]=\"\",\"\",(IFERROR(SimpleData[[#This Row],[Time 2 Data]]-SimpleData[[#This Row],[Time 1 Data]],\"\")))","v":""}]
[113,{"$nulls":4},{"$f":"IF(SimpleData[[#This Row],[Time 2 Data]]=\"\",\"\",(IFERROR(SimpleData[[#This Row],[Time 2 Data]]-SimpleData[[#This Row],[Time 1 Data]],\"\")))","v":""}]
[114,{"$nulls":4},{"$f":"IF(SimpleData[[#This Row],[Time 2 Data]]=\"\",\"\",(IFERROR(SimpleData[[#This Row],[Time 2 Data]]-SimpleData[[#This Row],[Time 1 Data]],\"\")))","v":""}]
[115,{"$nulls":4},{"$f":"IF(SimpleData[[#This Row],[Time 2 Data]]=\"\",\"\",(IFERROR(SimpleData[[#This Row],[Time 2 Data]]-SimpleData[[#This Row],[Time 1 Data]],\"\")))","v":""}]
[116,{"$nulls":4},{"$f":"IF(SimpleData[[#This Row],[Time 2 Data]]=\"\",\"\",(IFERROR(SimpleData[[#This Row],[Time 2 Data]]-SimpleData[[#This Row],[Time 1 Data]],\"\")))","v":""}]
[117,{"$nulls":4},{"$f":"IF(SimpleData[[#This Row],[Time 2 Data]]=\"\",\"\",(IFERROR(SimpleData[[#This Row],[Time 2 Data]]-SimpleData[[#This Row],[Time 1 Data]],\"\")))","v":""}]
[118,{"$nulls":4},{"$f":"IF(SimpleData[[#This Row],[Time 2 Data]]=\"\",\"\",(IFERROR(SimpleData[[#This Row],[Time 2 Data]]-SimpleData[[#This Row],[Time 1 Data]],\"\")))","v":""}]
[119,{"$nulls":4},{"$f":"IF(SimpleData[[#This Row],[Time 2 Data]]=\"\",\"\",(IFERROR(SimpleData[[#This Row],[Time 2 Data]]-SimpleData[[#This Row],[Time 1 Data]],\"\")))","v":""}]
[120,{"$nulls":4},{"$f":"IF(SimpleData[[#This Row],[Time 2 Data]]=\"\",\"\",(IFERROR(SimpleData[[#This Row],[Time 2 Data]]-SimpleData[[#This Row],[Time 1 Data]],\"\")))","v":""}]
[121,{"$nulls":4},{"$f":"IF(SimpleData[[#This Row],[Time 2 Data]]=\"\",\"\",(IFERROR(SimpleData[[#This Row],[Time 2 Data]]-SimpleData[[#This Row],[Time 1 Data]],\"\")))","v":""}]
[122,{"$nulls":4},{"$f":"IF(SimpleData[[#This Row],[Time 2 Data]]=\"\",\"\",(IFERROR(SimpleData[[#This Row],[Time 2 Data]]-SimpleData[[#This Row],[Time 1 Data]],\"\")))","v":""}]
[123,{"$nulls":4},{"$f":"IF(SimpleData[[#This Row],[Time 2 Data]]=\"\",\"\",(IFERROR(SimpleData[[#This Row],[Time 2 Data]]-SimpleData[[#This Row],[Time 1 Data]],\"\")))","v":""}]
[124,{"$nulls":4},{"$f":"IF(SimpleData[[#This Row],[Time 2 Data]]=\"\",\"\",(IFERROR(SimpleData[[#This Row],[Time 2 Data]]-SimpleData[[#This Row],[Time 1 Data]],\"\")))","v":""}]
[125,{"$nulls":4},{"$f":"IF(SimpleData[[#This Row],[Time 2 Data]]=\"\",\"\",(IFERROR(SimpleData[[#This Row],[Time 2 Data]]-SimpleData[[#This Row],[Time 1 Data]],\"\")))","v":""}]
[126,{"$nulls":4},{"$f":"IF(SimpleData[[#This Row],[Time 2 Data]]=\"\",\"\",(IFERROR(SimpleData[[#This Row],[Time 2 Data]]-SimpleData[[#This Row],[Time 1 Data]],\"\")))","v":""}]
[127,{"$nulls":4},{"$f":"IF(SimpleData[[#This Row],[Time 2 Data]]=\"\",\"\",(IFERROR(SimpleData[[#This Row],[Time 2 Data]]-SimpleData[[#This Row],[Time 1 Data]],\"\")))","v":""}]
[128,{"$nulls":4},{"$f":"IF(SimpleData[[#This Row],[Time 2 Data]]=\"\",\"\",(IFERROR(SimpleData[[#This Row],[Time 2 Data]]-SimpleData[[#This Row],[Time 1 Data]],\"\")))","v":""}]
[129,{"$nulls":4},{"$f":"IF(SimpleData[[#This Row],[Time 2 Data]]=\"\",\"\",(IFERROR(SimpleData[[#This Row],[Time 2 Data]]-SimpleData[[#This Row],[Time 1 Data]],\"\")))","v":""}]
[130,{"$nulls":4},{"$f":"IF(SimpleData[[#This Row],[Time 2 Data]]=\"\",\"\",(IFERROR(SimpleData[[#This Row],[Time 2 Data]]-SimpleData[[#This Row],[Time 1 Data]],\"\")))","v":""}]
[{"$f":"A137+1","v":131},{"$nulls":4},{"$f":"IF(SimpleData[[#This Row],[Time 2 Data]]=\"\",\"\",(IFERROR(SimpleData[[#This Row],[Time 2 Data]]-SimpleData[[#This Row],[Time 1 Data]],\"\")))","v":""}]
[132,{"$nulls":4},{"$f":"IF(SimpleData[[#This Row],[Time 2 Data]]=\"\",\"\",(IFERROR(SimpleData[[#This Row],[Time 2 Data]]-SimpleData[[#This Row],[Time 1 Data]],\"\")))","v":""}]
[133,{"$nulls":4},{"$f":"IF(SimpleData[[#This Row],[Time 2 Data]]=\"\",\"\",(IFERROR(SimpleData[[#This Row],[Time 2 Data]]-SimpleData[[#This Row],[Time 1 Data]],\"\")))","v":""}]
[134,{"$nulls":4},{"$f":"IF(SimpleData[[#This Row],[Time 2 Data]]=\"\",\"\",(IFERROR(SimpleData[[#This Row],[Time 2 Data]]-SimpleData[[#This Row],[Time 1 Data]],\"\")))","v":""}]
[135,{"$nulls":4},{"$f":"IF(SimpleData[[#This Row],[Time 2 Data]]=\"\",\"\",(IFERROR(SimpleData[[#This Row],[Time 2 Data]]-SimpleData[[#This Row],[Time 1 Data]],\"\")))","v":""}]
[136,{"$nulls":4},{"$f":"IF(SimpleData[[#This Row],[Time 2 Data]]=\"\",\"\",(IFERROR(SimpleData[[#This Row],[Time 2 Data]]-SimpleData[[#This Row],[Time 1 Data]],\"\")))","v":""}]
[137,{"$nulls":4},{"$f":"IF(SimpleData[[#This Row],[Time 2 Data]]=\"\",\"\",(IFERROR(SimpleData[[#This Row],[Time 2 Data]]-SimpleData[[#This Row],[Time 1 Data]],\"\")))","v":""}]
[138,{"$nulls":4},{"$f":"IF(SimpleData[[#This Row],[Time 2 Data]]=\"\",\"\",(IFERROR(SimpleData[[#This Row],[Time 2 Data]]-SimpleData[[#This Row],[Time 1 Data]],\"\")))","v":""}]
[139,{"$nulls":4},{"$f":"IF(SimpleData[[#This Row],[Time 2 Data]]=\"\",\"\",(IFERROR(SimpleData[[#This Row],[Time 2 Data]]-SimpleData[[#This Row],[Time 1 Data]],\"\")))","v":""}]
[140,{"$nulls":4},{"$f":"IF(SimpleData[[#This Row],[Time 2 Data]]=\"\",\"\",(IFERROR(SimpleData[[#This Row],[Time 2 Data]]-SimpleData[[#This Row],[Time 1 Data]],\"\")))","v":""}]
[141,{"$nulls":4},{"$f":"IF(SimpleData[[#This Row],[Time 2 Data]]=\"\",\"\",(IFERROR(SimpleData[[#This Row],[Time 2 Data]]-SimpleData[[#This Row],[Time 1 Data]],\"\")))","v":""}]
[142,{"$nulls":4},{"$f":"IF(SimpleData[[#This Row],[Time 2 Data]]=\"\",\"\",(IFERROR(SimpleData[[#This Row],[Time 2 Data]]-SimpleData[[#This Row],[Time 1 Data]],\"\")))","v":""}]
[143,{"$nulls":4},{"$f":"IF(SimpleData[[#This Row],[Time 2 Data]]=\"\",\"\",(IFERROR(SimpleData[[#This Row],[Time 2 Data]]-SimpleData[[#This Row],[Time 1 Data]],\"\")))","v":""}]
[144,{"$nulls":4},{"$f":"IF(SimpleData[[#This Row],[Time 2 Data]]=\"\",\"\",(IFERROR(SimpleData[[#This Row],[Time 2 Data]]-SimpleData[[#This Row],[Time 1 Data]],\"\")))","v":""}]
[145,{"$nulls":4},{"$f":"IF(SimpleData[[#This Row],[Time 2 Data]]=\"\",\"\",(IFERROR(SimpleData[[#This Row],[Time 2 Data]]-SimpleData[[#This Row],[Time 1 Data]],\"\")))","v":""}]
[146,{"$nulls":4},{"$f":"IF(SimpleData[[#This Row],[Time 2 Data]]=\"\",\"\",(IFERROR(SimpleData[[#This Row],[Time 2 Data]]-SimpleData[[#This Row],[Time 1 Data]],\"\")))","v":""}]
[147,{"$nulls":4},{"$f":"IF(SimpleData[[#This Row],[Time 2 Data]]=\"\",\"\",(IFERROR(SimpleData[[#This Row],[Time 2 Data]]-SimpleData[[#This Row],[Time 1 Data]],\"\")))","v":""}]
[148,{"$nulls":4},{"$f":"IF(SimpleData[[#This Row],[Time 2 Data]]=\"\",\"\",(IFERROR(SimpleData[[#This Row],[Time 2 Data]]-SimpleData[[#This Row],[Time 1 Data]],\"\")))","v":""}]
[149,{"$nulls":4},{"$f":"IF(SimpleData[[#This Row],[Time 2 Data]]=\"\",\"\",(IFERROR(SimpleData[[#This Row],[Time 2 Data]]-SimpleData[[#This Row],[Time 1 Data]],\"\")))","v":""}]
[150,{"$nulls":4},{"$f":"IF(SimpleData[[#This Row],[Time 2 Data]]=\"\",\"\",(IFERROR(SimpleData[[#This Row],[Time 2 Data]]-SimpleData[[#This Row],[Time 1 Data]],\"\")))","v":""}]
[151,{"$nulls":4},{"$f":"IF(SimpleData[[#This Row],[Time 2 Data]]=\"\",\"\",(IFERROR(SimpleData[[#This Row],[Time 2 Data]]-SimpleData[[#This Row],[Time 1 Data]],\"\")))","v":""}]
[152,{"$nulls":4},{"$f":"IF(SimpleData[[#This Row],[Time 2 Data]]=\"\",\"\",(IFERROR(SimpleData[[#This Row],[Time 2 Data]]-SimpleData[[#This Row],[Time 1 Data]],\"\")))","v":""}]
[153,{"$nulls":4},{"$f":"IF(SimpleData[[#This Row],[Time 2 Data]]=\"\",\"\",(IFERROR(SimpleData[[#This Row],[Time 2 Data]]-SimpleData[[#This Row],[Time 1 Data]],\"\")))","v":""}]
[154,{"$nulls":4},{"$f":"IF(SimpleData[[#This Row],[Time 2 Data]]=\"\",\"\",(IFERROR(SimpleData[[#This Row],[Time 2 Data]]-SimpleData[[#This Row],[Time 1 Data]],\"\")))","v":""}]
[155,{"$nulls":4},{"$f":"IF(SimpleData[[#This Row],[Time 2 Data]]=\"\",\"\",(IFERROR(SimpleData[[#This Row],[Time 2 Data]]-SimpleData[[#This Row],[Time 1 Data]],\"\")))","v":""}]
[156,{"$nulls":4},{"$f":"IF(SimpleData[[#This Row],[Time 2 Data]]=\"\",\"\",(IFERROR(SimpleData[[#This Row],[Time 2 Data]]-SimpleData[[#This Row],[Time 1 Data]],\"\")))","v":""}]
[157,{"$nulls":4},{"$f":"IF(SimpleData[[#This Row],[Time 2 Data]]=\"\",\"\",(IFERROR(SimpleData[[#This Row],[Time 2 Data]]-SimpleData[[#This Row],[Time 1 Data]],\"\")))","v":""}]
[158,{"$nulls":4},{"$f":"IF(SimpleData[[#This Row],[Time 2 Data]]=\"\",\"\",(IFERROR(SimpleData[[#This Row],[Time 2 Data]]-SimpleData[[#This Row],[Time 1 Data]],\"\")))","v":""}]
[159,{"$nulls":4},{"$f":"IF(SimpleData[[#This Row],[Time 2 Data]]=\"\",\"\",(IFERROR(SimpleData[[#This Row],[Time 2 Data]]-SimpleData[[#This Row],[Time 1 Data]],\"\")))","v":""}]
[160,{"$nulls":4},{"$f":"IF(SimpleData[[#This Row],[Time 2 Data]]=\"\",\"\",(IFERROR(SimpleData[[#This Row],[Time 2 Data]]-SimpleData[[#This Row],[Time 1 Data]],\"\")))","v":""}]
[161,{"$nulls":4},{"$f":"IF(SimpleData[[#This Row],[Time 2 Data]]=\"\",\"\",(IFERROR(SimpleData[[#This Row],[Time 2 Data]]-SimpleData[[#This Row],[Time 1 Data]],\"\")))","v":""}]
[162,{"$nulls":4},{"$f":"IF(SimpleData[[#This Row],[Time 2 Data]]=\"\",\"\",(IFERROR(SimpleData[[#This Row],[Time 2 Data]]-SimpleData[[#This Row],[Time 1 Data]],\"\")))","v":""}]
[163,{"$nulls":4},{"$f":"IF(SimpleData[[#This Row],[Time 2 Data]]=\"\",\"\",(IFERROR(SimpleData[[#This Row],[Time 2 Data]]-SimpleData[[#This Row],[Time 1 Data]],\"\")))","v":""}]
[164,{"$nulls":4},{"$f":"IF(SimpleData[[#This Row],[Time 2 Data]]=\"\",\"\",(IFERROR(SimpleData[[#This Row],[Time 2 Data]]-SimpleData[[#This Row],[Time 1 Data]],\"\")))","v":""}]
[165,{"$nulls":4},{"$f":"IF(SimpleData[[#This Row],[Time 2 Data]]=\"\",\"\",(IFERROR(SimpleData[[#This Row],[Time 2 Data]]-SimpleData[[#This Row],[Time 1 Data]],\"\")))","v":""}]
[166,{"$nulls":4},{"$f":"IF(SimpleData[[#This Row],[Time 2 Data]]=\"\",\"\",(IFERROR(SimpleData[[#This Row],[Time 2 Data]]-SimpleData[[#This Row],[Time 1 Data]],\"\")))","v":""}]
[167,{"$nulls":4},{"$f":"IF(SimpleData[[#This Row],[Time 2 Data]]=\"\",\"\",(IFERROR(SimpleData[[#This Row],[Time 2 Data]]-SimpleData[[#This Row],[Time 1 Data]],\"\")))","v":""}]
[168,{"$nulls":4},{"$f":"IF(SimpleData[[#This Row],[Time 2 Data]]=\"\",\"\",(IFERROR(SimpleData[[#This Row],[Time 2 Data]]-SimpleData[[#This Row],[Time 1 Data]],\"\")))","v":""}]
[169,{"$nulls":4},{"$f":"IF(SimpleData[[#This Row],[Time 2 Data]]=\"\",\"\",(IFERROR(SimpleData[[#This Row],[Time 2 Data]]-SimpleData[[#This Row],[Time 1 Data]],\"\")))","v":""}]
[170,{"$nulls":4},{"$f":"IF(SimpleData[[#This Row],[Time 2 Data]]=\"\",\"\",(IFERROR(SimpleData[[#This Row],[Time 2 Data]]-SimpleData[[#This Row],[Time 1 Data]],\"\")))","v":""}]
[171,{"$nulls":4},{"$f":"IF(SimpleData[[#This Row],[Time 2 Data]]=\"\",\"\",(IFERROR(SimpleData[[#This Row],[Time 2 Data]]-SimpleData[[#This Row],[Time 1 Data]],\"\")))","v":""}]
[172,{"$nulls":4},{"$f":"IF(SimpleData[[#This Row],[Time 2 Data]]=\"\",\"\",(IFERROR(SimpleData[[#This Row],[Time 2 Data]]-SimpleData[[#This Row],[Time 1 Data]],\"\")))","v":""}]
[173,{"$nulls":4},{"$f":"IF(SimpleData[[#This Row],[Time 2 Data]]=\"\",\"\",(IFERROR(SimpleData[[#This Row],[Time 2 Data]]-SimpleData[[#This Row],[Time 1 Data]],\"\")))","v":""}]
[174,{"$nulls":4},{"$f":"IF(SimpleData[[#This Row],[Time 2 Data]]=\"\",\"\",(IFERROR(SimpleData[[#This Row],[Time 2 Data]]-SimpleData[[#This Row],[Time 1 Data]],\"\")))","v":""}]
[175,{"$nulls":4},{"$f":"IF(SimpleData[[#This Row],[Time 2 Data]]=\"\",\"\",(IFERROR(SimpleData[[#This Row],[Time 2 Data]]-SimpleData[[#This Row],[Time 1 Data]],\"\")))","v":""}]
[176,{"$nulls":4},{"$f":"IF(SimpleData[[#This Row],[Time 2 Data]]=\"\",\"\",(IFERROR(SimpleData[[#This Row],[Time 2 Data]]-SimpleData[[#This Row],[Time 1 Data]],\"\")))","v":""}]
[177,{"$nulls":4},{"$f":"IF(SimpleData[[#This Row],[Time 2 Data]]=\"\",\"\",(IFERROR(SimpleData[[#This Row],[Time 2 Data]]-SimpleData[[#This Row],[Time 1 Data]],\"\")))","v":""}]
[178,{"$nulls":4},{"$f":"IF(SimpleData[[#This Row],[Time 2 Data]]=\"\",\"\",(IFERROR(SimpleData[[#This Row],[Time 2 Data]]-SimpleData[[#This Row],[Time 1 Data]],\"\")))","v":""}]
[179,{"$nulls":4},{"$f":"IF(SimpleData[[#This Row],[Time 2 Data]]=\"\",\"\",(IFERROR(SimpleData[[#This Row],[Time 2 Data]]-SimpleData[[#This Row],[Time 1 Data]],\"\")))","v":""}]
[180,{"$nulls":4},{"$f":"IF(SimpleData[[#This Row],[Time 2 Data]]=\"\",\"\",(IFERROR(SimpleData[[#This Row],[Time 2 Data]]-SimpleData[[#This Row],[Time 1 Data]],\"\")))","v":""}]
[181,{"$nulls":4},{"$f":"IF(SimpleData[[#This Row],[Time 2 Data]]=\"\",\"\",(IFERROR(SimpleData[[#This Row],[Time 2 Data]]-SimpleData[[#This Row],[Time 1 Data]],\"\")))","v":""}]
[182,{"$nulls":4},{"$f":"IF(SimpleData[[#This Row],[Time 2 Data]]=\"\",\"\",(IFERROR(SimpleData[[#This Row],[Time 2 Data]]-SimpleData[[#This Row],[Time 1 Data]],\"\")))","v":""}]
[183,{"$nulls":4},{"$f":"IF(SimpleData[[#This Row],[Time 2 Data]]=\"\",\"\",(IFERROR(SimpleData[[#This Row],[Time 2 Data]]-SimpleData[[#This Row],[Time 1 Data]],\"\")))","v":""}]
[184,{"$nulls":4},{"$f":"IF(SimpleData[[#This Row],[Time 2 Data]]=\"\",\"\",(IFERROR(SimpleData[[#This Row],[Time 2 Data]]-SimpleData[[#This Row],[Time 1 Data]],\"\")))","v":""}]
[185,{"$nulls":4},{"$f":"IF(SimpleData[[#This Row],[Time 2 Data]]=\"\",\"\",(IFERROR(SimpleData[[#This Row],[Time 2 Data]]-SimpleData[[#This Row],[Time 1 Data]],\"\")))","v":""}]
[186,{"$nulls":4},{"$f":"IF(SimpleData[[#This Row],[Time 2 Data]]=\"\",\"\",(IFERROR(SimpleData[[#This Row],[Time 2 Data]]-SimpleData[[#This Row],[Time 1 Data]],\"\")))","v":""}]
[187,{"$nulls":4},{"$f":"IF(SimpleData[[#This Row],[Time 2 Data]]=\"\",\"\",(IFERROR(SimpleData[[#This Row],[Time 2 Data]]-SimpleData[[#This Row],[Time 1 Data]],\"\")))","v":""}]
[188,{"$nulls":4},{"$f":"IF(SimpleData[[#This Row],[Time 2 Data]]=\"\",\"\",(IFERROR(SimpleData[[#This Row],[Time 2 Data]]-SimpleData[[#This Row],[Time 1 Data]],\"\")))","v":""}]
[189,{"$nulls":4},{"$f":"IF(SimpleData[[#This Row],[Time 2 Data]]=\"\",\"\",(IFERROR(SimpleData[[#This Row],[Time 2 Data]]-SimpleData[[#This Row],[Time 1 Data]],\"\")))","v":""}]
[190,{"$nulls":4},{"$f":"IF(SimpleData[[#This Row],[Time 2 Data]]=\"\",\"\",(IFERROR(SimpleData[[#This Row],[Time 2 Data]]-SimpleData[[#This Row],[Time 1 Data]],\"\")))","v":""}]
[191,{"$nulls":4},{"$f":"IF(SimpleData[[#This Row],[Time 2 Data]]=\"\",\"\",(IFERROR(SimpleData[[#This Row],[Time 2 Data]]-SimpleData[[#This Row],[Time 1 Data]],\"\")))","v":""}]
[192,{"$nulls":4},{"$f":"IF(SimpleData[[#This Row],[Time 2 Data]]=\"\",\"\",(IFERROR(SimpleData[[#This Row],[Time 2 Data]]-SimpleData[[#This Row],[Time 1 Data]],\"\")))","v":""}]
[193,{"$nulls":4},{"$f":"IF(SimpleData[[#This Row],[Time 2 Data]]=\"\",\"\",(IFERROR(SimpleData[[#This Row],[Time 2 Data]]-SimpleData[[#This Row],[Time 1 Data]],\"\")))","v":""}]
[194,{"$nulls":4},{"$f":"IF(SimpleData[[#This Row],[Time 2 Data]]=\"\",\"\",(IFERROR(SimpleData[[#This Row],[Time 2 Data]]-SimpleData[[#This Row],[Time 1 Data]],\"\")))","v":""}]
[{"$f":"A201+1","v":195},{"$nulls":4},{"$f":"IF(SimpleData[[#This Row],[Time 2 Data]]=\"\",\"\",(IFERROR(SimpleData[[#This Row],[Time 2 Data]]-SimpleData[[#This Row],[Time 1 Data]],\"\")))","v":""}]
[196,{"$nulls":4},{"$f":"IF(SimpleData[[#This Row],[Time 2 Data]]=\"\",\"\",(IFERROR(SimpleData[[#This Row],[Time 2 Data]]-SimpleData[[#This Row],[Time 1 Data]],\"\")))","v":""}]
[197,{"$nulls":4},{"$f":"IF(SimpleData[[#This Row],[Time 2 Data]]=\"\",\"\",(IFERROR(SimpleData[[#This Row],[Time 2 Data]]-SimpleData[[#This Row],[Time 1 Data]],\"\")))","v":""}]
[198,{"$nulls":4},{"$f":"IF(SimpleData[[#This Row],[Time 2 Data]]=\"\",\"\",(IFERROR(SimpleData[[#This Row],[Time 2 Data]]-SimpleData[[#This Row],[Time 1 Data]],\"\")))","v":""}]
[199,{"$nulls":4},{"$f":"IF(SimpleData[[#This Row],[Time 2 Data]]=\"\",\"\",(IFERROR(SimpleData[[#This Row],[Time 2 Data]]-SimpleData[[#This Row],[Time 1 Data]],\"\")))","v":""}]
[200,{"$nulls":4},{"$f":"IF(SimpleData[[#This Row],[Time 2 Data]]=\"\",\"\",(IFERROR(SimpleData[[#This Row],[Time 2 Data]]-SimpleData[[#This Row],[Time 1 Data]],\"\")))","v":""}]
[201,{"$nulls":4},{"$f":"IF(SimpleData[[#This Row],[Time 2 Data]]=\"\",\"\",(IFERROR(SimpleData[[#This Row],[Time 2 Data]]-SimpleData[[#This Row],[Time 1 Data]],\"\")))","v":""}]
[202,{"$nulls":4},{"$f":"IF(SimpleData[[#This Row],[Time 2 Data]]=\"\",\"\",(IFERROR(SimpleData[[#This Row],[Time 2 Data]]-SimpleData[[#This Row],[Time 1 Data]],\"\")))","v":""}]
[{"$f":"A209+1","v":203},{"$nulls":4},{"$f":"IF(SimpleData[[#This Row],[Time 2 Data]]=\"\",\"\",(IFERROR(SimpleData[[#This Row],[Time 2 Data]]-SimpleData[[#This Row],[Time 1 Data]],\"\")))","v":""}]
[{"$f":"A210+1","v":204},{"$nulls":4},{"$f":"IF(SimpleData[[#This Row],[Time 2 Data]]=\"\",\"\",(IFERROR(SimpleData[[#This Row],[Time 2 Data]]-SimpleData[[#This Row],[Time 1 Data]],\"\")))","v":""}]
[205,{"$nulls":4},{"$f":"IF(SimpleData[[#This Row],[Time 2 Data]]=\"\",\"\",(IFERROR(SimpleData[[#This Row],[Time 2 Data]]-SimpleData[[#This Row],[Time 1 Data]],\"\")))","v":""}]
[206,{"$nulls":4},{"$f":"IF(SimpleData[[#This Row],[Time 2 Data]]=\"\",\"\",(IFERROR(SimpleData[[#This Row],[Time 2 Data]]-SimpleData[[#This Row],[Time 1 Data]],\"\")))","v":""}]
[207,{"$nulls":4},{"$f":"IF(SimpleData[[#This Row],[Time 2 Data]]=\"\",\"\",(IFERROR(SimpleData[[#This Row],[Time 2 Data]]-SimpleData[[#This Row],[Time 1 Data]],\"\")))","v":""}]
[208,{"$nulls":4},{"$f":"IF(SimpleData[[#This Row],[Time 2 Data]]=\"\",\"\",(IFERROR(SimpleData[[#This Row],[Time 2 Data]]-SimpleData[[#This Row],[Time 1 Data]],\"\")))","v":""}]
[209,{"$nulls":4},{"$f":"IF(SimpleData[[#This Row],[Time 2 Data]]=\"\",\"\",(IFERROR(SimpleData[[#This Row],[Time 2 Data]]-SimpleData[[#This Row],[Time 1 Data]],\"\")))","v":""}]
[210,{"$nulls":4},{"$f":"IF(SimpleData[[#This Row],[Time 2 Data]]=\"\",\"\",(IFERROR(SimpleData[[#This Row],[Time 2 Data]]-SimpleData[[#This Row],[Time 1 Data]],\"\")))","v":""}]
[211,{"$nulls":4},{"$f":"IF(SimpleData[[#This Row],[Time 2 Data]]=\"\",\"\",(IFERROR(SimpleData[[#This Row],[Time 2 Data]]-SimpleData[[#This Row],[Time 1 Data]],\"\")))","v":""}]
[212,{"$nulls":4},{"$f":"IF(SimpleData[[#This Row],[Time 2 Data]]=\"\",\"\",(IFERROR(SimpleData[[#This Row],[Time 2 Data]]-SimpleData[[#This Row],[Time 1 Data]],\"\")))","v":""}]
[213,{"$nulls":4},{"$f":"IF(SimpleData[[#This Row],[Time 2 Data]]=\"\",\"\",(IFERROR(SimpleData[[#This Row],[Time 2 Data]]-SimpleData[[#This Row],[Time 1 Data]],\"\")))","v":""}]
[214,{"$nulls":4},{"$f":"IF(SimpleData[[#This Row],[Time 2 Data]]=\"\",\"\",(IFERROR(SimpleData[[#This Row],[Time 2 Data]]-SimpleData[[#This Row],[Time 1 Data]],\"\")))","v":""}]
[215,{"$nulls":4},{"$f":"IF(SimpleData[[#This Row],[Time 2 Data]]=\"\",\"\",(IFERROR(SimpleData[[#This Row],[Time 2 Data]]-SimpleData[[#This Row],[Time 1 Data]],\"\")))","v":""}]
[216,{"$nulls":4},{"$f":"IF(SimpleData[[#This Row],[Time 2 Data]]=\"\",\"\",(IFERROR(SimpleData[[#This Row],[Time 2 Data]]-SimpleData[[#This Row],[Time 1 Data]],\"\")))","v":""}]
[217,{"$nulls":4},{"$f":"IF(SimpleData[[#This Row],[Time 2 Data]]=\"\",\"\",(IFERROR(SimpleData[[#This Row],[Time 2 Data]]-SimpleData[[#This Row],[Time 1 Data]],\"\")))","v":""}]
[218,{"$nulls":4},{"$f":"IF(SimpleData[[#This Row],[Time 2 Data]]=\"\",\"\",(IFERROR(SimpleData[[#This Row],[Time 2 Data]]-SimpleData[[#This Row],[Time 1 Data]],\"\")))","v":""}]
[219,{"$nulls":4},{"$f":"IF(SimpleData[[#This Row],[Time 2 Data]]=\"\",\"\",(IFERROR(SimpleData[[#This Row],[Time 2 Data]]-SimpleData[[#This Row],[Time 1 Data]],\"\")))","v":""}]
[220,{"$nulls":4},{"$f":"IF(SimpleData[[#This Row],[Time 2 Data]]=\"\",\"\",(IFERROR(SimpleData[[#This Row],[Time 2 Data]]-SimpleData[[#This Row],[Time 1 Data]],\"\")))","v":""}]
[221,{"$nulls":4},{"$f":"IF(SimpleData[[#This Row],[Time 2 Data]]=\"\",\"\",(IFERROR(SimpleData[[#This Row],[Time 2 Data]]-SimpleData[[#This Row],[Time 1 Data]],\"\")))","v":""}]
[222,{"$nulls":4},{"$f":"IF(SimpleData[[#This Row],[Time 2 Data]]=\"\",\"\",(IFERROR(SimpleData[[#This Row],[Time 2 Data]]-SimpleData[[#This Row],[Time 1 Data]],\"\")))","v":""}]
[223,{"$nulls":4},{"$f":"IF(SimpleData[[#This Row],[Time 2 Data]]=\"\",\"\",(IFERROR(SimpleData[[#This Row],[Time 2 Data]]-SimpleData[[#This Row],[Time 1 Data]],\"\")))","v":""}]
[224,{"$nulls":4},{"$f":"IF(SimpleData[[#This Row],[Time 2 Data]]=\"\",\"\",(IFERROR(SimpleData[[#This Row],[Time 2 Data]]-SimpleData[[#This Row],[Time 1 Data]],\"\")))","v":""}]
[225,{"$nulls":4},{"$f":"IF(SimpleData[[#This Row],[Time 2 Data]]=\"\",\"\",(IFERROR(SimpleData[[#This Row],[Time 2 Data]]-SimpleData[[#This Row],[Time 1 Data]],\"\")))","v":""}]
[226,{"$nulls":4},{"$f":"IF(SimpleData[[#This Row],[Time 2 Data]]=\"\",\"\",(IFERROR(SimpleData[[#This Row],[Time 2 Data]]-SimpleData[[#This Row],[Time 1 Data]],\"\")))","v":""}]
[227,{"$nulls":4},{"$f":"IF(SimpleData[[#This Row],[Time 2 Data]]=\"\",\"\",(IFERROR(SimpleData[[#This Row],[Time 2 Data]]-SimpleData[[#This Row],[Time 1 Data]],\"\")))","v":""}]
[228,{"$nulls":4},{"$f":"IF(SimpleData[[#This Row],[Time 2 Data]]=\"\",\"\",(IFERROR(SimpleData[[#This Row],[Time 2 Data]]-SimpleData[[#This Row],[Time 1 Data]],\"\")))","v":""}]
[229,{"$nulls":4},{"$f":"IF(SimpleData[[#This Row],[Time 2 Data]]=\"\",\"\",(IFERROR(SimpleData[[#This Row],[Time 2 Data]]-SimpleData[[#This Row],[Time 1 Data]],\"\")))","v":""}]
[230,{"$nulls":4},{"$f":"IF(SimpleData[[#This Row],[Time 2 Data]]=\"\",\"\",(IFERROR(SimpleData[[#This Row],[Time 2 Data]]-SimpleData[[#This Row],[Time 1 Data]],\"\")))","v":""}]
[231,{"$nulls":4},{"$f":"IF(SimpleData[[#This Row],[Time 2 Data]]=\"\",\"\",(IFERROR(SimpleData[[#This Row],[Time 2 Data]]-SimpleData[[#This Row],[Time 1 Data]],\"\")))","v":""}]
[232,{"$nulls":4},{"$f":"IF(SimpleData[[#This Row],[Time 2 Data]]=\"\",\"\",(IFERROR(SimpleData[[#This Row],[Time 2 Data]]-SimpleData[[#This Row],[Time 1 Data]],\"\")))","v":""}]
[233,{"$nulls":4},{"$f":"IF(SimpleData[[#This Row],[Time 2 Data]]=\"\",\"\",(IFERROR(SimpleData[[#This Row],[Time 2 Data]]-SimpleData[[#This Row],[Time 1 Data]],\"\")))","v":""}]
[234,{"$nulls":4},{"$f":"IF(SimpleData[[#This Row],[Time 2 Data]]=\"\",\"\",(IFERROR(SimpleData[[#This Row],[Time 2 Data]]-SimpleData[[#This Row],[Time 1 Data]],\"\")))","v":""}]
[235,{"$nulls":4},{"$f":"IF(SimpleData[[#This Row],[Time 2 Data]]=\"\",\"\",(IFERROR(SimpleData[[#This Row],[Time 2 Data]]-SimpleData[[#This Row],[Time 1 Data]],\"\")))","v":""}]
[236,{"$nulls":4},{"$f":"IF(SimpleData[[#This Row],[Time 2 Data]]=\"\",\"\",(IFERROR(SimpleData[[#This Row],[Time 2 Data]]-SimpleData[[#This Row],[Time 1 Data]],\"\")))","v":""}]
[237,{"$nulls":4},{"$f":"IF(SimpleData[[#This Row],[Time 2 Data]]=\"\",\"\",(IFERROR(SimpleData[[#This Row],[Time 2 Data]]-SimpleData[[#This Row],[Time 1 Data]],\"\")))","v":""}]
[238,{"$nulls":4},{"$f":"IF(SimpleData[[#This Row],[Time 2 Data]]=\"\",\"\",(IFERROR(SimpleData[[#This Row],[Time 2 Data]]-SimpleData[[#This Row],[Time 1 Data]],\"\")))","v":""}]
[239,{"$nulls":4},{"$f":"IF(SimpleData[[#This Row],[Time 2 Data]]=\"\",\"\",(IFERROR(SimpleData[[#This Row],[Time 2 Data]]-SimpleData[[#This Row],[Time 1 Data]],\"\")))","v":""}]
[240,{"$nulls":4},{"$f":"IF(SimpleData[[#This Row],[Time 2 Data]]=\"\",\"\",(IFERROR(SimpleData[[#This Row],[Time 2 Data]]-SimpleData[[#This Row],[Time 1 Data]],\"\")))","v":""}]
[241,{"$nulls":4},{"$f":"IF(SimpleData[[#This Row],[Time 2 Data]]=\"\",\"\",(IFERROR(SimpleData[[#This Row],[Time 2 Data]]-SimpleData[[#This Row],[Time 1 Data]],\"\")))","v":""}]
[242,{"$nulls":4},{"$f":"IF(SimpleData[[#This Row],[Time 2 Data]]=\"\",\"\",(IFERROR(SimpleData[[#This Row],[Time 2 Data]]-SimpleData[[#This Row],[Time 1 Data]],\"\")))","v":""}]
[243,{"$nulls":4},{"$f":"IF(SimpleData[[#This Row],[Time 2 Data]]=\"\",\"\",(IFERROR(SimpleData[[#This Row],[Time 2 Data]]-SimpleData[[#This Row],[Time 1 Data]],\"\")))","v":""}]
[244,{"$nulls":4},{"$f":"IF(SimpleData[[#This Row],[Time 2 Data]]=\"\",\"\",(IFERROR(SimpleData[[#This Row],[Time 2 Data]]-SimpleData[[#This Row],[Time 1 Data]],\"\")))","v":""}]
[245,{"$nulls":4},{"$f":"IF(SimpleData[[#This Row],[Time 2 Data]]=\"\",\"\",(IFERROR(SimpleData[[#This Row],[Time 2 Data]]-SimpleData[[#This Row],[Time 1 Data]],\"\")))","v":""}]
[246,{"$nulls":4},{"$f":"IF(SimpleData[[#This Row],[Time 2 Data]]=\"\",\"\",(IFERROR(SimpleData[[#This Row],[Time 2 Data]]-SimpleData[[#This Row],[Time 1 Data]],\"\")))","v":""}]
[247,{"$nulls":4},{"$f":"IF(SimpleData[[#This Row],[Time 2 Data]]=\"\",\"\",(IFERROR(SimpleData[[#This Row],[Time 2 Data]]-SimpleData[[#This Row],[Time 1 Data]],\"\")))","v":""}]
[248,{"$nulls":4},{"$f":"IF(SimpleData[[#This Row],[Time 2 Data]]=\"\",\"\",(IFERROR(SimpleData[[#This Row],[Time 2 Data]]-SimpleData[[#This Row],[Time 1 Data]],\"\")))","v":""}]
[249,{"$nulls":4},{"$f":"IF(SimpleData[[#This Row],[Time 2 Data]]=\"\",\"\",(IFERROR(SimpleData[[#This Row],[Time 2 Data]]-SimpleData[[#This Row],[Time 1 Data]],\"\")))","v":""}]
[250,{"$nulls":4},{"$f":"IF(SimpleData[[#This Row],[Time 2 Data]]=\"\",\"\",(IFERROR(SimpleData[[#This Row],[Time 2 Data]]-SimpleData[[#This Row],[Time 1 Data]],\"\")))","v":""}]